{"text_format":"1","workbook":"xlsx","n_sheets":7,"sheets":["School List","Start","DATA","DFES","SBS File Check","October figures 18 AY 18-19","AY 19-20 Sept to Marc"],"not_rendered":{"charts":0,"images":2,"macros":1,"external_links":2,"defined_names":13,"comments":0,"pivot_tables":0},"unopened":[],"bounds":{"document_bytes":16777216,"sheet_cells":100000,"rows_first":2000,"rows_last":500,"rows_between":2000,"halvings":0,"cell_chars":16384,"cell_head_chars":4096},"cells_cut":0,"cells_raw":0,"read":"whole","date_system":"1900"}

{"sheet":"School List","index":0,"n_rows":193,"n_cols":82,"rows_kept":193,"cut":false,"hidden":true,"merged":[[0,3,4,3],[0,8,4,8],[0,4,4,4]]}
[null,null,null,null,null,null,null,null,null,null,null,null,null,null,null,null,null,null,null,null,null,null,null,null,null,null,null,null,null,null,null,null,null,null,null,null,null,null,null,null,null,null,null,null,null,null,null,null,null,null,null,null,null,null,null,null,null,null,null,null,null,null,null,null,null,null,null,null,null,null,null,null,null,null,null,null,null,null,null,null,null,"ok"]
[]
[]
["DFE",null,"School"]
["Number",null,"Name"]
[3318,null,"ABBEY RC JI "]
[2010,null,"ADDERLEY JI "]
[5949,null,"AL-FURQAN JI "]
[2153,null,"ALLENS CROFT JI "]
[2062,null,"ANDERTON PARK JI NC"]
[2479,null,"ANGLESEY JI NC"]
[2300,null,"ARDEN JI NC"]
[2026,null,"BANNERS GATE PRIMARY SCHOOL JI NC"]
[2014,null,"BARFORD JI NC"]
[2239,null,"BELLFIELD I NC"]
[2241,null,"BELLFIELD J "]
[2456,null,"BELLS FARM JI "]
[2435,null,"BENSON JI NC"]
[2025,null,"BIRCHES GREEN I NC"]
[2024,null,"BIRCHES GREEN J "]
[2254,null,"BLAKESLEY HALL JI "]
[2402,null,"BOLDMERE I NC"]
[2401,null,"BOLDMERE J "]
[2030,null,"BORDESLEY GREEN JI NC"]
[3353,null,"Bournville Village Primary"]
[2238,null,"BROADMEADOW I NC"]
[2236,null,"BROADMEADOW J "]
[2465,null,"CALSHOT JI NC"]
[2312,null,"CHAD VALE JI "]
[2040,null,"CHERRY ORCHARD JI NC"]
[2251,null,"CHILCOTE JI NC"]
[3319,null,"CHRIST THE KING RC JI NC"]
[3002,null,"CHRISTCHURCH CE JI NC"]
[3432,null,"CLIFTON JI NC"]
[2289,null,"COFTON JI "]
[2185,null,"COLEBOURNE JI "]
[2054,null,"COLMORE I NC"]
[2053,null,"COLMORE J "]
[2464,null,"COPPICE JI "]
[3320,null,"CORPUS CHRISTI RC JI "]
[2055,null,"COTTERIDGE JI NC"]
[2191,null,"COURT FARM JI "]
[2284,null,"DEYKIN AVENUE JI "]
[2454,null,"ELMS FARM JI NC"]
[3321,null,"ENGLISH MARTYRS RC JI "]
[2294,null,"FEATHERSTONE JI "]
[2486,null,"FORESTDALE JI NC"]
[3435,null,"FOUR OAKS JI "]
[2079,null,"GEORGE DIXON JI "]
[2081,null,"GILBERTSTONE JI NC"]
[2296,null,"GLENMEAD JI "]
[2087,null,"GRENDON JI NC"]
[2466,null,"GROVE JI NC"]
[3316,null,"GUARDIAN ANGELS RC JI "]
[2091,null,"GUNTER JI NC"]
[2093,null,"HALL GREEN I NC"]
[2092,null,"HALL GREEN J "]
[2477,null,"HARBORNE JI "]
[3436,null,"HARPER BELL PRIMARY JI NC"]
[2099,null,"HAWTHORN JI "]
[2313,null,"HEATH MOUNT JI "]
[2438,null,"HIGHTERS HEATH JI "]
[2429,null,"HOLLAND HOUSE I NC"]
[3411,null,"HOLLY HILL I NC"]
[2474,null,"HOLLYFIELD JI "]
[2288,null,"HOLLYWOOD JI "]
[3317,null,"HOLY FAMILY RC JI NC"]
[2015,null,"JAMES WATT JI NC"]
[3352,null,"KING DAVID JI NC"]
[2005,null,"KINGS HEATH JI NC"]
[2118,null,"KINGS NORTON JI "]
[2115,null,"KINGSLAND JI NC"]
[2441,null,"KINGSTHORNE JI NC"]
[2321,null,"KITWELL JI NC"]
[2189,null,"LADYPOOL JI NC"]
[2119,null,"LAKEY LANE JI NC"]
[2462,null,"LITTLE SUTTON JI "]
[2127,null,"LOZELLS JI NC"]
[2129,null,"LYNDON GREEN I "]
[2128,null,"LYNDON GREEN J "]
[2420,null,"MANEY HILL JI "]
[2004,null,"MAPLEDENE JI NC"]
[2133,null,"MARSH HILL JI "]
[3322,null,"MARYVALE RC JI NC"]
[2246,null,"MEADOWS JI "]
[2406,null,"MINWORTH JI "]
[2416,null,"MOOR HALL JI "]
[3003,null,"MOSELEY CE JI "]
[2142,null,"NELSON JI NC"]
[2457,null,"NELSON MANDELA JI NC"]
[2469,null,"NEW HALL JI NC"]
[3431,null,"NEW OSCOTT JI NC"]
[2018,null,"OAKS, THE JI NC"]
[3323,null,"ORATORY RC JI NC"]
[2436,null,"OSBORNE JI "]
[3351,null,"OUR LADY AND ST ROSE RC JI NC"]
[3328,null,"OUR LADY OF LOURDES RC JI NC"]
[3357,null,"OUR LADY'S RC JI "]
[2021,null,"PAGANEL JI NC"]
[2149,null,"PAGET JI NC"]
[2150,null,"PARK HILL JI NC"]
[2425,null,"PENNS JI "]
[2017,null,"BEECHES I (formerly PERRY BEECHES I) "]
[2016,null,"PERRY BEECHES J "]
[2157,null,"RADDLEBARN JI NC"]
[2159,null,"REDHILL JI NC"]
[2161,null,"REDNAL HILL I NC"]
[2160,null,"REDNAL HILL J "]
[2063,null,"REGENTS PARK JI NC"]
[3325,null,"ROSARY RC JI NC"]
[2169,null,"SEVERNE JI NC"]
[2008,null,"SHAW HILL JI NC"]
[2174,null,"SLADEFIELD I "]
[2176,null,"SOMERVILLE JI NC"]
[3381,null,"ST ALBANS RC JI "]
[3380,null,"ST AMBROSE BARLOW RC JI "]
[3335,null,"ST ANNE'S RC JI "]
[3329,null,"ST AUGUSTINE'S RC JI NC"]
[3302,null,"ST BARNABAS CE JI NC"]
[2183,null,"ST BENEDICT'S I NC"]
[3372,null,"ST BERNADETTE'S RC JI NC"]
[3375,null,"ST BERNARD'S RC JI "]
[3331,null,"ST CATHERINE'S RC JI NC"]
[3337,null,"ST CHAD'S RC JI "]
[3406,null,"ST CLARE'S RC JI NC"]
[3386,null,"ST CUTHBERTS RC JI NC"]
[3363,null,"ST DUNSTAN'S RC JI NC"]
[3347,null,"ST EDMUND'S RC JI NC"]
[3355,null,"ST EDWARD'S RC JI "]
[3342,null,"ST FRANCIS RC JI "]
[3367,null,"ST GERARD'S RC JI NC"]
[3010,null,"ST JAMES CE JI "]
[3410,null,"ST JOHN & ST MONICA RC JI "]
[3360,null,"ST JOHN FISHER'S RC JI "]
[3339,null,"ST JOSEPH'S RC (B7) JI "]
[3377,null,"ST JUDE'S RC JI "]
[3371,null,"ST LAURENCE CE I "]
[3307,null,"ST LAURENCE CE J "]
[3361,null,"ST MARGARET MARY RC JI "]
[3383,null,"ST MARK'S RC JI "]
[3382,null,"ST MARTIN de PORRES RC JI "]
[3025,null,"ST MARY'S CE (B29) JI "]
[3344,null,"ST MARY'S RC (B17) JI "]
[3016,null,"ST MATTHEW'S CE JI "]
[3346,null,"ST PATRICK'S RC JI "]
[3428,null,"ST PETER'S CE JI NC"]
[3385,null,"ST PETER'S RC JI "]
[3019,null,"ST SAVIOUR'S CE JI "]
[3365,null,"ST TERESA'S RC JI "]
[3310,null,"ST VINCENT'S RC JI NC"]
[3359,null,"ST WILFRID'S RC JI NC"]
[2178,null,"STANVILLE JI NC"]
[2179,null,"STARBANK JI NC"]
[2184,null,"STECHFORD JI NC"]
[2097,null,"STORY WOOD SCHOOL AND CHILDREN'S CENTRE  JI NC"]
[2067,null,"SUMMERFIELD JI NC"]
[2190,null,"SUNDRIDGE JI "]
[2192,null,"THORNTON JI "]
[5203,null,"WALMLEY I NC"]
[5202,null,"WALMLEY J "]
[2108,null,"WARD END JI NC"]
[2306,null,"WATERMILL JI "]
[2482,null,"WATTVILLE JI NC"]
[2308,null,"WELFORD JI NC"]
[2245,null,"WELSH HOUSE FARM JI NC"]
[2019,null,"WEST HEATH JI "]
[2011,null,"WHEELERS LANE JI NC"]
[2478,null,"WHITEHOUSE COMMON JI NC"]
[2293,null,"William Murdoch Primary School"]
[2445,null,"WOODCOCK HILL JI "]
[2278,null,"WOODGATE JI "]
[2314,null,"WOODTHORPE JI "]
[2317,null,"WORLDS END I NC"]
[2225,null,"WORLDS END J "]
[2412,null,"WYLDE GREEN JI "]
[3421,null,"YARDLEY JI "]
[2227,null,"YARDLEY WOOD JI NC"]
[2231,null,"YORKMEAD JI NC"]
[7052,null,"BEAUFORT Spec"]
[7051,null,"CHERRY OAK Spec"]
[1100,null,"CITY OF BIRMINGHAM SCHOOL"]
[7035,null,"DAME ELLEN PINSENT Spec"]
[7006,null,"HAMILTON Spec"]
[7060,null,"LANGLEY Spec"]
[7062,null,"LINDSWORTH Spec"]
[7012,null,"LONGWILL Spec"]
[7040,null,"MAYFIELD Spec"]
[7045,null,"PINES Spec"]
[7034,null,"PRIESTLEY SMITH Spec"]
[7037,null,"SKILTS Spec"]
[7047,null,"SPRINGFIELD HOUSE Spec"]
[7014,null,"UFFCULME Spec"]
[7009,null,"VICTORIA Spec"]

{"sheet":"Start","index":1,"n_rows":288,"n_cols":10,"rows_kept":288,"cut":false,"hidden":false,"merged":[]}
["V2 Final 19-20",null,null,{"$f":"IF(ISNA(VLOOKUP($E$1,$A$101:$B$306,2,0)),0,VLOOKUP($E$1,$A$101:$B$306,2,0))","v":2293},{"$f":"+DFES!E1","v":2293}]
[]
[]
[]
[]
[]
[]
[]
[]
[null,"2019/20 Primary PE and Sports Premium Grant Allocations - Official Notification"]
[]
[null,"Please Left Click on the Macro Button below to continue."]
[null,"If the aforementioned does not function, please consult the Macro Guidance here…."]
[null,"Should the Protected View message be visible on the Toolbar, click on Enable Editing."]
[]
[]
[]
[]
[]
[]
[]
[]
[]
[]
[]
[]
[]
[]
[]
[]
[]
[]
[]
[]
[]
[]
[]
[]
[]
[]
[]
[]
[]
[]
[]
[]
[]
[]
[]
[]
[]
[]
[]
[]
[]
[]
[]
[]
[]
[]
[]
[]
[]
[]
[]
[]
[]
[]
[]
[]
[]
[]
[]
[]
[]
[]
[]
[]
[]
[]
[]
[]
[]
[]
[]
[]
[]
[]
[]
[]
[]
[]
[]
[]
[]
[]
[]
[]
[]
[]
[1100,1100,null,null,null,null,null,null,"Nrsy","N"]
[2004,2004,null,null,null,null,null,null,"J","P"]
[2005,2005,null,null,null,null,null,null,"I","P"]
[2008,2008,null,null,null,null,null,null,"JI","P"]
[2010,2010,null,null,null,null,null,null,"Sec (16+)","SEC"]
[2011,2011,null,null,null,null,null,null,"Sec","SEC"]
[2014,2014,null,null,null,null,null,null,"Spcl","SPEC"]
[2015,2015]
[2016,2016]
[2017,2017]
[2018,2018]
[2019,2019]
[2021,2021]
[2024,2024]
[2025,2025]
[2026,2026]
[2030,2030]
[2040,2040]
[2053,2053]
[2054,2054]
[2055,2055]
[2062,2062]
[2063,2063]
[2067,2067]
[2079,2079]
[2081,2081]
[2087,2087]
[2091,2091]
[2092,2092]
[2093,2093]
[2097,2097]
[2099,2099]
[2108,2108]
[2115,2115]
[2118,2118]
[2119,2119]
[2127,2127]
[2128,2128]
[2129,2129]
[2133,2133]
[2142,2142]
[2149,2149]
[2150,2150]
[2153,2153]
[2157,2157]
[2159,2159]
[2160,2160]
[2161,2161]
[2169,2169]
[2174,2174]
[2176,2176]
[2178,2178]
[2179,2179]
[2183,2183]
[2184,2184]
[2185,2185]
[2189,2189]
[2190,2190]
[2191,2191]
[2192,2192]
[2225,2225]
[2227,2227]
[2231,2231]
[2236,2236]
[2238,2238]
[2239,2239]
[2241,2241]
[2245,2245]
[2246,2246]
[2251,2251]
[2254,2254]
[2278,2278]
[2284,2284]
[2288,2288]
[2289,2289]
[2293,2293]
[2294,2294]
[2296,2296]
[2300,2300]
[2306,2306]
[2308,2308]
[2312,2312]
[2313,2313]
[2314,2314]
[2317,2317]
[2321,2321]
[2401,2401]
[2402,2402]
[2406,2406]
[2412,2412]
[2416,2416]
[2420,2420]
[2425,2425]
[2429,2429]
[2435,2435]
[2436,2436]
[2438,2438]
[2441,2441]
[2445,2445]
[2454,2454]
[2456,2456]
[2457,2457]
[2462,2462]
[2464,2464]
[2465,2465]
[2466,2466]
[2469,2469]
[2474,2474]
[2477,2477]
[2478,2478]
[2479,2479]
[2482,2482]
[2486,2486]
[3002,3002]
[3003,3003]
[3010,3010]
[3016,3016]
[3019,3019]
[3025,3025]
[3302,3302]
[3307,3307]
[3310,3310]
[3316,3316]
[3317,3317]
[3318,3318]
[3319,3319]
[3320,3320]
[3321,3321]
[3322,3322]
[3323,3323]
[3325,3325]
[3328,3328]
[3329,3329]
[3331,3331]
[3335,3335]
[3337,3337]
[3339,3339]
[3342,3342]
[3344,3344]
[3346,3346]
[3347,3347]
[3351,3351]
[3352,3352]
[3353,3353]
[3355,3355]
[3357,3357]
[3359,3359]
[3360,3360]
[3361,3361]
[3363,3363]
[3365,3365]
[3367,3367]
[3371,3371]
[3372,3372]
[3375,3375]
[3377,3377]
[3380,3380]
[3381,3381]
[3382,3382]
[3383,3383]
[3385,3385]
[3386,3386]
[3406,3406]
[3410,3410]
[3411,3411]
[3421,3421]
[3428,3428]
[3431,3431]
[3432,3432]
[3435,3435]
[3436,3436]
[5202,5202]
[5203,5203]
[5949,5949]
[7006,7006]
[7009,7009]
[7012,7012]
[7014,7014]
[7034,7034]
[7035,7035]
[7037,7037]
[7040,7040]
[7045,7045]
[7047,7047]
[7051,7051]
[7052,7052]
[7060,7060]
[7062,7062]

{"sheet":"DATA","index":2,"n_rows":44,"n_cols":13,"rows_kept":44,"cut":false,"hidden":true,"merged":[[6,4,6,12],[12,6,12,13],[13,6,13,11],[16,4,17,12],[7,4,7,13],[8,4,8,13],[10,4,10,13],[9,4,9,13]]}
[]
[]
[]
[]
[]
[]
[]
[null,null,null,null,"School Budget Share Addition"]
[null,null,null,null,"PE & SPORT PREMIUM ALLOCATIONS"]
[null,null,null,null,"Financial Year 2019/20"]
[]
[]
[null,null,null,null,"School Name:",null,{"$f":"+DFES!G1","v":"William Murdoch Primary School"}]
[null,null,null,null,"DFE No:",null,{"$f":"+DFES!E1","v":2293}]
[]
[]
[null,null,null,null,"School Budget Share Addition Allocation Analysis"]
[]
[]
[null,null,null,null,null,null,null,null,null,"No. of Eligible Pupils","Allocation\n£",null,"Proportion Allocated within 2019/20 Financial Year  £"]
[null,null,null,null,"2018/19 Academic Year Allocation",null,null,null,null,{"$f":"VLOOKUP($G$14,'October figures 18 AY 18-19'!$B$3:$F$208,3,FALSE)","v":538},{"$f":"VLOOKUP($G$14,'October figures 18 AY 18-19'!$B$3:$F$208,4,FALSE)","v":37380},null,{"$f":"VLOOKUP($G$14,'October figures 18 AY 18-19'!$B$3:$G$208,6,FALSE)","v":15574}]
[null,null,null,null,"(as notified previously October 2018)"]
[null,null,null,null,"2019/20 Academic Year Allocation",null,null,null,null,{"$f":"VLOOKUP($G$14+3300000,'AY 19-20 Sept to Marc'!$C$2:$G$189,3,FALSE)","v":534},{"$f":"VLOOKUP($G$14+3300000,'AY 19-20 Sept to Marc'!$C$2:$G$189,4,FALSE)","v":21340},null,{"$f":"VLOOKUP($G$14+3300000,'AY 19-20 Sept to Marc'!$C$2:$G$189,5,FALSE)","v":12448}]
[]
[null,null,null,null,"Total School Budget Share Addition 2019/20",null,null,null,null,null,null,null,{"$f":"+M21+M23","v":28022}]
[]
[null,null,null,null,"2019/20 Academic Year Allocation allocations are calculated using the number of pupils in years 1 to 6, "]
[null,null,null,null,"as recorded in the January 2019 census, as follows:"]
[null,null,null,null,"schools with 17 or more pupils receive £16,000 plus £10 per pupil"]
[null,null,null,null,"schools with 16 or fewer pupils receive £1,000 per pupil"]
[]
[]
[]
[null,null,null,null,"NOTES:"]
[null,null,null,null,"* Cheque Book Schools will receive a Payment for the above amount shortly"]
[null,null,null,null,"* Non Cheque Schools should ensure the allocation is entered onto their School Financial System with an "]
[null,null,null,null,"  appropriate journal entry, in the 2019/20 financial year."]
[]
[null,null,null,null,"Further information conditions of grant and  guidance on PE and Sport Premium grant my be found at"]
[null,null,null,null,"https://www.gov.uk/guidance/pe-and-sport-premium-for-primary-schools"]
[]
[null,null,null,null,"If you have any queries about the Primary PE and Sports payment, please use the EFA Enquiry Form"]
[]
[null,null,null,null,"For all other enquires please e-mail:",null,null,"fairfunding@birmingham.gov.uk"]

{"sheet":"DFES","index":3,"n_rows":485,"n_cols":61,"rows_kept":485,"cut":false,"hidden":true,"merged":[[7,33,7,38],[7,40,7,41]]}
[null,null,null,null,2293,{"$f":"IF(ISERROR(VLOOKUP(E1,C10:L215,2,0)),0,VLOOKUP(E1,C10:L215,2,0))","v":"William Murdoch Primary School"},{"$f":"IF(ISERROR(VLOOKUP(E1,C10:L215,2,0)),0,VLOOKUP(E1,C10:L215,2,0))","v":"William Murdoch Primary School"}]
[null,1,1,2,3,4,5,null,null,null,null,null,null,null,null,null,null,null,null,null,null,null,null,null,null,null,null,null,null,29,30,31,32,33,34,35,36,37,38,39,40,41,42,43,44,45,46,47,48,49,50,51,52,53,54,55,56,57,58,59,60]
[]
[]
[]
[]
[null,null,null,null,null,null,null,null,null,null,null,null,null,null,null,null,null,null,null,null,null,null,null,null,null,null,null,null,null,null,null,null,null,null,null,null,null,null,null,null,null,null,null,null,null,null,null,null,null,null,null,null,49]
[]
["LA No.","LA Name","LAEstab (at September 2014)","School Name latest list"]
[330,"Birmingham",1100,"City of Birmingham School"]
[330,"Birmingham",2004,"Mapledene Primary School"]
[330,"Birmingham",2005,"Kings Heath Primary School"]
[330,"Birmingham",2008,"Shaw Hill Primary School"]
[330,"Birmingham",2010,"Adderley Primary School"]
[330,"Birmingham",2011,"Wheelers Lane Primary School"]
[330,"Birmingham",2014,"Barford Primary School"]
[330,"Birmingham",2015,"James Watt Primary School"]
[330,"Birmingham",2016,"Beeches Junior School"]
[330,"Birmingham",2017,"Beeches Infant School"]
[330,"Birmingham",2018,"The Oaks Primary School"]
[330,"Birmingham",2019,"West Heath Primary School"]
[330,"Birmingham",2021,"Paganel Primary School"]
[330,"Birmingham",2024,"Birches Green Junior School"]
[330,"Birmingham",2025,"Birches Green Infant School"]
[330,"Birmingham",2026,"Banners Gate Primary School"]
[330,"Birmingham",2030,"Bordesley Green Primary School"]
[330,"Birmingham",2034,"Brookfields Primary School"]
[330,"Birmingham",2040,"Cherry Orchard Primary School"]
[330,"Birmingham",2052,"Colmers Farm Primary School"]
[330,"Birmingham",2053,"Colmore Junior School"]
[330,"Birmingham",2054,"Colmore Infant and Nursery School"]
[330,"Birmingham",2055,"Cotteridge Primary School"]
[330,"Birmingham",2062,"Anderton Park Primary School"]
[330,"Birmingham",2063,"Regents Park Community Primary School"]
[330,"Birmingham",2067,"Summerfield Junior and Infant School"]
[330,"Birmingham",2079,"George Dixon Primary School"]
[330,"Birmingham",2081,"Gilbertstone Primary School"]
[330,"Birmingham",2087,"Grendon Junior and Infant School (NC)"]
[330,"Birmingham",2091,"Gunter Primary School"]
[330,"Birmingham",2092,"Hall Green Junior School"]
[330,"Birmingham",2093,"Hall Green Infant School"]
[330,"Birmingham",2097,"Story Wood School and Children's Centre"]
[330,"Birmingham",2099,"Hawthorn Primary School"]
[330,"Birmingham",2108,"Ward End Primary School"]
[330,"Birmingham",2115,"Kingsland Primary School (NC)"]
[330,"Birmingham",2118,"Kings Norton Junior and Infant School"]
[330,"Birmingham",2119,"Lakey Lane Junior and Infant School"]
[330,"Birmingham",2127,"Lozells Junior and Infant School and Nursery"]
[330,"Birmingham",2128,"Lyndon Green Junior School"]
[330,"Birmingham",2129,"Lyndon Green Infant School"]
[330,"Birmingham",2132,"Marlborough Infant School"]
[330,"Birmingham",2133,"Marsh Hill Primary School"]
[330,"Birmingham",2142,"Nelson Junior and Infant School"]
[330,"Birmingham",2149,"Paget Primary School"]
[330,"Birmingham",2150,"Park Hill Primary School"]
[330,"Birmingham",2153,"Allens Croft Primary School"]
[330,"Birmingham",2155,"Princethorpe Junior School"]
[330,"Birmingham",2157,"Raddlebarn Primary School"]
[330,"Birmingham",2159,"Redhill Junior and Infant School"]
[330,"Birmingham",2160,"Rednal Hill Junior School"]
[330,"Birmingham",2161,"Rednal Hill Infant School"]
[330,"Birmingham",2169,"Severne Junior Infant and Nursery School"]
[330,"Birmingham",2174,"Sladefield Infant School"]
[330,"Birmingham",2176,"Somerville Primary (NC) School"]
[330,"Birmingham",2178,"Stanville Primary School"]
[330,"Birmingham",2179,"Starbank  School"]
[330,"Birmingham",2183,"St Benedict's Infant School"]
[330,"Birmingham",2184,"Stechford Primary School"]
[330,"Birmingham",2185,"Colebourne Primary School"]
[330,"Birmingham",2189,"Ladypool Primary School"]
[330,"Birmingham",2190,"Sundridge Primary School"]
[330,"Birmingham",2191,"Court Farm Primary School"]
[330,"Birmingham",2192,"Thornton Primary School"]
[330,"Birmingham",2225,"World's End Junior School"]
[330,"Birmingham",2227,"Yardley Wood Community Primary School"]
[330,"Birmingham",2231,"Yorkmead Junior and Infant School"]
[330,"Birmingham",2236,"Broadmeadow Junior School"]
[330,"Birmingham",2238,"Broadmeadow Infant School"]
[330,"Birmingham",2239,"Bellfield Infant School (NC)"]
[330,"Birmingham",2241,"Bellfield Junior School"]
[330,"Birmingham",2245,"Welsh House Farm Community School and Special Needs Resources Base"]
[330,"Birmingham",2246,"The Meadows Primary School"]
[330,"Birmingham",2251,"Chilcote Primary School"]
[330,"Birmingham",2254,"Blakesley Hall Primary School"]
[330,"Birmingham",2276,"Wilkes Green Infant School (NC)"]
[330,"Birmingham",2278,"Woodgate Primary School"]
[330,"Birmingham",2283,"Marlborough Junior School"]
[330,"Birmingham",2284,"Deykin Avenue Junior and Infant School"]
[330,"Birmingham",2288,"Hollywood Primary School"]
[330,"Birmingham",2289,"Cofton Primary School"]
[330,"Birmingham",2293,"William Murdoch Primary School"]
[330,"Birmingham",2294,"Featherstone Primary School"]
[330,"Birmingham",2296,"Glenmead Primary School"]
[330,"Birmingham",2297,"Birchfield Community School"]
[330,"Birmingham",2300,"Arden Primary School"]
[330,"Birmingham",2306,"Water Mill Primary School"]
[330,"Birmingham",2308,"Welford Primary School"]
[330,"Birmingham",2312,"Chad Vale Primary School"]
[330,"Birmingham",2313,"Heath Mount Primary School"]
[330,"Birmingham",2314,"Woodthorpe Junior and Infant School"]
[330,"Birmingham",2317,"World's End Infant and Nursery School"]
[330,"Birmingham",2321,"Kitwell Primary School and Nursery Class"]
[330,"Birmingham",2401,"Boldmere Junior School"]
[330,"Birmingham",2402,"Boldmere Infant School and Nursery"]
[330,"Birmingham",2406,"Minworth Junior and Infant School"]
[330,"Birmingham",2412,"Wylde Green Primary School"]
[330,"Birmingham",2416,"Moor Hall Primary School"]
[330,"Birmingham",2420,"Maney Hill Primary School"]
[330,"Birmingham",2425,"Penns Primary School"]
[330,"Birmingham",2429,"Holland House Infant School and Nursery"]
[330,"Birmingham",2435,"Benson Community School"]
[330,"Birmingham",2436,"Osborne Primary School"]
[330,"Birmingham",2438,"Highters Heath Community School"]
[330,"Birmingham",2441,"Kingsthorne Primary School"]
[330,"Birmingham",2445,"Woodcock Hill Primary School"]
[330,"Birmingham",2454,"Elms Farm Community Primary School"]
[330,"Birmingham",2456,"Bells Farm Primary School"]
[330,"Birmingham",2457,"Nelson Mandela School"]
[330,"Birmingham",2462,"Little Sutton Primary School"]
[330,"Birmingham",2464,"Coppice Primary School"]
[330,"Birmingham",2465,"Calshot Primary School"]
[330,"Birmingham",2466,"Grove School"]
[330,"Birmingham",2469,"New Hall Primary and Children's Centre"]
[330,"Birmingham",2474,"Hollyfield Primary School"]
[330,"Birmingham",2477,"Harborne Primary School"]
[330,"Birmingham",2478,"Whitehouse Common Primary School"]
[330,"Birmingham",2479,"Anglesey Primary School"]
[330,"Birmingham",2482,"Wattville Primary School"]
[330,"Birmingham",2485,"Yenton Primary School"]
[330,"Birmingham",2486,"Forestdale Primary School"]
[330,"Birmingham",3002,"Christ Church CofE Controlled Primary School and Nursery"]
[330,"Birmingham",3003,"Moseley Church of England Primary School"]
[330,"Birmingham",3010,"St James Church of England Primary School, Handsworth"]
[330,"Birmingham",3016,"St Matthew's CofE Primary School"]
[330,"Birmingham",3019,"St Saviour's C of E Primary School"]
[330,"Birmingham",3025,"St Mary's Church of England Primary School"]
[330,"Birmingham",3302,"Saint Barnabas Church of England Primary School"]
[330,"Birmingham",3307,"St Laurence Church Junior School"]
[330,"Birmingham",3310,"St Vincent's Catholic Primary School"]
[330,"Birmingham",3316,"Guardian Angels Catholic Primary School"]
[330,"Birmingham",3317,"Holy Family Catholic Primary School"]
[330,"Birmingham",3318,"Abbey Catholic Primary School"]
[330,"Birmingham",3319,"Christ The King Catholic Primary School"]
[330,"Birmingham",3320,"Corpus Christi Catholic Primary School"]
[330,"Birmingham",3321,"English Martyrs' Catholic Primary School"]
[330,"Birmingham",3322,"Maryvale Catholic Primary School"]
[330,"Birmingham",3323,"The Oratory Roman Catholic Primary School"]
[330,"Birmingham",3325,"The Rosary Catholic Primary School"]
[330,"Birmingham",3327,"Holy Souls Catholic Primary School"]
[330,"Birmingham",3328,"Our Lady of Lourdes Catholic Primary School (NC)"]
[330,"Birmingham",3329,"St Augustine's Catholic Primary School"]
[330,"Birmingham",3331,"St Catherine of Siena Catholic Primary School"]
[330,"Birmingham",3335,"St Anne's Catholic Primary School"]
[330,"Birmingham",3337,"St Chad's Catholic Primary School"]
[330,"Birmingham",3339,"St Joseph's Catholic Primary School"]
[330,"Birmingham",3342,"St Francis Catholic Primary School"]
[330,"Birmingham",3344,"St Mary's Catholic Primary School"]
[330,"Birmingham",3346,"St Patrick's Catholic Primary School"]
[330,"Birmingham",3347,"St Edmund's Catholic Primary School"]
[330,"Birmingham",3349,"St Thomas More Catholic Primary School"]
[330,"Birmingham",3350,"St Mary and St John Junior and Infant School"]
[330,"Birmingham",3351,"Our Lady and St Rose of Lima Catholic Primary School"]
[330,"Birmingham",3352,"King David Junior and Infant School"]
[330,"Birmingham",3353,"Bournville Village Primary"]
[330,"Birmingham",3354,"Bournville Infant School"]
[330,"Birmingham",3355,"St Edward's Catholic Primary School"]
[330,"Birmingham",3357,"Our Lady's Catholic Primary School"]
[330,"Birmingham",3359,"St Wilfrid's Catholic Junior and Infant School"]
[330,"Birmingham",3360,"St John Fisher Catholic Primary School"]
[330,"Birmingham",3361,"St Margaret Mary RC Junior and Infant School"]
[330,"Birmingham",3362,"St Peter and St Paul RC Junior and Infant School"]
[330,"Birmingham",3363,"St Dunstan's Catholic Primary School"]
[330,"Birmingham",3365,"St Teresa's Catholic Primary School"]
[330,"Birmingham",3367,"St Gerard's RC Junior and Infant School"]
[330,"Birmingham",3371,"St Laurence Church Infant School"]
[330,"Birmingham",3372,"St Bernadette's Catholic Primary School"]
[330,"Birmingham",3375,"St Bernard's Catholic Primary School"]
[330,"Birmingham",3377,"St Jude's Catholic Primary School"]
[330,"Birmingham",3380,"St Ambrose Barlow Catholic Primary School"]
[330,"Birmingham",3381,"St Alban's Catholic Primary School"]
[330,"Birmingham",3382,"St Martin de Porres Catholic Primary School"]
[330,"Birmingham",3383,"St Mark's Catholic Primary School"]
[330,"Birmingham",3385,"St Peter's Catholic Primary School"]
[330,"Birmingham",3386,"St Cuthbert's RC Junior and Infant (NC) School"]
[330,"Birmingham",3406,"St Clare's Catholic Primary School"]
[330,"Birmingham",3409,"Sacred Heart Catholic School"]
[330,"Birmingham",3410,"St John and Monica Catholic Primary School"]
[330,"Birmingham",3411,"Holly Hill Methodist CofE Infant School"]
[330,"Birmingham",3413,"Springfield Primary School"]
[330,"Birmingham",3421,"Yardley Primary School"]
[330,"Birmingham",3428,"St Peters CofE Primary School"]
[330,"Birmingham",3431,"New Oscott Primary School"]
[330,"Birmingham",3432,"Clifton Primary School"]
[330,"Birmingham",3435,"Four Oaks Primary School"]
[330,"Birmingham",3436,"Harper Bell Seventh-day Adventist School"]
[330,"Birmingham",4334,"Al-Hijrah School"]
[330,"Birmingham",5202,"Walmley Junior School"]
[330,"Birmingham",5203,"Walmley Infant School"]
[330,"Birmingham",5949,"Al-Furqan Primary School"]
[330,"Birmingham",7006,"Hamilton School"]
[330,"Birmingham",7009,"Victoria School"]
[330,"Birmingham",7012,"Longwill A Primary School for Deaf Children"]
[330,"Birmingham",7014,"Uffculme School"]
[330,"Birmingham",7033,"Selly Oak Trust School"]
[330,"Birmingham",7034,"Priestley Smith School"]
[330,"Birmingham",7035,"The Dame Ellen Pinsent School"]
[330,"Birmingham",7037,"Skilts School"]
[330,"Birmingham",7040,"Mayfield School"]
[330,"Birmingham",7045,"The Pines Special School"]
[330,"Birmingham",7047,"Springfield House Community Special School"]
[330,"Birmingham",7051,"Cherry Oak School"]
[330,"Birmingham",7052,"Beaufort School"]
[330,"Birmingham",7060,"Langley School"]
[330,"Birmingham",7062,"Lindsworth School"]
[]
[]
[]
[]
[]
[]
[]
[]
[]
[]
[]
[]
[]
[]
[]
[]
[]
[]
[]
[]
[]
[]
[]
[]
[]
[]
[]
[]
[]
[]
[]
[]
[]
[]
[]
[]
[]
[]
[]
[]
[]
[]
[]
[]
[]
[]
[]
[]
[]
[]
[]
[]
[]
[]
[]
[]
[]
[]
[]
[]
[]
[]
[]
[]
[]
[]
[]
[]
[]
[]
[]
[]
[]
[]
[]
[]
[]
[]
[]
[]
[]
[]
[]
[]
[]
[]
[]
[]
[]
[]
[]
[]
[]
[]
[]
[]
[]
[]
[]
[]
[]
[]
[]
[]
[]
[]
[]
[]
[]
[]
[]
[]
[]
[]
[]
[]
[]
[]
[]
[]
[]
[]
[]
[]
[]
[]
[]
[]
[]
[]
[]
[]
[]
[]
[]
[]
[]
[]
[]
[]
[]
[]
[]
[]
[]
[]
[]
[]
[]
[]
[]
[]
[]
[]
[]
[]
[]
[]
[]
[]
[]
[]
[]
[]
[]
[]
[]
[]
[]
[]
[]
[]
[]
[]
[]
[]
[]
[]
[]
[]
[]
[]
[]
[]
[]
[]
[]
[]
[]
[]
[]
[]
[]
[]
[]
[]
[]
[]
[]
[]
[]
[]
[]
[]
[]
[]
[]
[]
[]
[]
[]
[]
[]
[]
[]
[]
[]
[]
[]
[]
[]
[]
[]
[]
[]
[]
[]
[]
[]
[]
[]
[]
[]
[]
[]
[]
[]
[]
[]
[]
[]
[]
[null,null,null,null,null,null,null,null,null,null,null,null,null,null,null,null,null,null,null,null,null,null,null,null,null,null,null,null,null,null,null,null,null,null,null,null,null,null,null,null,null,null,null,null,null,0]
[null,null,null,null,null,null,null,null,null,null,null,null,null,null,null,null,null,null,null,null,null,null,null,null,null,null,null,null,null,null,null,null,null,null,null,null,null,null,null,null,null,null,null,null,null,0]
[null,null,null,null,null,null,null,null,null,null,null,null,null,null,null,null,null,null,null,null,null,null,null,null,null,null,null,null,null,null,null,null,null,null,null,null,null,null,null,null,null,null,null,null,null,0]
[null,null,null,null,null,null,null,null,null,null,null,null,null,null,null,null,null,null,null,null,null,null,null,null,null,null,null,null,null,null,null,null,null,null,null,null,null,null,null,null,null,null,null,null,null,0]
[null,null,null,null,null,null,null,null,null,null,null,null,null,null,null,null,null,null,null,null,null,null,null,null,null,null,null,null,null,null,null,null,null,null,null,null,null,null,null,null,null,null,null,null,null,0]
[null,null,null,null,null,null,null,null,null,null,null,null,null,null,null,null,null,null,null,null,null,null,null,null,null,null,null,null,null,null,null,null,null,null,null,null,null,null,null,null,null,null,null,null,null,0]
[null,null,null,null,null,null,null,null,null,null,null,null,null,null,null,null,null,null,null,null,null,null,null,null,null,null,null,null,null,null,null,null,null,null,null,null,null,null,null,null,null,null,null,null,null,0]
[null,null,null,null,null,null,null,null,null,null,null,null,null,null,null,null,null,null,null,null,null,null,null,null,null,null,null,null,null,null,null,null,null,null,null,null,null,null,null,null,null,null,null,null,null,0]
[null,null,null,null,null,null,null,null,null,null,null,null,null,null,null,null,null,null,null,null,null,null,null,null,null,null,null,null,null,null,null,null,null,null,null,null,null,null,null,null,null,null,null,null,null,0]
[null,null,null,null,null,null,null,null,null,null,null,null,null,null,null,null,null,null,null,null,null,null,null,null,null,null,null,null,null,null,null,null,null,null,null,null,null,null,null,null,null,null,null,null,null,0]
[null,null,null,null,null,null,null,null,null,null,null,null,null,null,null,null,null,null,null,null,null,null,null,null,null,null,null,null,null,null,null,null,null,null,null,null,null,null,null,null,null,null,null,null,null,0]
[null,null,null,null,null,null,null,null,null,null,null,null,null,null,null,null,null,null,null,null,null,null,null,null,null,null,null,null,null,null,null,null,null,null,null,null,null,null,null,null,null,null,null,null,null,0]
[null,null,null,null,null,null,null,null,null,null,null,null,null,null,null,null,null,null,null,null,null,null,null,null,null,null,null,null,null,null,null,null,null,null,null,null,null,null,null,null,null,null,null,null,null,0]
[null,null,null,null,null,null,null,null,null,null,null,null,null,null,null,null,null,null,null,null,null,null,null,null,null,null,null,null,null,null,null,null,null,null,null,null,null,null,null,null,null,null,null,null,null,0]
[null,null,null,null,null,null,null,null,null,null,null,null,null,null,null,null,null,null,null,null,null,null,null,null,null,null,null,null,null,null,null,null,null,null,null,null,null,null,null,null,null,null,null,null,null,0]
[null,null,null,null,null,null,null,null,null,null,null,null,null,null,null,null,null,null,null,null,null,null,null,null,null,null,null,null,null,null,null,null,null,null,null,null,null,null,null,null,null,null,null,null,null,0]
[null,null,null,null,null,null,null,null,null,null,null,null,null,null,null,null,null,null,null,null,null,null,null,null,null,null,null,null,null,null,null,null,null,null,null,null,null,null,null,null,null,null,null,null,null,0]
[null,null,null,null,null,null,null,null,null,null,null,null,null,null,null,null,null,null,null,null,null,null,null,null,null,null,null,null,null,null,null,null,null,null,null,null,null,null,null,null,null,null,null,null,null,0]
[null,null,null,null,null,null,null,null,null,null,null,null,null,null,null,null,null,null,null,null,null,null,null,null,null,null,null,null,null,null,null,null,null,null,null,null,null,null,null,null,null,null,null,null,null,0]
[null,null,null,null,null,null,null,null,null,null,null,null,null,null,null,null,null,null,null,null,null,null,null,null,null,null,null,null,null,null,null,null,null,null,null,null,null,null,null,null,null,null,null,null,null,0]
[null,null,null,null,null,null,null,null,null,null,null,null,null,null,null,null,null,null,null,null,null,null,null,null,null,null,null,null,null,null,null,null,null,null,null,null,null,null,null,null,null,null,null,null,null,0]
[null,null,null,null,null,null,null,null,null,null,null,null,null,null,null,null,null,null,null,null,null,null,null,null,null,null,null,null,null,null,null,null,null,null,null,null,null,null,null,null,null,null,null,null,null,0]
[null,null,null,null,null,null,null,null,null,null,null,null,null,null,null,null,null,null,null,null,null,null,null,null,null,null,null,null,null,null,null,null,null,null,null,null,null,null,null,null,null,null,null,null,null,0]
[null,null,null,null,null,null,null,null,null,null,null,null,null,null,null,null,null,null,null,null,null,null,null,null,null,null,null,null,null,null,null,null,null,null,null,null,null,null,null,null,null,null,null,null,null,0]
[null,null,null,null,null,null,null,null,null,null,null,null,null,null,null,null,null,null,null,null,null,null,null,null,null,null,null,null,null,null,null,null,null,null,null,null,null,null,null,null,null,null,null,null,null,0]
[null,null,null,null,null,null,null,null,null,null,null,null,null,null,null,null,null,null,null,null,null,null,null,null,null,null,null,null,null,null,null,null,null,null,null,null,null,null,null,null,null,null,null,null,null,0]
[null,null,null,null,null,null,null,null,null,null,null,null,null,null,null,null,null,null,null,null,null,null,null,null,null,null,null,null,null,null,null,null,null,null,null,null,null,null,null,null,null,null,null,null,null,0]
[null,null,null,null,null,null,null,null,null,null,null,null,null,null,null,null,null,null,null,null,null,null,null,null,null,null,null,null,null,null,null,null,null,null,null,null,null,null,null,null,null,null,null,null,null,0]
[null,null,null,null,null,null,null,null,null,null,null,null,null,null,null,null,null,null,null,null,null,null,null,null,null,null,null,null,null,null,null,null,null,null,null,null,null,null,null,null,null,null,null,null,null,0]

{"sheet":"SBS File Check","index":4,"n_rows":269,"n_cols":10,"rows_kept":269,"cut":false,"hidden":true,"merged":[]}
[null,"2018/19 SCHOOL BUDGET SHARE ADDITIONS file as at 02/5/2019"]
[null,"DOE No","Fund Centre","Cheque Book","School Name","Fair Funding\nFormula\nBudget Share\n","PE and Sport Grant"]
[]
[null,1027,"REAYW","","ADDERLEY Nurs",0,null,null,{"$f":"IFERROR(VLOOKUP(B4,'October figures 18 AY 18-19'!$B$3:$G$208,6,FALSE),0)-G4","v":0}]
[null,1017,"REAYX","CB","ALLENS CROFT Nurs",2300100007,null,null,{"$f":"IFERROR(VLOOKUP(B5,'October figures 18 AY 18-19'!$B$3:$G$208,6,FALSE),0)-G5","v":0}]
[null,1025,"REAYY","","BLOOMSBURY Nurs",0,null,null,{"$f":"IFERROR(VLOOKUP(B6,'October figures 18 AY 18-19'!$B$3:$G$208,6,FALSE),0)-G6","v":0}]
[null,1001,"REAYZ","","BORDESLEY GREEN Nurs",0,null,null,{"$f":"IFERROR(VLOOKUP(B7,'October figures 18 AY 18-19'!$B$3:$G$208,6,FALSE),0)-G7","v":0}]
[null,1002,"REAZA","","BREARLEY ST Nurs",0,null,null,{"$f":"IFERROR(VLOOKUP(B8,'October figures 18 AY 18-19'!$B$3:$G$208,6,FALSE),0)-G8","v":0}]
[null,1048,"REAZB","","CASTLE VALE Nurs",0,null,null,{"$f":"IFERROR(VLOOKUP(B9,'October figures 18 AY 18-19'!$B$3:$G$208,6,FALSE),0)-G9","v":0}]
[null,1802,"REAYF","","EDITH CADBURY Nrsy ",0,null,null,{"$f":"IFERROR(VLOOKUP(B10,'October figures 18 AY 18-19'!$B$3:$G$208,6,FALSE),0)-G10","v":0}]
[null,1026,"REAZC","","FEATHERSTONE Nurs",0,null,null,{"$f":"IFERROR(VLOOKUP(B11,'October figures 18 AY 18-19'!$B$3:$G$208,6,FALSE),0)-G11","v":0}]
[null,1006,"REAZD","","GARRETTS GREEN Nurs",0,null,null,{"$f":"IFERROR(VLOOKUP(B12,'October figures 18 AY 18-19'!$B$3:$G$208,6,FALSE),0)-G12","v":0}]
[null,1015,"REAZE","","GOODWAY Nurs",0,null,null,{"$f":"IFERROR(VLOOKUP(B13,'October figures 18 AY 18-19'!$B$3:$G$208,6,FALSE),0)-G13","v":0}]
[null,1022,"REAZF","","GRACELANDS Nurs",0,null,null,{"$f":"IFERROR(VLOOKUP(B14,'October figures 18 AY 18-19'!$B$3:$G$208,6,FALSE),0)-G14","v":0}]
[null,1010,"REAZG","","HIGHFIELD Nurs",0,null,null,{"$f":"IFERROR(VLOOKUP(B15,'October figures 18 AY 18-19'!$B$3:$G$208,6,FALSE),0)-G15","v":0}]
[null,1021,"REAZH","","HIGHTERS HEATH Nurs",0,null,null,{"$f":"IFERROR(VLOOKUP(B16,'October figures 18 AY 18-19'!$B$3:$G$208,6,FALSE),0)-G16","v":0}]
[null,1023,"REAZJ","","JAKEMAN Nurs",0,null,null,{"$f":"IFERROR(VLOOKUP(B17,'October figures 18 AY 18-19'!$B$3:$G$208,6,FALSE),0)-G17","v":0}]
[null,1016,"REAZK","","KINGS NORTON Nurs",0,null,null,{"$f":"IFERROR(VLOOKUP(B18,'October figures 18 AY 18-19'!$B$3:$G$208,6,FALSE),0)-G18","v":0}]
[null,1024,"REAZL","","LILLIAN DE LISSA Nurs",0,null,null,{"$f":"IFERROR(VLOOKUP(B19,'October figures 18 AY 18-19'!$B$3:$G$208,6,FALSE),0)-G19","v":0}]
[null,1012,"REAZM","","MARSH HILL Nurs",0,null,null,{"$f":"IFERROR(VLOOKUP(B20,'October figures 18 AY 18-19'!$B$3:$G$208,6,FALSE),0)-G20","v":0}]
[null,1028,"REAZN","","NEWTOWN Nurs",0,null,null,{"$f":"IFERROR(VLOOKUP(B21,'October figures 18 AY 18-19'!$B$3:$G$208,6,FALSE),0)-G21","v":0}]
[null,1049,"REAZP","","OSBORNE Nurs",0,null,null,{"$f":"IFERROR(VLOOKUP(B22,'October figures 18 AY 18-19'!$B$3:$G$208,6,FALSE),0)-G22","v":0}]
[null,1008,"REAZQ","","PERRY BEECHES Nurs",0,null,null,{"$f":"IFERROR(VLOOKUP(B23,'October figures 18 AY 18-19'!$B$3:$G$208,6,FALSE),0)-G23","v":0}]
[null,1018,"REAZT","","RUBERY Nurs",0,null,null,{"$f":"IFERROR(VLOOKUP(B24,'October figures 18 AY 18-19'!$B$3:$G$208,6,FALSE),0)-G24","v":0}]
[null,1000,"REAZU","","SELLY OAK Nurs",0,null,null,{"$f":"IFERROR(VLOOKUP(B25,'October figures 18 AY 18-19'!$B$3:$G$208,6,FALSE),0)-G25","v":0}]
[null,1038,"REAZV","","SHENLEY FIELDS Nurs",0,null,null,{"$f":"IFERROR(VLOOKUP(B26,'October figures 18 AY 18-19'!$B$3:$G$208,6,FALSE),0)-G26","v":0}]
[null,1009,"REAZR","","ST THOMAS Nurs",0,null,null,{"$f":"IFERROR(VLOOKUP(B27,'October figures 18 AY 18-19'!$B$3:$G$208,6,FALSE),0)-G27","v":0}]
[null,1019,"REAZW","","WASHWOOD HEATH Nurs",0,null,null,{"$f":"IFERROR(VLOOKUP(B28,'October figures 18 AY 18-19'!$B$3:$G$208,6,FALSE),0)-G28","v":0}]
[null,1020,"REAZX","","WEOLEY CASTLE Nurs",0,null,null,{"$f":"IFERROR(VLOOKUP(B29,'October figures 18 AY 18-19'!$B$3:$G$208,6,FALSE),0)-G29","v":0}]
[null,1014,"REAZY","","WEST HEATH Nurs",0,null,null,{"$f":"IFERROR(VLOOKUP(B30,'October figures 18 AY 18-19'!$B$3:$G$208,6,FALSE),0)-G30","v":0}]
[null,null,null,null,null,null,"REB25"]
[null,3318,"REAAA","","ABBEY RC JI ",0,8154,null,{"$f":"IFERROR(VLOOKUP(B32,'October figures 18 AY 18-19'!$B$3:$G$208,6,FALSE),0)-G32","v":0}]
[null,2010,"REAAD","CB","ADDERLEY JI ",2300100156,8842,null,{"$f":"IFERROR(VLOOKUP(B33,'October figures 18 AY 18-19'!$B$3:$G$208,6,FALSE),0)-G33","v":0}]
[null,5949,"REAAE","","AL-FURQAN JI ",0,8908,null,{"$f":"IFERROR(VLOOKUP(B34,'October figures 18 AY 18-19'!$B$3:$G$208,6,FALSE),0)-G34","v":0}]
[null,2153,"REAAH","","ALLENS CROFT JI ",0,7917,null,{"$f":"IFERROR(VLOOKUP(B35,'October figures 18 AY 18-19'!$B$3:$G$208,6,FALSE),0)-G35","v":0}]
[null,2062,"REAAK","CB","ANDERTON PARK JI NC",2300100101,9096,null,{"$f":"IFERROR(VLOOKUP(B36,'October figures 18 AY 18-19'!$B$3:$G$208,6,FALSE),0)-G36","v":0}]
[null,2479,"REAAM","","ANGLESEY JI NC",0,9075,null,{"$f":"IFERROR(VLOOKUP(B37,'October figures 18 AY 18-19'!$B$3:$G$208,6,FALSE),0)-G37","v":0}]
[null,2300,"REAAN","","ARDEN JI NC",0,8917,null,{"$f":"IFERROR(VLOOKUP(B38,'October figures 18 AY 18-19'!$B$3:$G$208,6,FALSE),0)-G38","v":0}]
[null,2026,"REAAV","","BANNERS GATE PRIMARY SCHOOL JI NC",0,8021,null,{"$f":"IFERROR(VLOOKUP(B39,'October figures 18 AY 18-19'!$B$3:$G$208,6,FALSE),0)-G39","v":0}]
[null,2014,"REAAW","","BARFORD JI NC",0,8129,null,{"$f":"IFERROR(VLOOKUP(B40,'October figures 18 AY 18-19'!$B$3:$G$208,6,FALSE),0)-G40","v":0}]
[null,2239,"REAAY","","BELLFIELD I NC",0,7408,null,{"$f":"IFERROR(VLOOKUP(B41,'October figures 18 AY 18-19'!$B$3:$G$208,6,FALSE),0)-G41","v":0}]
[null,2241,"REAAZ","","BELLFIELD J ",0,7729,null,{"$f":"IFERROR(VLOOKUP(B42,'October figures 18 AY 18-19'!$B$3:$G$208,6,FALSE),0)-G42","v":0}]
[null,2456,"REABA","","BELLS FARM JI ",0,7383,null,{"$f":"IFERROR(VLOOKUP(B43,'October figures 18 AY 18-19'!$B$3:$G$208,6,FALSE),0)-G43","v":0}]
[null,2435,"REABB","","BENSON JI NC",0,8554,null,{"$f":"IFERROR(VLOOKUP(B44,'October figures 18 AY 18-19'!$B$3:$G$208,6,FALSE),0)-G44","v":0}]
[null,2025,"REABE","","BIRCHES GREEN I NC",0,7150,null,{"$f":"IFERROR(VLOOKUP(B45,'October figures 18 AY 18-19'!$B$3:$G$208,6,FALSE),0)-G45","v":0}]
[null,2024,"REABF","","BIRCHES GREEN J ",0,7596,null,{"$f":"IFERROR(VLOOKUP(B46,'October figures 18 AY 18-19'!$B$3:$G$208,6,FALSE),0)-G46","v":0}]
[null,2254,"REABK","CB","BLAKESLEY HALL JI ",2300100033,8896,null,{"$f":"IFERROR(VLOOKUP(B47,'October figures 18 AY 18-19'!$B$3:$G$208,6,FALSE),0)-G47","v":0}]
[null,2402,"REABL","CB","BOLDMERE I NC",2300100009,7417,null,{"$f":"IFERROR(VLOOKUP(B48,'October figures 18 AY 18-19'!$B$3:$G$208,6,FALSE),0)-G48","v":0}]
[null,2401,"REABM","CB","BOLDMERE J ",2300100046,8175,null,{"$f":"IFERROR(VLOOKUP(B49,'October figures 18 AY 18-19'!$B$3:$G$208,6,FALSE),0)-G49","v":0}]
[null,2030,"REABN","CB","BORDESLEY GREEN JI NC",2300100051,9158,null,{"$f":"IFERROR(VLOOKUP(B50,'October figures 18 AY 18-19'!$B$3:$G$208,6,FALSE),0)-G50","v":0}]
[null,3354,"REABQ","","BOURNVILLE I ",0,7417,null,{"$f":"IFERROR(VLOOKUP(B51,'October figures 18 AY 18-19'!$B$3:$G$208,6,FALSE),0)-G51","v":0}]
[null,3353,"REABR","","BOURNVILLE J ",0,8258,null,{"$f":"IFERROR(VLOOKUP(B52,'October figures 18 AY 18-19'!$B$3:$G$208,6,FALSE),0)-G52","v":7417}]
[null,2238,"REABT","CB","BROADMEADOW I NC",2300100006,7154,null,{"$f":"IFERROR(VLOOKUP(B53,'October figures 18 AY 18-19'!$B$3:$G$208,6,FALSE),0)-G53","v":0}]
[null,2236,"REABV","CB","BROADMEADOW J ",2300100034,7600,null,{"$f":"IFERROR(VLOOKUP(B54,'October figures 18 AY 18-19'!$B$3:$G$208,6,FALSE),0)-G54","v":0}]
[null,2465,"REACB","","CALSHOT JI NC",0,8162,null,{"$f":"IFERROR(VLOOKUP(B55,'October figures 18 AY 18-19'!$B$3:$G$208,6,FALSE),0)-G55","v":0}]
[null,2312,"REACD","","CHAD VALE JI ",0,8171,null,{"$f":"IFERROR(VLOOKUP(B56,'October figures 18 AY 18-19'!$B$3:$G$208,6,FALSE),0)-G56","v":0}]
[null,2040,"REACF","","CHERRY ORCHARD JI NC",0,8221,null,{"$f":"IFERROR(VLOOKUP(B57,'October figures 18 AY 18-19'!$B$3:$G$208,6,FALSE),0)-G57","v":0}]
[null,2251,"REACG","CB","CHILCOTE JI NC",2300000059,8162,null,{"$f":"IFERROR(VLOOKUP(B58,'October figures 18 AY 18-19'!$B$3:$G$208,6,FALSE),0)-G58","v":0}]
[null,3319,"REACJ","CB","CHRIST THE KING RC JI NC",2300100054,7987,null,{"$f":"IFERROR(VLOOKUP(B59,'October figures 18 AY 18-19'!$B$3:$G$208,6,FALSE),0)-G59","v":0}]
[null,3002,"REACK","CB","CHRISTCHURCH CE JI NC",2300100068,7417,null,{"$f":"IFERROR(VLOOKUP(B60,'October figures 18 AY 18-19'!$B$3:$G$208,6,FALSE),0)-G60","v":0}]
[null,3432,"REACN","","CLIFTON JI NC",0,9662,null,{"$f":"IFERROR(VLOOKUP(B61,'October figures 18 AY 18-19'!$B$3:$G$208,6,FALSE),0)-G61","v":0}]
[null,2289,"REACP","","COFTON JI ",0,7817,null,{"$f":"IFERROR(VLOOKUP(B62,'October figures 18 AY 18-19'!$B$3:$G$208,6,FALSE),0)-G62","v":0}]
[null,2185,"REACQ","","COLEBOURNE JI ",0,8171,null,{"$f":"IFERROR(VLOOKUP(B63,'October figures 18 AY 18-19'!$B$3:$G$208,6,FALSE),0)-G63","v":0}]
[null,2054,"REACV","CB","COLMORE I NC",2300000073,7667,null,{"$f":"IFERROR(VLOOKUP(B64,'October figures 18 AY 18-19'!$B$3:$G$208,6,FALSE),0)-G64","v":0}]
[null,2053,"REACW","CB","COLMORE J ",2300000071,8658,null,{"$f":"IFERROR(VLOOKUP(B65,'October figures 18 AY 18-19'!$B$3:$G$208,6,FALSE),0)-G65","v":0}]
[null,2464,"REACY","","COPPICE JI ",0,8183,null,{"$f":"IFERROR(VLOOKUP(B66,'October figures 18 AY 18-19'!$B$3:$G$208,6,FALSE),0)-G66","v":0}]
[null,3320,"REACZ","","CORPUS CHRISTI RC JI ",0,8158,null,{"$f":"IFERROR(VLOOKUP(B67,'October figures 18 AY 18-19'!$B$3:$G$208,6,FALSE),0)-G67","v":0}]
[null,2055,"READA","","COTTERIDGE JI NC",0,8112,null,{"$f":"IFERROR(VLOOKUP(B68,'October figures 18 AY 18-19'!$B$3:$G$208,6,FALSE),0)-G68","v":0}]
[null,2191,"READD","","COURT FARM JI ",0,7408,null,{"$f":"IFERROR(VLOOKUP(B69,'October figures 18 AY 18-19'!$B$3:$G$208,6,FALSE),0)-G69","v":0}]
[null,2284,"READG","","DEYKIN AVENUE JI ",0,7417,null,{"$f":"IFERROR(VLOOKUP(B70,'October figures 18 AY 18-19'!$B$3:$G$208,6,FALSE),0)-G70","v":0}]
[null,2454,"READJ","","ELMS FARM JI NC",0,7971,null,{"$f":"IFERROR(VLOOKUP(B71,'October figures 18 AY 18-19'!$B$3:$G$208,6,FALSE),0)-G71","v":0}]
[null,3321,"READK","","ENGLISH MARTYRS RC JI ",0,8142,null,{"$f":"IFERROR(VLOOKUP(B72,'October figures 18 AY 18-19'!$B$3:$G$208,6,FALSE),0)-G72","v":0}]
[null,2294,"READN","","FEATHERSTONE JI ",0,8012,null,{"$f":"IFERROR(VLOOKUP(B73,'October figures 18 AY 18-19'!$B$3:$G$208,6,FALSE),0)-G73","v":0}]
[null,2486,"READY","","FORESTDALE JI NC",0,7408,null,{"$f":"IFERROR(VLOOKUP(B74,'October figures 18 AY 18-19'!$B$3:$G$208,6,FALSE),0)-G74","v":0}]
[null,3435,"READX","","FOUR OAKS JI ",0,8171,null,{"$f":"IFERROR(VLOOKUP(B75,'October figures 18 AY 18-19'!$B$3:$G$208,6,FALSE),0)-G75","v":0}]
[null,2079,"READZ","","GEORGE DIXON JI ",0,8071,null,{"$f":"IFERROR(VLOOKUP(B76,'October figures 18 AY 18-19'!$B$3:$G$208,6,FALSE),0)-G76","v":0}]
[null,2081,"REAEA","","GILBERTSTONE JI NC",0,8175,null,{"$f":"IFERROR(VLOOKUP(B77,'October figures 18 AY 18-19'!$B$3:$G$208,6,FALSE),0)-G77","v":0}]
[null,2296,"REAEB","CB","GLENMEAD JI ",2300100146,8112,null,{"$f":"IFERROR(VLOOKUP(B78,'October figures 18 AY 18-19'!$B$3:$G$208,6,FALSE),0)-G78","v":0}]
[null,2087,"REAEH","","GRENDON JI NC",0,7842,null,{"$f":"IFERROR(VLOOKUP(B79,'October figures 18 AY 18-19'!$B$3:$G$208,6,FALSE),0)-G79","v":0}]
[null,2466,"REAEK","","GROVE JI NC",0,8912,null,{"$f":"IFERROR(VLOOKUP(B80,'October figures 18 AY 18-19'!$B$3:$G$208,6,FALSE),0)-G80","v":0}]
[null,3316,"REAEL","","GUARDIAN ANGELS RC JI ",0,7546,null,{"$f":"IFERROR(VLOOKUP(B81,'October figures 18 AY 18-19'!$B$3:$G$208,6,FALSE),0)-G81","v":0}]
[null,2091,"REAEM","","GUNTER JI NC",0,7408,null,{"$f":"IFERROR(VLOOKUP(B82,'October figures 18 AY 18-19'!$B$3:$G$208,6,FALSE),0)-G82","v":0}]
[null,2093,"REAEN","","HALL GREEN I NC",0,7667,null,{"$f":"IFERROR(VLOOKUP(B83,'October figures 18 AY 18-19'!$B$3:$G$208,6,FALSE),0)-G83","v":0}]
[null,2092,"REAEP","CB","HALL GREEN J ",2300100121,8658,null,{"$f":"IFERROR(VLOOKUP(B84,'October figures 18 AY 18-19'!$B$3:$G$208,6,FALSE),0)-G84","v":0}]
[null,2477,"REAER","","HARBORNE JI ",0,8908,null,{"$f":"IFERROR(VLOOKUP(B85,'October figures 18 AY 18-19'!$B$3:$G$208,6,FALSE),0)-G85","v":0}]
[null,3436,"REAHP","","HARPER BELL PRIMARY JI NC",0,7375,null,{"$f":"IFERROR(VLOOKUP(B86,'October figures 18 AY 18-19'!$B$3:$G$208,6,FALSE),0)-G86","v":0}]
[null,2099,"REAEW","","HAWTHORN JI ",0,7404,null,{"$f":"IFERROR(VLOOKUP(B87,'October figures 18 AY 18-19'!$B$3:$G$208,6,FALSE),0)-G87","v":0}]
[null,2313,"REAEX","","HEATH MOUNT JI ",0,8133,null,{"$f":"IFERROR(VLOOKUP(B88,'October figures 18 AY 18-19'!$B$3:$G$208,6,FALSE),0)-G88","v":0}]
[null,2438,"REAFB","","HIGHTERS HEATH JI ",0,7404,null,{"$f":"IFERROR(VLOOKUP(B89,'October figures 18 AY 18-19'!$B$3:$G$208,6,FALSE),0)-G89","v":0}]
[null,2429,"REAFG","","HOLLAND HOUSE I NC",0,7167,null,{"$f":"IFERROR(VLOOKUP(B90,'October figures 18 AY 18-19'!$B$3:$G$208,6,FALSE),0)-G90","v":0}]
[null,3411,"REAFH","","HOLLY HILL I NC",0,7158,null,{"$f":"IFERROR(VLOOKUP(B91,'October figures 18 AY 18-19'!$B$3:$G$208,6,FALSE),0)-G91","v":0}]
[null,2474,"REAFK","","HOLLYFIELD JI ",0,8142,null,{"$f":"IFERROR(VLOOKUP(B92,'October figures 18 AY 18-19'!$B$3:$G$208,6,FALSE),0)-G92","v":0}]
[null,2288,"REAFL","","HOLLYWOOD JI ",0,8208,null,{"$f":"IFERROR(VLOOKUP(B93,'October figures 18 AY 18-19'!$B$3:$G$208,6,FALSE),0)-G93","v":0}]
[null,3317,"REAFP","","HOLY FAMILY RC JI NC",0,7504,null,{"$f":"IFERROR(VLOOKUP(B94,'October figures 18 AY 18-19'!$B$3:$G$208,6,FALSE),0)-G94","v":0}]
[null,3327,"REAFQ","","HOLY SOULS RC JI ",0,1633.4,null,{"$f":"IFERROR(VLOOKUP(B95,'October figures 18 AY 18-19'!$B$3:$G$208,6,FALSE),0)-G95","v":6533.6},"making 1/5th allocation "]
[null,2015,"REAFT","CB","JAMES WATT JI NC",2300100041,8167,null,{"$f":"IFERROR(VLOOKUP(B96,'October figures 18 AY 18-19'!$B$3:$G$208,6,FALSE),0)-G96","v":0}]
[null,3352,"REAFW","","KING DAVID JI NC",0,7400,null,{"$f":"IFERROR(VLOOKUP(B97,'October figures 18 AY 18-19'!$B$3:$G$208,6,FALSE),0)-G97","v":0}]
[null,2005,"REAFY","","KINGS HEATH JI NC",0,8996,null,{"$f":"IFERROR(VLOOKUP(B98,'October figures 18 AY 18-19'!$B$3:$G$208,6,FALSE),0)-G98","v":0}]
[null,2118,"REAFZ","","KINGS NORTON JI ",0,8150,null,{"$f":"IFERROR(VLOOKUP(B99,'October figures 18 AY 18-19'!$B$3:$G$208,6,FALSE),0)-G99","v":0}]
[null,2115,"REAGB","","KINGSLAND JI NC",0,7729,null,{"$f":"IFERROR(VLOOKUP(B100,'October figures 18 AY 18-19'!$B$3:$G$208,6,FALSE),0)-G100","v":0}]
[null,2441,"REAGC","","KINGSTHORNE JI NC",0,8108,null,{"$f":"IFERROR(VLOOKUP(B101,'October figures 18 AY 18-19'!$B$3:$G$208,6,FALSE),0)-G101","v":0}]
[null,2321,"REAGD","","KITWELL JI NC",0,7421,null,{"$f":"IFERROR(VLOOKUP(B102,'October figures 18 AY 18-19'!$B$3:$G$208,6,FALSE),0)-G102","v":0}]
[null,2189,"REAGE","","LADYPOOL JI NC",0,8042,null,{"$f":"IFERROR(VLOOKUP(B103,'October figures 18 AY 18-19'!$B$3:$G$208,6,FALSE),0)-G103","v":0}]
[null,2119,"REAGF","","LAKEY LANE JI NC",0,8171,null,{"$f":"IFERROR(VLOOKUP(B104,'October figures 18 AY 18-19'!$B$3:$G$208,6,FALSE),0)-G104","v":0}]
[null,2462,"REAGK","CB","LITTLE SUTTON JI ",2300100057,8167,null,{"$f":"IFERROR(VLOOKUP(B105,'October figures 18 AY 18-19'!$B$3:$G$208,6,FALSE),0)-G105","v":0}]
[null,2127,"REAGL","CB","LOZELLS JI NC",2300100081,8175,null,{"$f":"IFERROR(VLOOKUP(B106,'October figures 18 AY 18-19'!$B$3:$G$208,6,FALSE),0)-G106","v":0}]
[null,2129,"REAGM","CB","LYNDON GREEN I ",2300100099,7454,null,{"$f":"IFERROR(VLOOKUP(B107,'October figures 18 AY 18-19'!$B$3:$G$208,6,FALSE),0)-G107","v":0}]
[null,2128,"REAGN","CB","LYNDON GREEN J ",2300100035,8212,null,{"$f":"IFERROR(VLOOKUP(B108,'October figures 18 AY 18-19'!$B$3:$G$208,6,FALSE),0)-G108","v":0}]
[null,2420,"REAGP","","MANEY HILL JI ",0,7667,null,{"$f":"IFERROR(VLOOKUP(B109,'October figures 18 AY 18-19'!$B$3:$G$208,6,FALSE),0)-G109","v":0}]
[null,2004,"REAGV","","MAPLEDENE JI NC",0,7837,null,{"$f":"IFERROR(VLOOKUP(B110,'October figures 18 AY 18-19'!$B$3:$G$208,6,FALSE),0)-G110","v":0}]
[null,2133,"REAGY","CB","MARSH HILL JI ",2300100076,8137,null,{"$f":"IFERROR(VLOOKUP(B111,'October figures 18 AY 18-19'!$B$3:$G$208,6,FALSE),0)-G111","v":0}]
[null,3322,"REAGZ","CB","MARYVALE RC JI NC",2300100131,7396,null,{"$f":"IFERROR(VLOOKUP(B112,'October figures 18 AY 18-19'!$B$3:$G$208,6,FALSE),0)-G112","v":0}]
[null,2246,"REAHA","","MEADOWS JI ",0,8737,null,{"$f":"IFERROR(VLOOKUP(B113,'October figures 18 AY 18-19'!$B$3:$G$208,6,FALSE),0)-G113","v":0}]
[null,2406,"REAHC","","MINWORTH JI ",0,7396,null,{"$f":"IFERROR(VLOOKUP(B114,'October figures 18 AY 18-19'!$B$3:$G$208,6,FALSE),0)-G114","v":0}]
[null,2416,"REAHG","","MOOR HALL JI ",0,7554,null,{"$f":"IFERROR(VLOOKUP(B115,'October figures 18 AY 18-19'!$B$3:$G$208,6,FALSE),0)-G115","v":0}]
[null,3003,"REAHH","","MOSELEY CE JI ",0,7429,null,{"$f":"IFERROR(VLOOKUP(B116,'October figures 18 AY 18-19'!$B$3:$G$208,6,FALSE),0)-G116","v":0}]
[null,2142,"REAHL","","NELSON JI NC",0,7983,null,{"$f":"IFERROR(VLOOKUP(B117,'October figures 18 AY 18-19'!$B$3:$G$208,6,FALSE),0)-G117","v":0}]
[null,2457,"REAHM","","NELSON MANDELA JI NC",0,8179,null,{"$f":"IFERROR(VLOOKUP(B118,'October figures 18 AY 18-19'!$B$3:$G$208,6,FALSE),0)-G118","v":0}]
[null,2469,"REAHN","","NEW HALL JI NC",0,7967,null,{"$f":"IFERROR(VLOOKUP(B119,'October figures 18 AY 18-19'!$B$3:$G$208,6,FALSE),0)-G119","v":0}]
[null,3431,"REAHQ","","NEW OSCOTT JI NC",0,8908,null,{"$f":"IFERROR(VLOOKUP(B120,'October figures 18 AY 18-19'!$B$3:$G$208,6,FALSE),0)-G120","v":0}]
[null,2018,"REAKP","","OAKS, THE JI NC",0,7979,null,{"$f":"IFERROR(VLOOKUP(B121,'October figures 18 AY 18-19'!$B$3:$G$208,6,FALSE),0)-G121","v":0}]
[null,3323,"REAHX","","ORATORY RC JI NC",0,7417,null,{"$f":"IFERROR(VLOOKUP(B122,'October figures 18 AY 18-19'!$B$3:$G$208,6,FALSE),0)-G122","v":0}]
[null,2436,"REAHY","","OSBORNE JI ",0,7533,null,{"$f":"IFERROR(VLOOKUP(B123,'October figures 18 AY 18-19'!$B$3:$G$208,6,FALSE),0)-G123","v":0}]
[null,3351,"REAHZ","","OUR LADY AND ST ROSE RC JI NC",0,7425,null,{"$f":"IFERROR(VLOOKUP(B124,'October figures 18 AY 18-19'!$B$3:$G$208,6,FALSE),0)-G124","v":0}]
[null,3328,"REAJB","","OUR LADY OF LOURDES RC JI NC",0,7417,null,{"$f":"IFERROR(VLOOKUP(B125,'October figures 18 AY 18-19'!$B$3:$G$208,6,FALSE),0)-G125","v":0}]
[null,3357,"REAJC","","OUR LADY'S RC JI ",0,7404,null,{"$f":"IFERROR(VLOOKUP(B126,'October figures 18 AY 18-19'!$B$3:$G$208,6,FALSE),0)-G126","v":0}]
[null,2021,"REAJE","","PAGANEL JI NC",0,8033,null,{"$f":"IFERROR(VLOOKUP(B127,'October figures 18 AY 18-19'!$B$3:$G$208,6,FALSE),0)-G127","v":0}]
[null,2149,"REAJF","","PAGET JI NC",0,8125,null,{"$f":"IFERROR(VLOOKUP(B128,'October figures 18 AY 18-19'!$B$3:$G$208,6,FALSE),0)-G128","v":0}]
[null,2150,"REAJG","","PARK HILL JI NC",0,8642,null,{"$f":"IFERROR(VLOOKUP(B129,'October figures 18 AY 18-19'!$B$3:$G$208,6,FALSE),0)-G129","v":0}]
[null,2425,"REAJK","","PENNS JI ",0,7417,null,{"$f":"IFERROR(VLOOKUP(B130,'October figures 18 AY 18-19'!$B$3:$G$208,6,FALSE),0)-G130","v":0}]
[null,2017,"REAJM","","BEECHES I (formerly PERRY BEECHES I) ",0,7408,null,{"$f":"IFERROR(VLOOKUP(B131,'October figures 18 AY 18-19'!$B$3:$G$208,6,FALSE),0)-G131","v":0}]
[null,2016,"REAJN","","PERRY BEECHES J ",0,8179,null,{"$f":"IFERROR(VLOOKUP(B132,'October figures 18 AY 18-19'!$B$3:$G$208,6,FALSE),0)-G132","v":0}]
[null,2157,"REAJX","","RADDLEBARN JI NC",0,8112,null,{"$f":"IFERROR(VLOOKUP(B133,'October figures 18 AY 18-19'!$B$3:$G$208,6,FALSE),0)-G133","v":0}]
[null,2159,"REAJZ","","REDHILL JI NC",0,7417,null,{"$f":"IFERROR(VLOOKUP(B134,'October figures 18 AY 18-19'!$B$3:$G$208,6,FALSE),0)-G134","v":0}]
[null,2161,"REAKA","","REDNAL HILL I NC",0,7417,null,{"$f":"IFERROR(VLOOKUP(B135,'October figures 18 AY 18-19'!$B$3:$G$208,6,FALSE),0)-G135","v":0}]
[null,2160,"REAKB","","REDNAL HILL J ",0,8046,null,{"$f":"IFERROR(VLOOKUP(B136,'October figures 18 AY 18-19'!$B$3:$G$208,6,FALSE),0)-G136","v":0}]
[null,2063,"REAKC","","REGENTS PARK JI NC",0,8867,null,{"$f":"IFERROR(VLOOKUP(B137,'October figures 18 AY 18-19'!$B$3:$G$208,6,FALSE),0)-G137","v":0}]
[null,3325,"REAKH","","ROSARY RC JI NC",0,8100,null,{"$f":"IFERROR(VLOOKUP(B138,'October figures 18 AY 18-19'!$B$3:$G$208,6,FALSE),0)-G138","v":0}]
[null,3409,"REAKJ","","SACRED HEART RC JI ",0,7458,null,{"$f":"IFERROR(VLOOKUP(B139,'October figures 18 AY 18-19'!$B$3:$G$208,6,FALSE),0)-G139","v":0}]
[null,2169,"REAKK","","SEVERNE JI NC",0,8187,null,{"$f":"IFERROR(VLOOKUP(B140,'October figures 18 AY 18-19'!$B$3:$G$208,6,FALSE),0)-G140","v":0}]
[null,2008,"REAKL","","SHAW HILL JI NC",0,8183,null,{"$f":"IFERROR(VLOOKUP(B141,'October figures 18 AY 18-19'!$B$3:$G$208,6,FALSE),0)-G141","v":0}]
[null,2174,"REAKR","CB","SLADEFIELD I ",2300000060,7667,null,{"$f":"IFERROR(VLOOKUP(B142,'October figures 18 AY 18-19'!$B$3:$G$208,6,FALSE),0)-G142","v":0}]
[null,2176,"REAKT","","SOMERVILLE JI NC",0,9154,null,{"$f":"IFERROR(VLOOKUP(B143,'October figures 18 AY 18-19'!$B$3:$G$208,6,FALSE),0)-G143","v":0}]
[null,3381,"REAKX","","ST ALBANS RC JI ",0,7404,null,{"$f":"IFERROR(VLOOKUP(B144,'October figures 18 AY 18-19'!$B$3:$G$208,6,FALSE),0)-G144","v":0}]
[null,3380,"REAKY","","ST AMBROSE BARLOW RC JI ",0,7408,null,{"$f":"IFERROR(VLOOKUP(B145,'October figures 18 AY 18-19'!$B$3:$G$208,6,FALSE),0)-G145","v":0}]
[null,3335,"REALA","","ST ANNE'S RC JI ",0,7392,null,{"$f":"IFERROR(VLOOKUP(B146,'October figures 18 AY 18-19'!$B$3:$G$208,6,FALSE),0)-G146","v":0}]
[null,3329,"REALB","","ST AUGUSTINE'S RC JI NC",0,7396,null,{"$f":"IFERROR(VLOOKUP(B147,'October figures 18 AY 18-19'!$B$3:$G$208,6,FALSE),0)-G147","v":0}]
[null,3302,"REALC","","ST BARNABAS CE JI NC",0,8033,null,{"$f":"IFERROR(VLOOKUP(B148,'October figures 18 AY 18-19'!$B$3:$G$208,6,FALSE),0)-G148","v":0}]
[null,2183,"REALD","","ST BENEDICT'S I NC",0,7575,null,{"$f":"IFERROR(VLOOKUP(B149,'October figures 18 AY 18-19'!$B$3:$G$208,6,FALSE),0)-G149","v":0}]
[null,3372,"REALE","","ST BERNADETTE'S RC JI NC",0,8892,null,{"$f":"IFERROR(VLOOKUP(B150,'October figures 18 AY 18-19'!$B$3:$G$208,6,FALSE),0)-G150","v":0}]
[null,3375,"REALF","","ST BERNARD'S RC JI ",0,8158,null,{"$f":"IFERROR(VLOOKUP(B151,'October figures 18 AY 18-19'!$B$3:$G$208,6,FALSE),0)-G151","v":0}]
[null,3331,"REALH","","ST CATHERINE'S RC JI NC",0,7442,null,{"$f":"IFERROR(VLOOKUP(B152,'October figures 18 AY 18-19'!$B$3:$G$208,6,FALSE),0)-G152","v":0}]
[null,3337,"REALJ","","ST CHAD'S RC JI ",0,7433,null,{"$f":"IFERROR(VLOOKUP(B153,'October figures 18 AY 18-19'!$B$3:$G$208,6,FALSE),0)-G153","v":0}]
[null,3406,"REALK","","ST CLARE'S RC JI NC",0,8171,null,{"$f":"IFERROR(VLOOKUP(B154,'October figures 18 AY 18-19'!$B$3:$G$208,6,FALSE),0)-G154","v":0}]
[null,3386,"REALN","","ST CUTHBERTS RC JI NC",0,7417,null,{"$f":"IFERROR(VLOOKUP(B155,'October figures 18 AY 18-19'!$B$3:$G$208,6,FALSE),0)-G155","v":0}]
[null,3363,"REALP","CB","ST DUNSTAN'S RC JI NC",2300100036,8046,null,{"$f":"IFERROR(VLOOKUP(B156,'October figures 18 AY 18-19'!$B$3:$G$208,6,FALSE),0)-G156","v":0}]
[null,3347,"REALQ","","ST EDMUND'S RC JI NC",0,7417,null,{"$f":"IFERROR(VLOOKUP(B157,'October figures 18 AY 18-19'!$B$3:$G$208,6,FALSE),0)-G157","v":0}]
[null,3355,"REALR","","ST EDWARD'S RC JI ",0,8112,null,{"$f":"IFERROR(VLOOKUP(B158,'October figures 18 AY 18-19'!$B$3:$G$208,6,FALSE),0)-G158","v":0}]
[null,3342,"REALV","","ST FRANCIS RC JI ",0,8162,null,{"$f":"IFERROR(VLOOKUP(B159,'October figures 18 AY 18-19'!$B$3:$G$208,6,FALSE),0)-G159","v":0}]
[null,3367,"REALY","","ST GERARD'S RC JI NC",0,7408,null,{"$f":"IFERROR(VLOOKUP(B160,'October figures 18 AY 18-19'!$B$3:$G$208,6,FALSE),0)-G160","v":0}]
[null,3010,"REALZ","","ST JAMES CE JI ",0,8171,null,{"$f":"IFERROR(VLOOKUP(B161,'October figures 18 AY 18-19'!$B$3:$G$208,6,FALSE),0)-G161","v":0}]
[null,3410,"REAMB","","ST JOHN & ST MONICA RC JI ",0,7421,null,{"$f":"IFERROR(VLOOKUP(B162,'October figures 18 AY 18-19'!$B$3:$G$208,6,FALSE),0)-G162","v":0}]
[null,3360,"REAMC","","ST JOHN FISHER'S RC JI ",0,7408,null,{"$f":"IFERROR(VLOOKUP(B163,'October figures 18 AY 18-19'!$B$3:$G$208,6,FALSE),0)-G163","v":0}]
[null,3339,"REAMG","","ST JOSEPH'S RC (B7) JI ",0,7387,null,{"$f":"IFERROR(VLOOKUP(B164,'October figures 18 AY 18-19'!$B$3:$G$208,6,FALSE),0)-G164","v":0}]
[null,3377,"REAMJ","CB","ST JUDE'S RC JI ",2300100077,7379,null,{"$f":"IFERROR(VLOOKUP(B165,'October figures 18 AY 18-19'!$B$3:$G$208,6,FALSE),0)-G165","v":0}]
[null,3371,"REAMK","CB","ST LAURENCE CE I ",2300100141,7417,null,{"$f":"IFERROR(VLOOKUP(B166,'October figures 18 AY 18-19'!$B$3:$G$208,6,FALSE),0)-G166","v":0}]
[null,3307,"REAML","","ST LAURENCE CE J ",0,8167,null,{"$f":"IFERROR(VLOOKUP(B167,'October figures 18 AY 18-19'!$B$3:$G$208,6,FALSE),0)-G167","v":0}]
[null,3361,"REAMN","","ST MARGARET MARY RC JI ",0,7717,null,{"$f":"IFERROR(VLOOKUP(B168,'October figures 18 AY 18-19'!$B$3:$G$208,6,FALSE),0)-G168","v":0}]
[null,3383,"REAMP","","ST MARK'S RC JI ",0,7417,null,{"$f":"IFERROR(VLOOKUP(B169,'October figures 18 AY 18-19'!$B$3:$G$208,6,FALSE),0)-G169","v":0}]
[null,3382,"REAMQ","","ST MARTIN de PORRES RC JI ",0,7396,null,{"$f":"IFERROR(VLOOKUP(B170,'October figures 18 AY 18-19'!$B$3:$G$208,6,FALSE),0)-G170","v":0}]
[null,3025,"REAMV","","ST MARY'S CE (B29) JI ",0,8033,null,{"$f":"IFERROR(VLOOKUP(B171,'October figures 18 AY 18-19'!$B$3:$G$208,6,FALSE),0)-G171","v":0}]
[null,3344,"REAMW","","ST MARY'S RC (B17) JI ",0,8171,null,{"$f":"IFERROR(VLOOKUP(B172,'October figures 18 AY 18-19'!$B$3:$G$208,6,FALSE),0)-G172","v":0}]
[null,3016,"REAMX","CB","ST MATTHEW'S CE JI ",2300100059,7400,null,{"$f":"IFERROR(VLOOKUP(B173,'October figures 18 AY 18-19'!$B$3:$G$208,6,FALSE),0)-G173","v":0}]
[null,3346,"REANB","","ST PATRICK'S RC JI ",0,7400,null,{"$f":"IFERROR(VLOOKUP(B174,'October figures 18 AY 18-19'!$B$3:$G$208,6,FALSE),0)-G174","v":0}]
[null,3428,"REANF","CB","ST PETER'S CE JI NC",2300100069,8171,null,{"$f":"IFERROR(VLOOKUP(B175,'October figures 18 AY 18-19'!$B$3:$G$208,6,FALSE),0)-G175","v":0}]
[null,3385,"REANG","","ST PETER'S RC JI ",0,7417,null,{"$f":"IFERROR(VLOOKUP(B176,'October figures 18 AY 18-19'!$B$3:$G$208,6,FALSE),0)-G176","v":0}]
[null,3019,"REANH","","ST SAVIOUR'S CE JI ",0,8129,null,{"$f":"IFERROR(VLOOKUP(B177,'October figures 18 AY 18-19'!$B$3:$G$208,6,FALSE),0)-G177","v":0}]
[null,3365,"REANJ","","ST TERESA'S RC JI ",0,7421,null,{"$f":"IFERROR(VLOOKUP(B178,'October figures 18 AY 18-19'!$B$3:$G$208,6,FALSE),0)-G178","v":0}]
[null,3349,"REANL","","ST THOMAS MORE'S RC JI ",0,7925,null,{"$f":"IFERROR(VLOOKUP(B179,'October figures 18 AY 18-19'!$B$3:$G$208,6,FALSE),0)-G179","v":0}]
[null,3310,"REANM","","ST VINCENT'S RC JI NC",0,7396,null,{"$f":"IFERROR(VLOOKUP(B180,'October figures 18 AY 18-19'!$B$3:$G$208,6,FALSE),0)-G180","v":0}]
[null,3359,"REANN","CB","ST WILFRID'S RC JI NC",2300100147,8008,null,{"$f":"IFERROR(VLOOKUP(B181,'October figures 18 AY 18-19'!$B$3:$G$208,6,FALSE),0)-G181","v":0}]
[null,2178,"REANP","","STANVILLE JI NC",0,7529,null,{"$f":"IFERROR(VLOOKUP(B182,'October figures 18 AY 18-19'!$B$3:$G$208,6,FALSE),0)-G182","v":0}]
[null,2179,"REANQ","","STARBANK JI NC",0,11225,null,{"$f":"IFERROR(VLOOKUP(B183,'October figures 18 AY 18-19'!$B$3:$G$208,6,FALSE),0)-G183","v":0}]
[null,2184,"REANR","","STECHFORD JI NC",0,8167,null,{"$f":"IFERROR(VLOOKUP(B184,'October figures 18 AY 18-19'!$B$3:$G$208,6,FALSE),0)-G184","v":0}]
[null,2097,"REAJP","CB","STORY WOOD SCHOOL AND CHILDREN'S CENTRE  JI NC",2300100093,7421,null,{"$f":"IFERROR(VLOOKUP(B185,'October figures 18 AY 18-19'!$B$3:$G$208,6,FALSE),0)-G185","v":0}]
[null,2067,"REANV","","SUMMERFIELD JI NC",0,8137,null,{"$f":"IFERROR(VLOOKUP(B186,'October figures 18 AY 18-19'!$B$3:$G$208,6,FALSE),0)-G186","v":0}]
[null,2190,"REANW","","SUNDRIDGE JI ",0,7404,null,{"$f":"IFERROR(VLOOKUP(B187,'October figures 18 AY 18-19'!$B$3:$G$208,6,FALSE),0)-G187","v":0}]
[null,2192,"REANY","","THORNTON JI ",0,9404,null,{"$f":"IFERROR(VLOOKUP(B188,'October figures 18 AY 18-19'!$B$3:$G$208,6,FALSE),0)-G188","v":0}]
[null,5203,"REAPH","CB","WALMLEY I NC",2300000045,7421,null,{"$f":"IFERROR(VLOOKUP(B189,'October figures 18 AY 18-19'!$B$3:$G$208,6,FALSE),0)-G189","v":0}]
[null,5202,"REAPJ","CB","WALMLEY J ",2300000044,8171,null,{"$f":"IFERROR(VLOOKUP(B190,'October figures 18 AY 18-19'!$B$3:$G$208,6,FALSE),0)-G190","v":0}]
[null,2108,"REAPK","","WARD END JI NC",0,9808,null,{"$f":"IFERROR(VLOOKUP(B191,'October figures 18 AY 18-19'!$B$3:$G$208,6,FALSE),0)-G191","v":0}]
[null,2306,"REAPM","","WATERMILL JI ",0,7387,null,{"$f":"IFERROR(VLOOKUP(B192,'October figures 18 AY 18-19'!$B$3:$G$208,6,FALSE),0)-G192","v":0}]
[null,2482,"REAPP","","WATTVILLE JI NC",0,8367,null,{"$f":"IFERROR(VLOOKUP(B193,'October figures 18 AY 18-19'!$B$3:$G$208,6,FALSE),0)-G193","v":0}]
[null,2308,"REAPQ","CB","WELFORD JI NC",2300000024,8179,null,{"$f":"IFERROR(VLOOKUP(B194,'October figures 18 AY 18-19'!$B$3:$G$208,6,FALSE),0)-G194","v":0}]
[null,2245,"REAPR","","WELSH HOUSE FARM JI NC",0,7442,null,{"$f":"IFERROR(VLOOKUP(B195,'October figures 18 AY 18-19'!$B$3:$G$208,6,FALSE),0)-G195","v":0}]
[null,2019,"REAPV","","WEST HEATH JI ",0,8146,null,{"$f":"IFERROR(VLOOKUP(B196,'October figures 18 AY 18-19'!$B$3:$G$208,6,FALSE),0)-G196","v":0}]
[null,2011,"REAPY","CB","WHEELERS LANE JI NC",2300100126,8912,null,{"$f":"IFERROR(VLOOKUP(B197,'October figures 18 AY 18-19'!$B$3:$G$208,6,FALSE),0)-G197","v":0}]
[null,2478,"REAPZ","","WHITEHOUSE COMMON JI NC",0,8296,null,{"$f":"IFERROR(VLOOKUP(B198,'October figures 18 AY 18-19'!$B$3:$G$208,6,FALSE),0)-G198","v":0}]
[null,2276,"REAQC","","WILKES GREEN I NC",0,7412,null,{"$f":"IFERROR(VLOOKUP(B199,'October figures 18 AY 18-19'!$B$3:$G$208,6,FALSE),0)-G199","v":0}]
[null,2293,"REARA","CB","WILKES GREEN J ",2300100092,8162,null,{"$f":"IFERROR(VLOOKUP(B200,'October figures 18 AY 18-19'!$B$3:$G$208,6,FALSE),0)-G200","v":7412}]
[null,2445,"REARC","","WOODCOCK HILL JI ",0,7408,null,{"$f":"IFERROR(VLOOKUP(B201,'October figures 18 AY 18-19'!$B$3:$G$208,6,FALSE),0)-G201","v":0}]
[null,2278,"REARD","","WOODGATE JI ",0,8096,null,{"$f":"IFERROR(VLOOKUP(B202,'October figures 18 AY 18-19'!$B$3:$G$208,6,FALSE),0)-G202","v":0}]
[null,2314,"REARF","","WOODTHORPE JI ",0,7417,null,{"$f":"IFERROR(VLOOKUP(B203,'October figures 18 AY 18-19'!$B$3:$G$208,6,FALSE),0)-G203","v":0}]
[null,2317,"REARG","","WORLDS END I NC",0,7417,null,{"$f":"IFERROR(VLOOKUP(B204,'October figures 18 AY 18-19'!$B$3:$G$208,6,FALSE),0)-G204","v":0}]
[null,2225,"REARH","CB","WORLDS END J ",2300000058,8162,null,{"$f":"IFERROR(VLOOKUP(B205,'October figures 18 AY 18-19'!$B$3:$G$208,6,FALSE),0)-G205","v":0}]
[null,2412,"REARL","","WYLDE GREEN JI ",0,8179,null,{"$f":"IFERROR(VLOOKUP(B206,'October figures 18 AY 18-19'!$B$3:$G$208,6,FALSE),0)-G206","v":0}]
[null,3421,"REARQ","","YARDLEY JI ",0,9662,null,{"$f":"IFERROR(VLOOKUP(B207,'October figures 18 AY 18-19'!$B$3:$G$208,6,FALSE),0)-G207","v":0}]
[null,2227,"REARR","","YARDLEY WOOD JI NC",0,7883,null,{"$f":"IFERROR(VLOOKUP(B208,'October figures 18 AY 18-19'!$B$3:$G$208,6,FALSE),0)-G208","v":0}]
[null,2485,"REARW","","YENTON JI ",0,8329,null,{"$f":"IFERROR(VLOOKUP(B209,'October figures 18 AY 18-19'!$B$3:$G$208,6,FALSE),0)-G209","v":0}]
[null,2231,"REARY","","YORKMEAD JI NC",0,8167,null,{"$f":"IFERROR(VLOOKUP(B210,'October figures 18 AY 18-19'!$B$3:$G$208,6,FALSE),0)-G210","v":0}]
[null,null,null,null,null,null,null,null,{"$f":"IFERROR(VLOOKUP(B211,'October figures 18 AY 18-19'!$B$3:$G$208,6,FALSE),0)-G211","v":0}]
[null,4334,"REAZZ","","AL-HIJRAH Sec ",0,8158,null,{"$f":"IFERROR(VLOOKUP(B212,'October figures 18 AY 18-19'!$B$3:$G$208,6,FALSE),0)-G212","v":0}]
[null,4804,"REARZ","CB","ARCHBISHOP ILSLEY RC Sec (16+) ",2300000033,null,null,{"$f":"IFERROR(VLOOKUP(B213,'October figures 18 AY 18-19'!$B$3:$G$208,6,FALSE),0)-G213","v":0}]
[null,5413,"REATE","CB","BISHOP CHALLONER Sec (16+) ",2300000002,null,null,{"$f":"IFERROR(VLOOKUP(B214,'October figures 18 AY 18-19'!$B$3:$G$208,6,FALSE),0)-G214","v":0}]
[null,4115,"REATH","CB","BORDESLEY GREEN GIRLS Sec (16+) ",2300000003,null,null,{"$f":"IFERROR(VLOOKUP(B215,'October figures 18 AY 18-19'!$B$3:$G$208,6,FALSE),0)-G215","v":0}]
[null,4801,"REATN","CB","CARDINAL WISEMAN RC Sec ",2300100002,null,null,{"$f":"IFERROR(VLOOKUP(B216,'October figures 18 AY 18-19'!$B$3:$G$208,6,FALSE),0)-G216","v":0}]
[null,5416,"REATR","CB","COLMERS Sec ",2300000010,null,null,{"$f":"IFERROR(VLOOKUP(B217,'October figures 18 AY 18-19'!$B$3:$G$208,6,FALSE),0)-G217","v":0}]
[null,4333,"REATX","","FRANKLEY Sec ",0,null,null,{"$f":"IFERROR(VLOOKUP(B218,'October figures 18 AY 18-19'!$B$3:$G$208,6,FALSE),0)-G218","v":0}]
[null,4015,"REAVJ","CB","HODGE HILL GIRLS Sec ",2300000013,null,null,{"$f":"IFERROR(VLOOKUP(B219,'October figures 18 AY 18-19'!$B$3:$G$208,6,FALSE),0)-G219","v":0}]
[null,4201,"REAVH","CB","HODGE HILL Sec ",2300000014,null,null,{"$f":"IFERROR(VLOOKUP(B220,'October figures 18 AY 18-19'!$B$3:$G$208,6,FALSE),0)-G220","v":0}]
[null,4223,"REAVK","CB","HOLTE Sec (16+) ",2300000037,null,null,{"$f":"IFERROR(VLOOKUP(B221,'October figures 18 AY 18-19'!$B$3:$G$208,6,FALSE),0)-G221","v":0}]
[null,4664,"REAVL","","HOLY TRINITY RC Sec ",0,null,null,{"$f":"IFERROR(VLOOKUP(B222,'October figures 18 AY 18-19'!$B$3:$G$208,6,FALSE),0)-G222","v":0}]
[null,4301,"REAVN","","JOHN WILLMOTT Sec (16+) ",0,null,null,{"$f":"IFERROR(VLOOKUP(B223,'October figures 18 AY 18-19'!$B$3:$G$208,6,FALSE),0)-G223","v":0}]
[null,4063,"REAVW","","KINGS HEATH Sec ",0,null,null,{"$f":"IFERROR(VLOOKUP(B224,'October figures 18 AY 18-19'!$B$3:$G$208,6,FALSE),0)-G224","v":0}]
[null,5415,"REAVX","","KINGS NORTON BOYS Sec (16+) ",0,null,null,{"$f":"IFERROR(VLOOKUP(B225,'October figures 18 AY 18-19'!$B$3:$G$208,6,FALSE),0)-G225","v":0}]
[null,4245,"REAWD","CB","MOSELEY Sec (16+) ",2300000053,null,null,{"$f":"IFERROR(VLOOKUP(B226,'October figures 18 AY 18-19'!$B$3:$G$208,6,FALSE),0)-G226","v":0}]
[null,4173,"REAWJ","CB","QUEENSBRIDGE Sec ",2300000016,null,null,{"$f":"IFERROR(VLOOKUP(B227,'October figures 18 AY 18-19'!$B$3:$G$208,6,FALSE),0)-G227","v":0}]
[null,4177,"REAWL","CB","SELLY PARK TECH COLLEGE FOR GIRLS Sec ",2300000017,null,null,{"$f":"IFERROR(VLOOKUP(B228,'October figures 18 AY 18-19'!$B$3:$G$208,6,FALSE),0)-G228","v":0}]
[null,4663,"REAWT","","ST EDMUND CAMPION RC Sec (16+) ",0,null,null,{"$f":"IFERROR(VLOOKUP(B229,'October figures 18 AY 18-19'!$B$3:$G$208,6,FALSE),0)-G229","v":0}]
[null,4625,"REAWV","","ST JOHN WALL RC Sec ",0,null,null,{"$f":"IFERROR(VLOOKUP(B230,'October figures 18 AY 18-19'!$B$3:$G$208,6,FALSE),0)-G230","v":0}]
[null,4606,"REAWX","CB","ST PAUL'S RC GIRLS Sec (16+) ",2300000032,null,null,{"$f":"IFERROR(VLOOKUP(B231,'October figures 18 AY 18-19'!$B$3:$G$208,6,FALSE),0)-G231","v":0}]
[null,4237,"REAXB","CB","SWANSHURST Sec (16+) ",2300100012,null,null,{"$f":"IFERROR(VLOOKUP(B232,'October figures 18 AY 18-19'!$B$3:$G$208,6,FALSE),0)-G232","v":0}]
[null,4188,"REAXE","CB","TURVES GREEN BOYS Sec ",2300100136,null,null,{"$f":"IFERROR(VLOOKUP(B233,'October figures 18 AY 18-19'!$B$3:$G$208,6,FALSE),0)-G233","v":0}]
[null,4187,"REAXF","","TURVES GREEN GIRLS Sec ",0,null,null,{"$f":"IFERROR(VLOOKUP(B234,'October figures 18 AY 18-19'!$B$3:$G$208,6,FALSE),0)-G234","v":0}]
[null,4193,"REAXJ","CB","WHEELERS LANE Sec ",2300100037,null,null,{"$f":"IFERROR(VLOOKUP(B235,'October figures 18 AY 18-19'!$B$3:$G$208,6,FALSE),0)-G235","v":0}]
[null,null,null,null,null,null,"REB25"]
[null,7016,"REAXL","","BASKERVILLE Spec",0,null,null,{"$f":"IFERROR(VLOOKUP(B237,'October figures 18 AY 18-19'!$B$3:$G$208,6,FALSE),0)-G237","v":0}]
[null,7052,"REAXM","","BEAUFORT Spec",0,6912,null,{"$f":"IFERROR(VLOOKUP(B238,'October figures 18 AY 18-19'!$B$3:$G$208,6,FALSE),0)-G238","v":0}]
[null,7030,"REAXN","","BRAIDWOOD Spec",0,null,null,{"$f":"IFERROR(VLOOKUP(B239,'October figures 18 AY 18-19'!$B$3:$G$208,6,FALSE),0)-G239","v":0}]
[null,7051,"REAXT","CB","CHERRY OAK Spec",2300100097,7104,null,{"$f":"IFERROR(VLOOKUP(B240,'October figures 18 AY 18-19'!$B$3:$G$208,6,FALSE),0)-G240","v":0}]
[null,1100,"REAAB","","CITY OF BIRMINGHAM SCHOOL",0,7125,null,{"$f":"IFERROR(VLOOKUP(B241,'October figures 18 AY 18-19'!$B$3:$G$208,6,FALSE),0)-G241","v":0}]
[null,7035,"REAXV","","DAME ELLEN PINSENT Spec",0,7271,null,{"$f":"IFERROR(VLOOKUP(B242,'October figures 18 AY 18-19'!$B$3:$G$208,6,FALSE),0)-G242","v":0}]
[null,7050,"REAXW","","FOX HOLLIES Spec",0,null,null,{"$f":"IFERROR(VLOOKUP(B243,'October figures 18 AY 18-19'!$B$3:$G$208,6,FALSE),0)-G243","v":0}]
[null,7006,"REAXZ","","HAMILTON Spec",0,7083,null,{"$f":"IFERROR(VLOOKUP(B244,'October figures 18 AY 18-19'!$B$3:$G$208,6,FALSE),0)-G244","v":0}]
[null,7026,"REAYA","","HUNTERS HILL Spec",0,null,null,{"$f":"IFERROR(VLOOKUP(B245,'October figures 18 AY 18-19'!$B$3:$G$208,6,FALSE),0)-G245","v":0}]
[null,7060,"REAYD","","LANGLEY Spec",0,7142,null,{"$f":"IFERROR(VLOOKUP(B246,'October figures 18 AY 18-19'!$B$3:$G$208,6,FALSE),0)-G246","v":0}]
[null,7062,"REAYE","","LINDSWORTH Spec",0,4167,null,{"$f":"IFERROR(VLOOKUP(B247,'October figures 18 AY 18-19'!$B$3:$G$208,6,FALSE),0)-G247","v":0}]
[null,7012,"REAYG","","LONGWILL Spec",0,6875,null,{"$f":"IFERROR(VLOOKUP(B248,'October figures 18 AY 18-19'!$B$3:$G$208,6,FALSE),0)-G248","v":0}]
[null,7040,"REAYH","","MAYFIELD Spec",0,7150,null,{"$f":"IFERROR(VLOOKUP(B249,'October figures 18 AY 18-19'!$B$3:$G$208,6,FALSE),0)-G249","v":0}]
[null,7053,"REAYC","","OSCOTT MANOR Spec",0,null,null,{"$f":"IFERROR(VLOOKUP(B250,'October figures 18 AY 18-19'!$B$3:$G$208,6,FALSE),0)-G250","v":0}]
[null,7045,"REAYJ","","PINES Spec",0,7146,null,{"$f":"IFERROR(VLOOKUP(B251,'October figures 18 AY 18-19'!$B$3:$G$208,6,FALSE),0)-G251","v":0}]
[null,7034,"REAYK","","PRIESTLEY SMITH Spec",0,6767,null,{"$f":"IFERROR(VLOOKUP(B252,'October figures 18 AY 18-19'!$B$3:$G$208,6,FALSE),0)-G252","v":0}]
[null,7036,"REAYL","","QUEENSBURY Spec",0,null,null,{"$f":"IFERROR(VLOOKUP(B253,'October figures 18 AY 18-19'!$B$3:$G$208,6,FALSE),0)-G253","v":0}]
[null,7033,"REAYM","CB","SELLY OAK Spec",2300100071,null,null,{"$f":"IFERROR(VLOOKUP(B254,'October figures 18 AY 18-19'!$B$3:$G$208,6,FALSE),0)-G254","v":0}]
[null,7037,"REAYN","","SKILTS Spec",0,7004,null,{"$f":"IFERROR(VLOOKUP(B255,'October figures 18 AY 18-19'!$B$3:$G$208,6,FALSE),0)-G255","v":0}]
[null,7047,"REAYP","","SPRINGFIELD HOUSE Spec",0,7067,null,{"$f":"IFERROR(VLOOKUP(B256,'October figures 18 AY 18-19'!$B$3:$G$208,6,FALSE),0)-G256","v":0}]
[null,7014,"REAYQ","CB","UFFCULME Spec",2300100151,7021,null,{"$f":"IFERROR(VLOOKUP(B257,'October figures 18 AY 18-19'!$B$3:$G$208,6,FALSE),0)-G257","v":0}]
[null,7009,"REAYT","CB","VICTORIA Spec",2300100098,7017,null,{"$f":"IFERROR(VLOOKUP(B258,'October figures 18 AY 18-19'!$B$3:$G$208,6,FALSE),0)-G258","v":0}]
[]
[null,"Nurs",{"$f":"COUNTA(B4:B30)","v":27},null,null,null,{"$f":"SUM(G4:G30)","v":0},{"$f":"SUM(H4:H30)","v":0},{"$f":"SUM(I4:I30)","v":0}]
[null,"Pri",{"$f":"COUNTA(B32:B210)","v":179},null,null,null,{"$f":"SUM(G32:G210)","v":1419354.4},{"$f":"SUM(H32:H219)","v":0},{"$f":"SUM(I32:I219)","v":21362.6}]
[null,"Sec",{"$f":"COUNTA(B212:B235)","v":24},null,null,null,{"$f":"SUM(G212:G235)","v":8158},{"$f":"SUM(H221:H244)","v":0},{"$f":"SUM(I221:I244)","v":0}]
[null,"Spec",{"$f":"COUNTA(B237:B258)","v":22},null,null,null,{"$f":"SUM(G237:G258)","v":102851},{"$f":"SUM(H246:H258)","v":0},{"$f":"SUM(I246:I258)","v":0}]
[null,"Total",{"$f":"SUM(C260:C263)","v":252},null,null,null,{"$f":"SUM(G260:G263)","v":1530363.4},{"$f":"SUM(H260:H263)","v":0},{"$f":"SUM(I260:I263)","v":21362.6}]
[null,"CB",{"$f":"COUNTIF(D4:D258,\"=CB\")","v":56},null,null,null,{"$f":"SUMIF($C$5:$C$259,\"CB\",G4:G258)","v":0},{"$f":"SUMIF(E4:E258,\"CB\",H4:H258)","v":0},{"$f":"SUMIF(F4:F258,\"CB\",I4:I258)","v":0}]
[null,"ACAD",null,null,null,null,{"$f":"+[1]DATA!R457","v":0},{"$f":"+[1]DATA!S457","v":0},{"$f":"+[1]DATA!T457","v":0}]
[null,"Total",null,null,null,null,{"$f":"+G264+G266","v":1530363.4},{"$f":"+H264+H266","v":0},{"$f":"+I264+I266","v":21362.6}]
[]
[null,null,null,null,null,null,{"$f":"G267+I267","v":1551726}]

{"sheet":"October figures 18 AY 18-19","index":5,"n_rows":209,"n_cols":18,"rows_kept":209,"cut":false,"hidden":true,"merged":[]}
["Primary PE and Sports Premium Allocations - AY 2018 to 2019",null,null,null,null,null,null,null,null,null,null,null,null,null,null,null,null,"Funding for 2016 to 2017"]
["LAEstab (at Sep 18)",null,"School Name (at Sep 18)","Eligible Pupils","Total Allocation","October 2018 payment","April 2019 payment",null,null,null,null,null,null,null,null,null,null,"Schools with 16 or fewer eligible pupils receive £500 per pupil."]
[null,null,null,null,null,null,null,null,null,null,null,null,null,null,null,null,null,"Schools with 17 or more eligible pupils receive £8,000 and an additional payment of £5 per pupil."]
[3301100,1100,"City of Birmingham School",110,17100,9975,7125,{"$f":"(VLOOKUP(B4,'SBS File Check'!B:G,6,FALSE)-G4)","v":0},null,{"$f":"(((16000+(D4*10))/12*7)-F4)","v":0},null,{"$f":"VLOOKUP(B4+3300000,'AY 19-20 Sept to Marc'!C:D,2,FALSE)","v":"City of Birmingham School"}]
[3302004,2004,"Mapledene Primary School",281,18810,10973,7837,{"$f":"(VLOOKUP(B5,'SBS File Check'!B:G,6,FALSE)-G5)","v":0},null,{"$f":"(((16000+(D5*10))/12*7)-F5)","v":-0.5},null,{"$f":"VLOOKUP(B5+3300000,'AY 19-20 Sept to Marc'!C:D,2,FALSE)","v":"Mapledene Primary School"}]
[3302005,2005,"Kings Heath Primary School",559,21590,12594,8996,{"$f":"(VLOOKUP(B6,'SBS File Check'!B:G,6,FALSE)-G6)","v":0},null,0.16666666666787933,null,{"$f":"VLOOKUP(B6+3300000,'AY 19-20 Sept to Marc'!C:D,2,FALSE)","v":"Kings Heath Primary School"}]
[3302008,2008,"Shaw Hill Primary School",364,19640,11457,8183,{"$f":"(VLOOKUP(B7,'SBS File Check'!B:G,6,FALSE)-G7)","v":0},null,-0.33333333333212067,null,{"$f":"VLOOKUP(B7+3300000,'AY 19-20 Sept to Marc'!C:D,2,FALSE)","v":"Shaw Hill Primary School"}]
[3302010,2010,"Adderley Primary School",522,21220,12378,8842,{"$f":"(VLOOKUP(B8,'SBS File Check'!B:G,6,FALSE)-G8)","v":0},null,0.33333333333212067,null,{"$f":"VLOOKUP(B8+3300000,'AY 19-20 Sept to Marc'!C:D,2,FALSE)","v":"Adderley Primary School"}]
[3302011,2011,"Wheelers Lane Primary School",539,21390,12478,8912,{"$f":"(VLOOKUP(B9,'SBS File Check'!B:G,6,FALSE)-G9)","v":0},null,-0.5,null,{"$f":"VLOOKUP(B9+3300000,'AY 19-20 Sept to Marc'!C:D,2,FALSE)","v":"Wheelers Lane Primary School"}]
[3302014,2014,"Barford Primary School",351,19510,11381,8129,{"$f":"(VLOOKUP(B10,'SBS File Check'!B:G,6,FALSE)-G10)","v":0},null,-0.16666666666787933,null,{"$f":"VLOOKUP(B10+3300000,'AY 19-20 Sept to Marc'!C:D,2,FALSE)","v":"Barford Primary School"}]
[3302015,2015,"James Watt Primary School",360,19600,11433,8167,{"$f":"(VLOOKUP(B11,'SBS File Check'!B:G,6,FALSE)-G11)","v":0},null,0.33333333333212067,null,{"$f":"VLOOKUP(B11+3300000,'AY 19-20 Sept to Marc'!C:D,2,FALSE)","v":"James Watt Primary School"}]
[3302016,2016,"Beeches Junior School",363,19630,11451,8179,{"$f":"(VLOOKUP(B12,'SBS File Check'!B:G,6,FALSE)-G12)","v":0},null,-0.16666666666787933,null,{"$f":"VLOOKUP(B12+3300000,'AY 19-20 Sept to Marc'!C:D,2,FALSE)","v":"Beeches Junior School"}]
[3302017,2017,"Beeches Infant School",178,17780,10372,7408,{"$f":"(VLOOKUP(B13,'SBS File Check'!B:G,6,FALSE)-G13)","v":0},null,-0.33333333333212067,null,{"$f":"VLOOKUP(B13+3300000,'AY 19-20 Sept to Marc'!C:D,2,FALSE)","v":"Beeches Infant School"}]
[3302018,2018,"The Oaks Primary School",315,19150,11171,7979,{"$f":"(VLOOKUP(B14,'SBS File Check'!B:G,6,FALSE)-G14)","v":0},null,-0.16666666666787933,null,{"$f":"VLOOKUP(B14+3300000,'AY 19-20 Sept to Marc'!C:D,2,FALSE)","v":"The Oaks Primary School"}]
[3302019,2019,"West Heath Primary School",355,19550,11404,8146,{"$f":"(VLOOKUP(B15,'SBS File Check'!B:G,6,FALSE)-G15)","v":0},null,0.16666666666787933,null,{"$f":"VLOOKUP(B15+3300000,'AY 19-20 Sept to Marc'!C:D,2,FALSE)","v":"West Heath Primary School"}]
[3302021,2021,"Paganel Primary School",328,19280,11247,8033,{"$f":"(VLOOKUP(B16,'SBS File Check'!B:G,6,FALSE)-G16)","v":0},null,-0.33333333333212067,null,{"$f":"VLOOKUP(B16+3300000,'AY 19-20 Sept to Marc'!C:D,2,FALSE)","v":"Paganel Primary School"}]
[3302024,2024,"Birches Green Junior School",223,18230,10634,7596,{"$f":"(VLOOKUP(B17,'SBS File Check'!B:G,6,FALSE)-G17)","v":0},null,0.16666666666787933,null,{"$f":"VLOOKUP(B17+3300000,'AY 19-20 Sept to Marc'!C:D,2,FALSE)","v":"Birches Green Junior School"}]
[3302025,2025,"Birches Green Infant School",116,17160,10010,7150,{"$f":"(VLOOKUP(B18,'SBS File Check'!B:G,6,FALSE)-G18)","v":0},null,0,null,{"$f":"VLOOKUP(B18+3300000,'AY 19-20 Sept to Marc'!C:D,2,FALSE)","v":"Birches Green Infant School"}]
[3302026,2026,"Banners Gate Primary School",325,19250,11229,8021,{"$f":"(VLOOKUP(B19,'SBS File Check'!B:G,6,FALSE)-G19)","v":0},null,0.16666666666787933,null,{"$f":"VLOOKUP(B19+3300000,'AY 19-20 Sept to Marc'!C:D,2,FALSE)","v":"Banners Gate Primary School"}]
[3302030,2030,"Bordesley Green Primary School",598,21980,12822,9158,{"$f":"(VLOOKUP(B20,'SBS File Check'!B:G,6,FALSE)-G20)","v":0},null,-0.33333333333212067,null,{"$f":"VLOOKUP(B20+3300000,'AY 19-20 Sept to Marc'!C:D,2,FALSE)","v":"Bordesley Green Primary School"}]
[3302034,2034,"Brookfields Primary School",339,19390,11311,8079,{"$f":"(VLOOKUP(B21,'SBS File Check'!B:G,6,FALSE)-G21)","v":{"$error":"#N/A"}},null,-0.16666666666787933,"Conversion",{"$f":"VLOOKUP(B21+3300000,'AY 19-20 Sept to Marc'!C:D,2,FALSE)","v":{"$error":"#N/A"}}]
[3302040,2040,"Cherry Orchard Primary School",373,19730,11509,8221,{"$f":"(VLOOKUP(B22,'SBS File Check'!B:G,6,FALSE)-G22)","v":0},null,0.16666666666787933,null,{"$f":"VLOOKUP(B22+3300000,'AY 19-20 Sept to Marc'!C:D,2,FALSE)","v":"Cherry Orchard Primary School"}]
[3302052,2052,"Colmers Farm Primary School",351,19510,11381,8129,{"$f":"(VLOOKUP(B23,'SBS File Check'!B:G,6,FALSE)-G23)","v":{"$error":"#N/A"}},null,-0.16666666666787933,"Conversion",{"$f":"VLOOKUP(B23+3300000,'AY 19-20 Sept to Marc'!C:D,2,FALSE)","v":{"$error":"#N/A"}}]
[3302053,2053,"Colmore Junior School",478,20780,12122,8658,{"$f":"(VLOOKUP(B24,'SBS File Check'!B:G,6,FALSE)-G24)","v":0},null,-0.33333333333212067,null,{"$f":"VLOOKUP(B24+3300000,'AY 19-20 Sept to Marc'!C:D,2,FALSE)","v":"Colmore Junior School"}]
[3302054,2054,"Colmore Infant and Nursery School",240,18400,10733,7667,{"$f":"(VLOOKUP(B25,'SBS File Check'!B:G,6,FALSE)-G25)","v":0},null,0.33333333333212067,null,{"$f":"VLOOKUP(B25+3300000,'AY 19-20 Sept to Marc'!C:D,2,FALSE)","v":"Colmore Infant and Nursery School"}]
[3302055,2055,"Cotteridge Primary School",347,19470,11358,8112,{"$f":"(VLOOKUP(B26,'SBS File Check'!B:G,6,FALSE)-G26)","v":0},null,-0.5,null,{"$f":"VLOOKUP(B26+3300000,'AY 19-20 Sept to Marc'!C:D,2,FALSE)","v":"Cotteridge Primary School"}]
[3302062,2062,"Anderton Park Primary School",583,21830,12734,9096,{"$f":"(VLOOKUP(B27,'SBS File Check'!B:G,6,FALSE)-G27)","v":0},null,0.16666666666787933,null,{"$f":"VLOOKUP(B27+3300000,'AY 19-20 Sept to Marc'!C:D,2,FALSE)","v":"Anderton Park Primary School"}]
[3302063,2063,"Regents Park Community Primary School",528,21280,12413,8867,{"$f":"(VLOOKUP(B28,'SBS File Check'!B:G,6,FALSE)-G28)","v":0},null,0.33333333333212067,null,{"$f":"VLOOKUP(B28+3300000,'AY 19-20 Sept to Marc'!C:D,2,FALSE)","v":"Regents Park Community Primary School"}]
[3302067,2067,"Summerfield Junior and Infant School",353,19530,11393,8137,{"$f":"(VLOOKUP(B29,'SBS File Check'!B:G,6,FALSE)-G29)","v":0},null,-0.5,null,{"$f":"VLOOKUP(B29+3300000,'AY 19-20 Sept to Marc'!C:D,2,FALSE)","v":"Summerfield Junior and Infant School"}]
[3302079,2079,"George Dixon Primary School",337,19370,11299,8071,{"$f":"(VLOOKUP(B30,'SBS File Check'!B:G,6,FALSE)-G30)","v":0},null,0.16666666666787933,null,{"$f":"VLOOKUP(B30+3300000,'AY 19-20 Sept to Marc'!C:D,2,FALSE)","v":"George Dixon Primary School"}]
[3302081,2081,"Gilbertstone Primary School",362,19620,11445,8175,{"$f":"(VLOOKUP(B31,'SBS File Check'!B:G,6,FALSE)-G31)","v":0},null,0,null,{"$f":"VLOOKUP(B31+3300000,'AY 19-20 Sept to Marc'!C:D,2,FALSE)","v":"Gilbertstone Primary School"}]
[3302087,2087,"Grendon Junior and Infant School (NC)",282,18820,10978,7842,{"$f":"(VLOOKUP(B32,'SBS File Check'!B:G,6,FALSE)-G32)","v":0},null,0.33333333333212067,null,{"$f":"VLOOKUP(B32+3300000,'AY 19-20 Sept to Marc'!C:D,2,FALSE)","v":"Grendon Junior and Infant School (NC)"}]
[3302091,2091,"Gunter Primary School",178,17780,10372,7408,{"$f":"(VLOOKUP(B33,'SBS File Check'!B:G,6,FALSE)-G33)","v":0},null,-0.33333333333212067,null,{"$f":"VLOOKUP(B33+3300000,'AY 19-20 Sept to Marc'!C:D,2,FALSE)","v":"Gunter Primary School"}]
[3302092,2092,"Hall Green Junior School",478,20780,12122,8658,{"$f":"(VLOOKUP(B34,'SBS File Check'!B:G,6,FALSE)-G34)","v":0},null,-0.33333333333212067,null,{"$f":"VLOOKUP(B34+3300000,'AY 19-20 Sept to Marc'!C:D,2,FALSE)","v":"Hall Green Junior School"}]
[3302093,2093,"Hall Green Infant School",240,18400,10733,7667,{"$f":"(VLOOKUP(B35,'SBS File Check'!B:G,6,FALSE)-G35)","v":0},null,0.33333333333212067,null,{"$f":"VLOOKUP(B35+3300000,'AY 19-20 Sept to Marc'!C:D,2,FALSE)","v":"Hall Green Infant School"}]
[3302097,2097,"Story Wood School and Children's Centre",181,17810,10389,7421,{"$f":"(VLOOKUP(B36,'SBS File Check'!B:G,6,FALSE)-G36)","v":0},null,0.16666666666787933,null,{"$f":"VLOOKUP(B36+3300000,'AY 19-20 Sept to Marc'!C:D,2,FALSE)","v":"Story Wood School"}]
[3302099,2099,"Hawthorn Primary School",177,17770,10366,7404,{"$f":"(VLOOKUP(B37,'SBS File Check'!B:G,6,FALSE)-G37)","v":0},null,-0.16666666666787933,null,{"$f":"VLOOKUP(B37+3300000,'AY 19-20 Sept to Marc'!C:D,2,FALSE)","v":"Hawthorn Primary School"}]
[3302108,2108,"Ward End Primary School",754,23540,13732,9808,{"$f":"(VLOOKUP(B38,'SBS File Check'!B:G,6,FALSE)-G38)","v":0},null,-0.33333333333212067,null,{"$f":"VLOOKUP(B38+3300000,'AY 19-20 Sept to Marc'!C:D,2,FALSE)","v":"Ward End Primary School"}]
[3302115,2115,"Kingsland Primary School (NC)",255,18550,10821,7729,{"$f":"(VLOOKUP(B39,'SBS File Check'!B:G,6,FALSE)-G39)","v":0},null,-0.16666666666787933,null,{"$f":"VLOOKUP(B39+3300000,'AY 19-20 Sept to Marc'!C:D,2,FALSE)","v":"Kingsland Primary School (NC)"}]
[3302118,2118,"Kings Norton Junior and Infant School",356,19560,11410,8150,{"$f":"(VLOOKUP(B40,'SBS File Check'!B:G,6,FALSE)-G40)","v":0},null,0,null,{"$f":"VLOOKUP(B40+3300000,'AY 19-20 Sept to Marc'!C:D,2,FALSE)","v":"Kings Norton Junior and Infant School"}]
[3302119,2119,"Lakey Lane Junior and Infant School",361,19610,11439,8171,{"$f":"(VLOOKUP(B41,'SBS File Check'!B:G,6,FALSE)-G41)","v":0},null,0.16666666666787933,null,{"$f":"VLOOKUP(B41+3300000,'AY 19-20 Sept to Marc'!C:D,2,FALSE)","v":"Lakey Lane Junior and Infant School"}]
[3302127,2127,"Lozells Junior and Infant School and Nursery",362,19620,11445,8175,{"$f":"(VLOOKUP(B42,'SBS File Check'!B:G,6,FALSE)-G42)","v":0},null,0,null,{"$f":"VLOOKUP(B42+3300000,'AY 19-20 Sept to Marc'!C:D,2,FALSE)","v":"Lozells Junior and Infant School and Nursery"}]
[3302128,2128,"Lyndon Green Junior School",371,19710,11498,8212,{"$f":"(VLOOKUP(B43,'SBS File Check'!B:G,6,FALSE)-G43)","v":0},null,-0.5,null,{"$f":"VLOOKUP(B43+3300000,'AY 19-20 Sept to Marc'!C:D,2,FALSE)","v":"Lyndon Green Junior School"}]
[3302129,2129,"Lyndon Green Infant School",189,17890,10436,7454,{"$f":"(VLOOKUP(B44,'SBS File Check'!B:G,6,FALSE)-G44)","v":0},null,-0.16666666666787933,null,{"$f":"VLOOKUP(B44+3300000,'AY 19-20 Sept to Marc'!C:D,2,FALSE)","v":"Lyndon Green Infant School"}]
[3302132,2132,"Marlborough Infant School",180,17800,10383,7417,{"$f":"(VLOOKUP(B45,'SBS File Check'!B:G,6,FALSE)-G45)","v":{"$error":"#N/A"}},null,0.33333333333212067,"Conversion",{"$f":"VLOOKUP(B45+3300000,'AY 19-20 Sept to Marc'!C:D,2,FALSE)","v":{"$error":"#N/A"}}]
[3302133,2133,"Marsh Hill Primary School",353,19530,11393,8137,{"$f":"(VLOOKUP(B46,'SBS File Check'!B:G,6,FALSE)-G46)","v":0},null,-0.5,null,{"$f":"VLOOKUP(B46+3300000,'AY 19-20 Sept to Marc'!C:D,2,FALSE)","v":"Marsh Hill Primary School"}]
[3302142,2142,"Nelson Junior and Infant School",316,19160,11177,7983,{"$f":"(VLOOKUP(B47,'SBS File Check'!B:G,6,FALSE)-G47)","v":0},null,-0.33333333333212067,null,{"$f":"VLOOKUP(B47+3300000,'AY 19-20 Sept to Marc'!C:D,2,FALSE)","v":"Nelson Junior and Infant School"}]
[3302149,2149,"Paget Primary School",350,19500,11375,8125,{"$f":"(VLOOKUP(B48,'SBS File Check'!B:G,6,FALSE)-G48)","v":0},null,0,null,{"$f":"VLOOKUP(B48+3300000,'AY 19-20 Sept to Marc'!C:D,2,FALSE)","v":"Paget Primary School"}]
[3302150,2150,"Park Hill Primary School",474,20740,12098,8642,{"$f":"(VLOOKUP(B49,'SBS File Check'!B:G,6,FALSE)-G49)","v":0},null,0.33333333333212067,null,{"$f":"VLOOKUP(B49+3300000,'AY 19-20 Sept to Marc'!C:D,2,FALSE)","v":"Park Hill Primary School"}]
[3302153,2153,"Allens Croft Primary School",300,19000,11083,7917,{"$f":"(VLOOKUP(B50,'SBS File Check'!B:G,6,FALSE)-G50)","v":0},null,0.33333333333212067,null,{"$f":"VLOOKUP(B50+3300000,'AY 19-20 Sept to Marc'!C:D,2,FALSE)","v":"Allens Croft Primary School"}]
[3302155,2155,"Princethorpe Junior School",237,18370,10716,7654,{"$f":"(VLOOKUP(B51,'SBS File Check'!B:G,6,FALSE)-G51)","v":{"$error":"#N/A"}},null,-0.16666666666787933,"Conversion",{"$f":"VLOOKUP(B51+3300000,'AY 19-20 Sept to Marc'!C:D,2,FALSE)","v":{"$error":"#N/A"}}]
[3302157,2157,"Raddlebarn Primary School",347,19470,11358,8112,{"$f":"(VLOOKUP(B52,'SBS File Check'!B:G,6,FALSE)-G52)","v":0},null,-0.5,null,{"$f":"VLOOKUP(B52+3300000,'AY 19-20 Sept to Marc'!C:D,2,FALSE)","v":"Raddlebarn Primary School"}]
[3302159,2159,"Redhill Junior and Infant School",180,17800,10383,7417,{"$f":"(VLOOKUP(B53,'SBS File Check'!B:G,6,FALSE)-G53)","v":0},null,0.33333333333212067,null,{"$f":"VLOOKUP(B53+3300000,'AY 19-20 Sept to Marc'!C:D,2,FALSE)","v":"Redhill Primary School"}]
[3302160,2160,"Rednal Hill Junior School",331,19310,11264,8046,{"$f":"(VLOOKUP(B54,'SBS File Check'!B:G,6,FALSE)-G54)","v":0},null,0.16666666666787933,null,{"$f":"VLOOKUP(B54+3300000,'AY 19-20 Sept to Marc'!C:D,2,FALSE)","v":"Rednal Hill Junior School"}]
[3302161,2161,"Rednal Hill Infant School",180,17800,10383,7417,{"$f":"(VLOOKUP(B55,'SBS File Check'!B:G,6,FALSE)-G55)","v":0},null,0.33333333333212067,null,{"$f":"VLOOKUP(B55+3300000,'AY 19-20 Sept to Marc'!C:D,2,FALSE)","v":"Rednal Hill Infant School"}]
[3302169,2169,"Severne Junior Infant and Nursery School",365,19650,11463,8187,{"$f":"(VLOOKUP(B56,'SBS File Check'!B:G,6,FALSE)-G56)","v":0},null,-0.5,null,{"$f":"VLOOKUP(B56+3300000,'AY 19-20 Sept to Marc'!C:D,2,FALSE)","v":"Severne Junior Infant and Nursery School"}]
[3302174,2174,"Sladefield Infant School",240,18400,10733,7667,{"$f":"(VLOOKUP(B57,'SBS File Check'!B:G,6,FALSE)-G57)","v":0},null,0.33333333333212067,null,{"$f":"VLOOKUP(B57+3300000,'AY 19-20 Sept to Marc'!C:D,2,FALSE)","v":"Sladefield Infant School"}]
[3302176,2176,"Somerville Primary (NC) School",597,21970,12816,9154,{"$f":"(VLOOKUP(B58,'SBS File Check'!B:G,6,FALSE)-G58)","v":0},null,-0.16666666666787933,null,{"$f":"VLOOKUP(B58+3300000,'AY 19-20 Sept to Marc'!C:D,2,FALSE)","v":"Somerville Primary (NC) School"}]
[3302178,2178,"Stanville Primary School",207,18070,10541,7529,{"$f":"(VLOOKUP(B59,'SBS File Check'!B:G,6,FALSE)-G59)","v":0},null,-0.16666666666787933,null,{"$f":"VLOOKUP(B59+3300000,'AY 19-20 Sept to Marc'!C:D,2,FALSE)","v":"Stanville Primary School"}]
[3302179,2179,"Starbank  School",1094,26940,15715,11225,{"$f":"(VLOOKUP(B60,'SBS File Check'!B:G,6,FALSE)-G60)","v":0},null,0,null,{"$f":"VLOOKUP(B60+3300000,'AY 19-20 Sept to Marc'!C:D,2,FALSE)","v":"Starbank School"}]
[3302183,2183,"St Benedict's Infant School",218,18180,10605,7575,{"$f":"(VLOOKUP(B61,'SBS File Check'!B:G,6,FALSE)-G61)","v":0},null,0,null,{"$f":"VLOOKUP(B61+3300000,'AY 19-20 Sept to Marc'!C:D,2,FALSE)","v":"St Benedict's Primary School"}]
[3302184,2184,"Stechford Primary School",360,19600,11433,8167,{"$f":"(VLOOKUP(B62,'SBS File Check'!B:G,6,FALSE)-G62)","v":0},null,0.33333333333212067,null,{"$f":"VLOOKUP(B62+3300000,'AY 19-20 Sept to Marc'!C:D,2,FALSE)","v":"Stechford Primary School"}]
[3302185,2185,"Colebourne Primary School",361,19610,11439,8171,{"$f":"(VLOOKUP(B63,'SBS File Check'!B:G,6,FALSE)-G63)","v":0},null,0.16666666666787933,null,{"$f":"VLOOKUP(B63+3300000,'AY 19-20 Sept to Marc'!C:D,2,FALSE)","v":"Colebourne Primary School"}]
[3302189,2189,"Ladypool Primary School",330,19300,11258,8042,{"$f":"(VLOOKUP(B64,'SBS File Check'!B:G,6,FALSE)-G64)","v":0},null,0.33333333333212067,null,{"$f":"VLOOKUP(B64+3300000,'AY 19-20 Sept to Marc'!C:D,2,FALSE)","v":"Ladypool Primary School"}]
[3302190,2190,"Sundridge Primary School",177,17770,10366,7404,{"$f":"(VLOOKUP(B65,'SBS File Check'!B:G,6,FALSE)-G65)","v":0},null,-0.16666666666787933,null,{"$f":"VLOOKUP(B65+3300000,'AY 19-20 Sept to Marc'!C:D,2,FALSE)","v":"Sundridge Primary School"}]
[3302191,2191,"Court Farm Primary School",178,17780,10372,7408,{"$f":"(VLOOKUP(B66,'SBS File Check'!B:G,6,FALSE)-G66)","v":0},null,-0.33333333333212067,null,{"$f":"VLOOKUP(B66+3300000,'AY 19-20 Sept to Marc'!C:D,2,FALSE)","v":"Court Farm Primary School"}]
[3302192,2192,"Thornton Primary School",657,22570,13166,9404,{"$f":"(VLOOKUP(B67,'SBS File Check'!B:G,6,FALSE)-G67)","v":0},null,-0.16666666666787933,null,{"$f":"VLOOKUP(B67+3300000,'AY 19-20 Sept to Marc'!C:D,2,FALSE)","v":"Thornton Primary School"}]
[3302225,2225,"World's End Junior School",359,19590,11428,8162,{"$f":"(VLOOKUP(B68,'SBS File Check'!B:G,6,FALSE)-G68)","v":0},null,-0.5,null,{"$f":"VLOOKUP(B68+3300000,'AY 19-20 Sept to Marc'!C:D,2,FALSE)","v":"World's End Junior School"}]
[3302227,2227,"Yardley Wood Community Primary School",292,18920,11037,7883,{"$f":"(VLOOKUP(B69,'SBS File Check'!B:G,6,FALSE)-G69)","v":0},null,{"$f":"(((16000+(D69*10))/12*7)-F69)","v":-0.33333333333212067},null,{"$f":"VLOOKUP(B69+3300000,'AY 19-20 Sept to Marc'!C:D,2,FALSE)","v":"Yardley Wood Community Primary School"}]
[3302231,2231,"Yorkmead Junior and Infant School",360,19600,11433,8167,{"$f":"(VLOOKUP(B70,'SBS File Check'!B:G,6,FALSE)-G70)","v":0},null,0.33333333333212067,null,{"$f":"VLOOKUP(B70+3300000,'AY 19-20 Sept to Marc'!C:D,2,FALSE)","v":"Yorkmead Junior and Infant School"}]
[3302236,2236,"Broadmeadow Junior School",224,18240,10640,7600,{"$f":"(VLOOKUP(B71,'SBS File Check'!B:G,6,FALSE)-G71)","v":0},null,0,null,{"$f":"VLOOKUP(B71+3300000,'AY 19-20 Sept to Marc'!C:D,2,FALSE)","v":"Broadmeadow Junior School"}]
[3302238,2238,"Broadmeadow Infant School",117,17170,10016,7154,{"$f":"(VLOOKUP(B72,'SBS File Check'!B:G,6,FALSE)-G72)","v":0},null,-0.16666666666787933,null,{"$f":"VLOOKUP(B72+3300000,'AY 19-20 Sept to Marc'!C:D,2,FALSE)","v":"Broadmeadow Infant School"}]
[3302239,2239,"Bellfield Infant School (NC)",178,17780,10372,7408,{"$f":"(VLOOKUP(B73,'SBS File Check'!B:G,6,FALSE)-G73)","v":0},null,-0.33333333333212067,null,{"$f":"VLOOKUP(B73+3300000,'AY 19-20 Sept to Marc'!C:D,2,FALSE)","v":"Bellfield Infant School (NC)"}]
[3302241,2241,"Bellfield Junior School",255,18550,10821,7729,{"$f":"(VLOOKUP(B74,'SBS File Check'!B:G,6,FALSE)-G74)","v":0},null,-0.16666666666787933,null,{"$f":"VLOOKUP(B74+3300000,'AY 19-20 Sept to Marc'!C:D,2,FALSE)","v":"Bellfield Junior School"}]
[3302245,2245,"Welsh House Farm Community School and Special Needs Resources Base",186,17860,10418,7442,{"$f":"(VLOOKUP(B75,'SBS File Check'!B:G,6,FALSE)-G75)","v":0},null,0.33333333333212067,null,{"$f":"VLOOKUP(B75+3300000,'AY 19-20 Sept to Marc'!C:D,2,FALSE)","v":"Welsh House Farm Community School and Special Needs Resources Base"}]
[3302246,2246,"The Meadows Primary School",497,20970,12233,8737,{"$f":"(VLOOKUP(B76,'SBS File Check'!B:G,6,FALSE)-G76)","v":0},null,-0.5,null,{"$f":"VLOOKUP(B76+3300000,'AY 19-20 Sept to Marc'!C:D,2,FALSE)","v":"The Meadows Primary School"}]
[3302251,2251,"Chilcote Primary School",359,19590,11428,8162,{"$f":"(VLOOKUP(B77,'SBS File Check'!B:G,6,FALSE)-G77)","v":0},null,-0.5,null,{"$f":"VLOOKUP(B77+3300000,'AY 19-20 Sept to Marc'!C:D,2,FALSE)","v":"Chilcote Primary School"}]
[3302254,2254,"Blakesley Hall Primary School",535,21350,12454,8896,{"$f":"(VLOOKUP(B78,'SBS File Check'!B:G,6,FALSE)-G78)","v":0},null,0.16666666666787933,null,{"$f":"VLOOKUP(B78+3300000,'AY 19-20 Sept to Marc'!C:D,2,FALSE)","v":"Blakesley Hall Primary School"}]
[3302276,2276,"Wilkes Green Infant School (NC)",179,17790,10378,7412,{"$f":"(VLOOKUP(B79,'SBS File Check'!B:G,6,FALSE)-G79)","v":0},null,-0.5,null,{"$f":"VLOOKUP(B79+3300000,'AY 19-20 Sept to Marc'!C:D,2,FALSE)","v":{"$error":"#N/A"}}]
[3302278,2278,"Woodgate Primary School",343,19430,11334,8096,{"$f":"(VLOOKUP(B80,'SBS File Check'!B:G,6,FALSE)-G80)","v":0},null,0.16666666666787933,null,{"$f":"VLOOKUP(B80+3300000,'AY 19-20 Sept to Marc'!C:D,2,FALSE)","v":"Woodgate Primary School"}]
[3302283,2283,"Marlborough Junior School",367,19670,11474,8196,{"$f":"(VLOOKUP(B81,'SBS File Check'!B:G,6,FALSE)-G81)","v":{"$error":"#N/A"}},null,0.16666666666787933,"Conversion",{"$f":"VLOOKUP(B81+3300000,'AY 19-20 Sept to Marc'!C:D,2,FALSE)","v":{"$error":"#N/A"}}]
[3302284,2284,"Deykin Avenue Junior and Infant School",180,17800,10383,7417,{"$f":"(VLOOKUP(B82,'SBS File Check'!B:G,6,FALSE)-G82)","v":0},null,0.33333333333212067,null,{"$f":"VLOOKUP(B82+3300000,'AY 19-20 Sept to Marc'!C:D,2,FALSE)","v":"Deykin Avenue Junior and Infant School"}]
[3302288,2288,"Hollywood Primary School",370,19700,11492,8208,{"$f":"(VLOOKUP(B83,'SBS File Check'!B:G,6,FALSE)-G83)","v":0},null,-0.33333333333212067,null,{"$f":"VLOOKUP(B83+3300000,'AY 19-20 Sept to Marc'!C:D,2,FALSE)","v":"Hollywood Primary School"}]
[3302289,2289,"Cofton Primary School",276,18760,10943,7817,{"$f":"(VLOOKUP(B84,'SBS File Check'!B:G,6,FALSE)-G84)","v":0},null,0.33333333333212067,null,{"$f":"VLOOKUP(B84+3300000,'AY 19-20 Sept to Marc'!C:D,2,FALSE)","v":"Cofton Primary School"}]
[3302293,2293,"Wilkes Green Junior School",{"$f":"359+D79","v":538},{"$f":"19590+E79","v":37380},{"$f":"11428+F79","v":21806},{"$f":"8162+G79","v":15574},{"$f":"(VLOOKUP(B85,'SBS File Check'!B:G,6,FALSE)-G85)","v":-7412},null,-9334.3333333333321,null,{"$f":"VLOOKUP(B85+3300000,'AY 19-20 Sept to Marc'!C:D,2,FALSE)","v":"William Murdoch Primary School"}]
[3302294,2294,"Featherstone Primary School",323,19230,11218,8012,{"$f":"(VLOOKUP(B86,'SBS File Check'!B:G,6,FALSE)-G86)","v":0},null,-0.5,null,{"$f":"VLOOKUP(B86+3300000,'AY 19-20 Sept to Marc'!C:D,2,FALSE)","v":"Featherstone Primary School"}]
[3302296,2296,"Glenmead Primary School",347,19470,11358,8112,{"$f":"(VLOOKUP(B87,'SBS File Check'!B:G,6,FALSE)-G87)","v":0},null,-0.5,null,{"$f":"VLOOKUP(B87+3300000,'AY 19-20 Sept to Marc'!C:D,2,FALSE)","v":"Glenmead Primary School"}]
[3302300,2300,"Arden Primary School",540,21400,12483,8917,{"$f":"(VLOOKUP(B88,'SBS File Check'!B:G,6,FALSE)-G88)","v":0},null,0.33333333333212067,null,{"$f":"VLOOKUP(B88+3300000,'AY 19-20 Sept to Marc'!C:D,2,FALSE)","v":"Arden Primary School"}]
[3302306,2306,"Water Mill Primary School",173,17730,10343,7387,{"$f":"(VLOOKUP(B89,'SBS File Check'!B:G,6,FALSE)-G89)","v":0},null,-0.5,null,{"$f":"VLOOKUP(B89+3300000,'AY 19-20 Sept to Marc'!C:D,2,FALSE)","v":"Water Mill Primary School"}]
[3302308,2308,"Welford Primary School",363,19630,11451,8179,{"$f":"(VLOOKUP(B90,'SBS File Check'!B:G,6,FALSE)-G90)","v":0},null,-0.16666666666787933,null,{"$f":"VLOOKUP(B90+3300000,'AY 19-20 Sept to Marc'!C:D,2,FALSE)","v":"Welford Primary School"}]
[3302312,2312,"Chad Vale Primary School",361,19610,11439,8171,{"$f":"(VLOOKUP(B91,'SBS File Check'!B:G,6,FALSE)-G91)","v":0},null,0.16666666666787933,null,{"$f":"VLOOKUP(B91+3300000,'AY 19-20 Sept to Marc'!C:D,2,FALSE)","v":"Chad Vale Primary School"}]
[3302313,2313,"Heath Mount Primary School",352,19520,11387,8133,{"$f":"(VLOOKUP(B92,'SBS File Check'!B:G,6,FALSE)-G92)","v":0},null,-0.33333333333212067,null,{"$f":"VLOOKUP(B92+3300000,'AY 19-20 Sept to Marc'!C:D,2,FALSE)","v":"Heath Mount Primary School"}]
[3302314,2314,"Woodthorpe Junior and Infant School",180,17800,10383,7417,{"$f":"(VLOOKUP(B93,'SBS File Check'!B:G,6,FALSE)-G93)","v":0},null,0.33333333333212067,null,{"$f":"VLOOKUP(B93+3300000,'AY 19-20 Sept to Marc'!C:D,2,FALSE)","v":"Woodthorpe Junior and Infant School"}]
[3302317,2317,"World's End Infant and Nursery School",180,17800,10383,7417,{"$f":"(VLOOKUP(B94,'SBS File Check'!B:G,6,FALSE)-G94)","v":0},null,0.33333333333212067,null,{"$f":"VLOOKUP(B94+3300000,'AY 19-20 Sept to Marc'!C:D,2,FALSE)","v":"World's End Infant and Nursery School"}]
[3302321,2321,"Kitwell Primary School and Nursery Class",181,17810,10389,7421,{"$f":"(VLOOKUP(B95,'SBS File Check'!B:G,6,FALSE)-G95)","v":0},null,0.16666666666787933,null,{"$f":"VLOOKUP(B95+3300000,'AY 19-20 Sept to Marc'!C:D,2,FALSE)","v":"Kitwell Primary School and Nursery Class"}]
[3302401,2401,"Boldmere Junior School",362,19620,11445,8175,{"$f":"(VLOOKUP(B96,'SBS File Check'!B:G,6,FALSE)-G96)","v":0},null,0,null,{"$f":"VLOOKUP(B96+3300000,'AY 19-20 Sept to Marc'!C:D,2,FALSE)","v":"Boldmere Junior School"}]
[3302402,2402,"Boldmere Infant School and Nursery",180,17800,10383,7417,{"$f":"(VLOOKUP(B97,'SBS File Check'!B:G,6,FALSE)-G97)","v":0},null,0.33333333333212067,null,{"$f":"VLOOKUP(B97+3300000,'AY 19-20 Sept to Marc'!C:D,2,FALSE)","v":"Boldmere Infant School and Nursery"}]
[3302406,2406,"Minworth Junior and Infant School",175,17750,10354,7396,{"$f":"(VLOOKUP(B98,'SBS File Check'!B:G,6,FALSE)-G98)","v":0},null,0.16666666666787933,null,{"$f":"VLOOKUP(B98+3300000,'AY 19-20 Sept to Marc'!C:D,2,FALSE)","v":"Minworth Junior and Infant School"}]
[3302412,2412,"Wylde Green Primary School",363,19630,11451,8179,{"$f":"(VLOOKUP(B99,'SBS File Check'!B:G,6,FALSE)-G99)","v":0},null,-0.16666666666787933,null,{"$f":"VLOOKUP(B99+3300000,'AY 19-20 Sept to Marc'!C:D,2,FALSE)","v":"Wylde Green Primary School"}]
[3302416,2416,"Moor Hall Primary School",213,18130,10576,7554,{"$f":"(VLOOKUP(B100,'SBS File Check'!B:G,6,FALSE)-G100)","v":0},null,-0.16666666666787933,null,{"$f":"VLOOKUP(B100+3300000,'AY 19-20 Sept to Marc'!C:D,2,FALSE)","v":"Moor Hall Primary School"}]
[3302420,2420,"Maney Hill Primary School",240,18400,10733,7667,{"$f":"(VLOOKUP(B101,'SBS File Check'!B:G,6,FALSE)-G101)","v":0},null,0.33333333333212067,null,{"$f":"VLOOKUP(B101+3300000,'AY 19-20 Sept to Marc'!C:D,2,FALSE)","v":"Maney Hill Primary School"}]
[3302425,2425,"Penns Primary School",180,17800,10383,7417,{"$f":"(VLOOKUP(B102,'SBS File Check'!B:G,6,FALSE)-G102)","v":0},null,0.33333333333212067,null,{"$f":"VLOOKUP(B102+3300000,'AY 19-20 Sept to Marc'!C:D,2,FALSE)","v":"Penns Primary School"}]
[3302429,2429,"Holland House Infant School and Nursery",120,17200,10033,7167,{"$f":"(VLOOKUP(B103,'SBS File Check'!B:G,6,FALSE)-G103)","v":0},null,0.33333333333212067,null,{"$f":"VLOOKUP(B103+3300000,'AY 19-20 Sept to Marc'!C:D,2,FALSE)","v":"Holland House Infant School and Nursery"}]
[3302435,2435,"Benson Community School",453,20530,11976,8554,{"$f":"(VLOOKUP(B104,'SBS File Check'!B:G,6,FALSE)-G104)","v":0},null,-0.16666666666787933,null,{"$f":"VLOOKUP(B104+3300000,'AY 19-20 Sept to Marc'!C:D,2,FALSE)","v":"Benson Community School"}]
[3302436,2436,"Osborne Primary School",208,18080,10547,7533,{"$f":"(VLOOKUP(B105,'SBS File Check'!B:G,6,FALSE)-G105)","v":0},null,-0.33333333333212067,null,{"$f":"VLOOKUP(B105+3300000,'AY 19-20 Sept to Marc'!C:D,2,FALSE)","v":"Osborne Primary School"}]
[3302438,2438,"Highters Heath Community School",177,17770,10366,7404,{"$f":"(VLOOKUP(B106,'SBS File Check'!B:G,6,FALSE)-G106)","v":0},null,-0.16666666666787933,null,{"$f":"VLOOKUP(B106+3300000,'AY 19-20 Sept to Marc'!C:D,2,FALSE)","v":"Highters Heath Community School"}]
[3302441,2441,"Kingsthorne Primary School",346,19460,11352,8108,{"$f":"(VLOOKUP(B107,'SBS File Check'!B:G,6,FALSE)-G107)","v":0},null,-0.33333333333212067,null,{"$f":"VLOOKUP(B107+3300000,'AY 19-20 Sept to Marc'!C:D,2,FALSE)","v":"Kingsthorne Primary School"}]
[3302445,2445,"Woodcock Hill Primary School",178,17780,10372,7408,{"$f":"(VLOOKUP(B108,'SBS File Check'!B:G,6,FALSE)-G108)","v":0},null,-0.33333333333212067,null,{"$f":"VLOOKUP(B108+3300000,'AY 19-20 Sept to Marc'!C:D,2,FALSE)","v":"Woodcock Hill Primary School"}]
[3302454,2454,"Elms Farm Community Primary School",313,19130,11159,7971,{"$f":"(VLOOKUP(B109,'SBS File Check'!B:G,6,FALSE)-G109)","v":0},null,0.16666666666787933,null,{"$f":"VLOOKUP(B109+3300000,'AY 19-20 Sept to Marc'!C:D,2,FALSE)","v":"Elms Farm Community Primary School"}]
[3302456,2456,"Bells Farm Primary School",172,17720,10337,7383,{"$f":"(VLOOKUP(B110,'SBS File Check'!B:G,6,FALSE)-G110)","v":0},null,-0.33333333333212067,null,{"$f":"VLOOKUP(B110+3300000,'AY 19-20 Sept to Marc'!C:D,2,FALSE)","v":"Bells Farm Primary School"}]
[3302457,2457,"Nelson Mandela School",363,19630,11451,8179,{"$f":"(VLOOKUP(B111,'SBS File Check'!B:G,6,FALSE)-G111)","v":0},null,-0.16666666666787933,null,{"$f":"VLOOKUP(B111+3300000,'AY 19-20 Sept to Marc'!C:D,2,FALSE)","v":"Nelson Mandela School"}]
[3302462,2462,"Little Sutton Primary School",360,19600,11433,8167,{"$f":"(VLOOKUP(B112,'SBS File Check'!B:G,6,FALSE)-G112)","v":0},null,0.33333333333212067,null,{"$f":"VLOOKUP(B112+3300000,'AY 19-20 Sept to Marc'!C:D,2,FALSE)","v":"Little Sutton Primary School"}]
[3302464,2464,"Coppice Primary School",364,19640,11457,8183,{"$f":"(VLOOKUP(B113,'SBS File Check'!B:G,6,FALSE)-G113)","v":0},null,-0.33333333333212067,null,{"$f":"VLOOKUP(B113+3300000,'AY 19-20 Sept to Marc'!C:D,2,FALSE)","v":"Coppice Primary School"}]
[3302465,2465,"Calshot Primary School",359,19590,11428,8162,{"$f":"(VLOOKUP(B114,'SBS File Check'!B:G,6,FALSE)-G114)","v":0},null,-0.5,null,{"$f":"VLOOKUP(B114+3300000,'AY 19-20 Sept to Marc'!C:D,2,FALSE)","v":"Calshot Primary School"}]
[3302466,2466,"Grove School",539,21390,12478,8912,{"$f":"(VLOOKUP(B115,'SBS File Check'!B:G,6,FALSE)-G115)","v":0},null,-0.5,null,{"$f":"VLOOKUP(B115+3300000,'AY 19-20 Sept to Marc'!C:D,2,FALSE)","v":"Grove School"}]
[3302469,2469,"New Hall Primary and Children's Centre",312,19120,11153,7967,{"$f":"(VLOOKUP(B116,'SBS File Check'!B:G,6,FALSE)-G116)","v":0},null,0.33333333333212067,null,{"$f":"VLOOKUP(B116+3300000,'AY 19-20 Sept to Marc'!C:D,2,FALSE)","v":"New Hall Primary School"}]
[3302474,2474,"Hollyfield Primary School",354,19540,11398,8142,{"$f":"(VLOOKUP(B117,'SBS File Check'!B:G,6,FALSE)-G117)","v":0},null,0.33333333333212067,null,{"$f":"VLOOKUP(B117+3300000,'AY 19-20 Sept to Marc'!C:D,2,FALSE)","v":"Hollyfield Primary School"}]
[3302477,2477,"Harborne Primary School",538,21380,12472,8908,{"$f":"(VLOOKUP(B118,'SBS File Check'!B:G,6,FALSE)-G118)","v":0},null,-0.33333333333212067,null,{"$f":"VLOOKUP(B118+3300000,'AY 19-20 Sept to Marc'!C:D,2,FALSE)","v":"Harborne Primary School"}]
[3302478,2478,"Whitehouse Common Primary School",391,19910,11614,8296,{"$f":"(VLOOKUP(B119,'SBS File Check'!B:G,6,FALSE)-G119)","v":0},null,0.16666666666787933,null,{"$f":"VLOOKUP(B119+3300000,'AY 19-20 Sept to Marc'!C:D,2,FALSE)","v":"Whitehouse Common Primary School"}]
[3302479,2479,"Anglesey Primary School",578,21780,12705,9075,{"$f":"(VLOOKUP(B120,'SBS File Check'!B:G,6,FALSE)-G120)","v":0},null,0,null,{"$f":"VLOOKUP(B120+3300000,'AY 19-20 Sept to Marc'!C:D,2,FALSE)","v":"Anglesey Primary School"}]
[3302482,2482,"Wattville Primary School",408,20080,11713,8367,{"$f":"(VLOOKUP(B121,'SBS File Check'!B:G,6,FALSE)-G121)","v":0},null,0.33333333333212067,null,{"$f":"VLOOKUP(B121+3300000,'AY 19-20 Sept to Marc'!C:D,2,FALSE)","v":"Wattville Primary School"}]
[3302485,2485,"Yenton Primary School",399,19990,11661,8329,{"$f":"(VLOOKUP(B122,'SBS File Check'!B:G,6,FALSE)-G122)","v":0},null,-0.16666666666787933,null,{"$f":"VLOOKUP(B122+3300000,'AY 19-20 Sept to Marc'!C:D,2,FALSE)","v":{"$error":"#N/A"}}]
[3302486,2486,"Forestdale Primary School",178,17780,10372,7408,{"$f":"(VLOOKUP(B123,'SBS File Check'!B:G,6,FALSE)-G123)","v":0},null,-0.33333333333212067,null,{"$f":"VLOOKUP(B123+3300000,'AY 19-20 Sept to Marc'!C:D,2,FALSE)","v":"Forestdale Primary School"}]
[3303002,3002,"Christ Church CofE Controlled Primary School and Nursery",180,17800,10383,7417,{"$f":"(VLOOKUP(B124,'SBS File Check'!B:G,6,FALSE)-G124)","v":0},null,0.33333333333212067,null,{"$f":"VLOOKUP(B124+3300000,'AY 19-20 Sept to Marc'!C:D,2,FALSE)","v":"Christ Church CofE Controlled Primary School and Nursery"}]
[3303003,3003,"Moseley Church of England Primary School",183,17830,10401,7429,{"$f":"(VLOOKUP(B125,'SBS File Check'!B:G,6,FALSE)-G125)","v":0},null,-0.16666666666787933,null,{"$f":"VLOOKUP(B125+3300000,'AY 19-20 Sept to Marc'!C:D,2,FALSE)","v":"Moseley Church of England Primary School"}]
[3303010,3010,"St James Church of England Primary School, Handsworth",361,19610,11439,8171,{"$f":"(VLOOKUP(B126,'SBS File Check'!B:G,6,FALSE)-G126)","v":0},null,0.16666666666787933,null,{"$f":"VLOOKUP(B126+3300000,'AY 19-20 Sept to Marc'!C:D,2,FALSE)","v":"St James Church of England Primary School, Handsworth"}]
[3303016,3016,"St Matthew's CofE Primary School",176,17760,10360,7400,{"$f":"(VLOOKUP(B127,'SBS File Check'!B:G,6,FALSE)-G127)","v":0},null,0,null,{"$f":"VLOOKUP(B127+3300000,'AY 19-20 Sept to Marc'!C:D,2,FALSE)","v":"St Matthew's CofE Primary School"}]
[3303019,3019,"St Saviour's C of E Primary School",351,19510,11381,8129,{"$f":"(VLOOKUP(B128,'SBS File Check'!B:G,6,FALSE)-G128)","v":0},null,-0.16666666666787933,null,{"$f":"VLOOKUP(B128+3300000,'AY 19-20 Sept to Marc'!C:D,2,FALSE)","v":"St Saviour's C of E Primary School"}]
[3303025,3025,"St Mary's Church of England Primary School",328,19280,11247,8033,{"$f":"(VLOOKUP(B129,'SBS File Check'!B:G,6,FALSE)-G129)","v":0},null,-0.33333333333212067,null,{"$f":"VLOOKUP(B129+3300000,'AY 19-20 Sept to Marc'!C:D,2,FALSE)","v":"St Mary's Church of England Primary School"}]
[3303302,3302,"Saint Barnabas Church of England Primary School",328,19280,11247,8033,{"$f":"(VLOOKUP(B130,'SBS File Check'!B:G,6,FALSE)-G130)","v":0},null,-0.33333333333212067,null,{"$f":"VLOOKUP(B130+3300000,'AY 19-20 Sept to Marc'!C:D,2,FALSE)","v":"Saint Barnabas Church of England Primary School"}]
[3303307,3307,"St Laurence Church Junior School",360,19600,11433,8167,{"$f":"(VLOOKUP(B131,'SBS File Check'!B:G,6,FALSE)-G131)","v":0},null,0.33333333333212067,null,{"$f":"VLOOKUP(B131+3300000,'AY 19-20 Sept to Marc'!C:D,2,FALSE)","v":"St Laurence Church Junior School"}]
[3303310,3310,"St Vincent's Catholic Primary School",175,17750,10354,7396,{"$f":"(VLOOKUP(B132,'SBS File Check'!B:G,6,FALSE)-G132)","v":0},null,0.16666666666787933,null,{"$f":"VLOOKUP(B132+3300000,'AY 19-20 Sept to Marc'!C:D,2,FALSE)","v":"St Vincent's Catholic Primary School"}]
[3303316,3316,"Guardian Angels Catholic Primary School",211,18110,10564,7546,{"$f":"(VLOOKUP(B133,'SBS File Check'!B:G,6,FALSE)-G133)","v":0},null,{"$f":"(((16000+(D133*10))/12*7)-F133)","v":0.16666666666787933},null,{"$f":"VLOOKUP(B133+3300000,'AY 19-20 Sept to Marc'!C:D,2,FALSE)","v":"Guardian Angels Catholic Primary School"}]
[3303317,3317,"Holy Family Catholic Primary School",201,18010,10506,7504,{"$f":"(VLOOKUP(B134,'SBS File Check'!B:G,6,FALSE)-G134)","v":0},null,-0.16666666666787933,null,{"$f":"VLOOKUP(B134+3300000,'AY 19-20 Sept to Marc'!C:D,2,FALSE)","v":"Holy Family Catholic Primary School"}]
[3303318,3318,"Abbey Catholic Primary School",357,19570,11416,8154,{"$f":"(VLOOKUP(B135,'SBS File Check'!B:G,6,FALSE)-G135)","v":0},null,-0.16666666666787933,null,{"$f":"VLOOKUP(B135+3300000,'AY 19-20 Sept to Marc'!C:D,2,FALSE)","v":"Abbey Catholic Primary School"}]
[3303319,3319,"Christ The King Catholic Primary School",317,19170,11183,7987,{"$f":"(VLOOKUP(B136,'SBS File Check'!B:G,6,FALSE)-G136)","v":0},null,-0.5,null,{"$f":"VLOOKUP(B136+3300000,'AY 19-20 Sept to Marc'!C:D,2,FALSE)","v":"Christ The King Catholic Primary School"}]
[3303320,3320,"Corpus Christi Catholic Primary School",358,19580,11422,8158,{"$f":"(VLOOKUP(B137,'SBS File Check'!B:G,6,FALSE)-G137)","v":0},null,-0.33333333333212067,null,{"$f":"VLOOKUP(B137+3300000,'AY 19-20 Sept to Marc'!C:D,2,FALSE)","v":"Corpus Christi Catholic Primary School"}]
[3303321,3321,"English Martyrs' Catholic Primary School",354,19540,11398,8142,{"$f":"(VLOOKUP(B138,'SBS File Check'!B:G,6,FALSE)-G138)","v":0},null,0.33333333333212067,null,{"$f":"VLOOKUP(B138+3300000,'AY 19-20 Sept to Marc'!C:D,2,FALSE)","v":"English Martyrs' Catholic Primary School"}]
[3303322,3322,"Maryvale Catholic Primary School",175,17750,10354,7396,{"$f":"(VLOOKUP(B139,'SBS File Check'!B:G,6,FALSE)-G139)","v":0},null,0.16666666666787933,null,{"$f":"VLOOKUP(B139+3300000,'AY 19-20 Sept to Marc'!C:D,2,FALSE)","v":"Maryvale Catholic Primary School"}]
[3303323,3323,"The Oratory Roman Catholic Primary School",180,17800,10383,7417,{"$f":"(VLOOKUP(B140,'SBS File Check'!B:G,6,FALSE)-G140)","v":0},null,0.33333333333212067,null,{"$f":"VLOOKUP(B140+3300000,'AY 19-20 Sept to Marc'!C:D,2,FALSE)","v":"The Oratory Roman Catholic Primary School"}]
[3303325,3325,"The Rosary Catholic Primary School",344,19440,11340,8100,{"$f":"(VLOOKUP(B141,'SBS File Check'!B:G,6,FALSE)-G141)","v":0},null,0,null,{"$f":"VLOOKUP(B141+3300000,'AY 19-20 Sept to Marc'!C:D,2,FALSE)","v":"The Rosary Catholic Primary School"}]
[3303327,3327,"Holy Souls Catholic Primary School",360,19600,11433,8167,{"$f":"(VLOOKUP(B142,'SBS File Check'!B:G,6,FALSE)-G142)","v":-6533.6},null,0.33333333333212067,"Conversion May 2019",{"$f":"VLOOKUP(B142+3300000,'AY 19-20 Sept to Marc'!C:D,2,FALSE)","v":{"$error":"#N/A"}}]
[3303328,3328,"Our Lady of Lourdes Catholic Primary School (NC)",180,17800,10383,7417,{"$f":"(VLOOKUP(B143,'SBS File Check'!B:G,6,FALSE)-G143)","v":0},null,0.33333333333212067,null,{"$f":"VLOOKUP(B143+3300000,'AY 19-20 Sept to Marc'!C:D,2,FALSE)","v":"Our Lady of Lourdes Catholic Primary School (NC)"}]
[3303329,3329,"St Augustine's Catholic Primary School",175,17750,10354,7396,{"$f":"(VLOOKUP(B144,'SBS File Check'!B:G,6,FALSE)-G144)","v":0},null,0.16666666666787933,null,{"$f":"VLOOKUP(B144+3300000,'AY 19-20 Sept to Marc'!C:D,2,FALSE)","v":"St Augustine's Catholic Primary School"}]
[3303331,3331,"St Catherine of Siena Catholic Primary School",186,17860,10418,7442,{"$f":"(VLOOKUP(B145,'SBS File Check'!B:G,6,FALSE)-G145)","v":0},null,0.33333333333212067,null,{"$f":"VLOOKUP(B145+3300000,'AY 19-20 Sept to Marc'!C:D,2,FALSE)","v":"St Catherine of Siena Catholic Primary School"}]
[3303335,3335,"St Anne's Catholic Primary School",174,17740,10348,7392,{"$f":"(VLOOKUP(B146,'SBS File Check'!B:G,6,FALSE)-G146)","v":0},null,0.33333333333212067,null,{"$f":"VLOOKUP(B146+3300000,'AY 19-20 Sept to Marc'!C:D,2,FALSE)","v":"St Anne's Catholic Primary School"}]
[3303337,3337,"St Chad's Catholic Primary School",184,17840,10407,7433,{"$f":"(VLOOKUP(B147,'SBS File Check'!B:G,6,FALSE)-G147)","v":0},null,-0.33333333333212067,null,{"$f":"VLOOKUP(B147+3300000,'AY 19-20 Sept to Marc'!C:D,2,FALSE)","v":"St Chad's Catholic Primary School"}]
[3303339,3339,"St Joseph's Catholic Primary School",173,17730,10343,7387,{"$f":"(VLOOKUP(B148,'SBS File Check'!B:G,6,FALSE)-G148)","v":0},null,-0.5,null,{"$f":"VLOOKUP(B148+3300000,'AY 19-20 Sept to Marc'!C:D,2,FALSE)","v":"St Joseph's Catholic Primary School"}]
[3303342,3342,"St Francis Catholic Primary School",359,19590,11428,8162,{"$f":"(VLOOKUP(B149,'SBS File Check'!B:G,6,FALSE)-G149)","v":0},null,-0.5,null,{"$f":"VLOOKUP(B149+3300000,'AY 19-20 Sept to Marc'!C:D,2,FALSE)","v":"St Francis Catholic Primary School"}]
[3303344,3344,"St Mary's Catholic Primary School",361,19610,11439,8171,{"$f":"(VLOOKUP(B150,'SBS File Check'!B:G,6,FALSE)-G150)","v":0},null,0.16666666666787933,null,{"$f":"VLOOKUP(B150+3300000,'AY 19-20 Sept to Marc'!C:D,2,FALSE)","v":"St Mary's Catholic Primary School"}]
[3303346,3346,"St Patrick's Catholic Primary School",176,17760,10360,7400,{"$f":"(VLOOKUP(B151,'SBS File Check'!B:G,6,FALSE)-G151)","v":0},null,0,null,{"$f":"VLOOKUP(B151+3300000,'AY 19-20 Sept to Marc'!C:D,2,FALSE)","v":"St Patrick's Catholic Primary School"}]
[3303347,3347,"St Edmund's Catholic Primary School",180,17800,10383,7417,{"$f":"(VLOOKUP(B152,'SBS File Check'!B:G,6,FALSE)-G152)","v":0},null,0.33333333333212067,null,{"$f":"VLOOKUP(B152+3300000,'AY 19-20 Sept to Marc'!C:D,2,FALSE)","v":"St Edmund's Catholic Primary School"}]
[3303349,3349,"St Thomas More Catholic Primary School",302,19020,11095,7925,{"$f":"(VLOOKUP(B153,'SBS File Check'!B:G,6,FALSE)-G153)","v":0},null,0,null,{"$f":"VLOOKUP(B153+3300000,'AY 19-20 Sept to Marc'!C:D,2,FALSE)","v":{"$error":"#N/A"}}]
[3303350,3350,"St Mary and St John Junior and Infant School",345,19450,11346,8104,{"$f":"(VLOOKUP(B154,'SBS File Check'!B:G,6,FALSE)-G154)","v":{"$error":"#N/A"}},null,-0.16666666666787933,"Conversion",{"$f":"VLOOKUP(B154+3300000,'AY 19-20 Sept to Marc'!C:D,2,FALSE)","v":{"$error":"#N/A"}}]
[3303351,3351,"Our Lady and St Rose of Lima Catholic Primary School",182,17820,10395,7425,{"$f":"(VLOOKUP(B155,'SBS File Check'!B:G,6,FALSE)-G155)","v":0},null,0,null,{"$f":"VLOOKUP(B155+3300000,'AY 19-20 Sept to Marc'!C:D,2,FALSE)","v":"Our Lady and St Rose of Lima Catholic Primary School"}]
[3303352,3352,"King David Junior and Infant School",176,17760,10360,7400,{"$f":"(VLOOKUP(B156,'SBS File Check'!B:G,6,FALSE)-G156)","v":0},null,0,null,{"$f":"VLOOKUP(B156+3300000,'AY 19-20 Sept to Marc'!C:D,2,FALSE)","v":"King David Junior and Infant School"}]
[3303353,3353,"Bournville Junior School",{"$f":"382+D158","v":562},{"$f":"19820+E158","v":37620},{"$f":"11562+F158","v":21945},{"$f":"8258+G158","v":15675},{"$f":"(VLOOKUP(B157,'SBS File Check'!B:G,6,FALSE)-G157)","v":-7417},null,-9333.3333333333321,null,{"$f":"VLOOKUP(B157+3300000,'AY 19-20 Sept to Marc'!C:D,2,FALSE)","v":"Bournville Village Primary"}]
[3303354,3354,"Bournville Infant School",180,17800,10383,7417,{"$f":"(VLOOKUP(B158,'SBS File Check'!B:G,6,FALSE)-G158)","v":0},null,0.33333333333212067,null,{"$f":"VLOOKUP(B158+3300000,'AY 19-20 Sept to Marc'!C:D,2,FALSE)","v":{"$error":"#N/A"}}]
[3303355,3355,"St Edward's Catholic Primary School",347,19470,11358,8112,{"$f":"(VLOOKUP(B159,'SBS File Check'!B:G,6,FALSE)-G159)","v":0},null,-0.5,null,{"$f":"VLOOKUP(B159+3300000,'AY 19-20 Sept to Marc'!C:D,2,FALSE)","v":"St Edward's Catholic Primary School"}]
[3303357,3357,"Our Lady's Catholic Primary School",177,17770,10366,7404,{"$f":"(VLOOKUP(B160,'SBS File Check'!B:G,6,FALSE)-G160)","v":0},null,-0.16666666666787933,null,{"$f":"VLOOKUP(B160+3300000,'AY 19-20 Sept to Marc'!C:D,2,FALSE)","v":"Our Lady's Catholic Primary School"}]
[3303359,3359,"St Wilfrid's Catholic Junior and Infant School",322,19220,11212,8008,{"$f":"(VLOOKUP(B161,'SBS File Check'!B:G,6,FALSE)-G161)","v":0},null,-0.33333333333212067,null,{"$f":"VLOOKUP(B161+3300000,'AY 19-20 Sept to Marc'!C:D,2,FALSE)","v":"St Wilfrid's Catholic Junior and Infant School"}]
[3303360,3360,"St John Fisher Catholic Primary School",178,17780,10372,7408,{"$f":"(VLOOKUP(B162,'SBS File Check'!B:G,6,FALSE)-G162)","v":0},null,-0.33333333333212067,null,{"$f":"VLOOKUP(B162+3300000,'AY 19-20 Sept to Marc'!C:D,2,FALSE)","v":"St John Fisher Catholic Primary School"}]
[3303361,3361,"St Margaret Mary RC Junior and Infant School",252,18520,10803,7717,{"$f":"(VLOOKUP(B163,'SBS File Check'!B:G,6,FALSE)-G163)","v":0},null,0.33333333333212067,null,{"$f":"VLOOKUP(B163+3300000,'AY 19-20 Sept to Marc'!C:D,2,FALSE)","v":"St Margaret Mary RC Junior and Infant School"}]
[3303362,3362,"St Peter and St Paul RC Junior and Infant School",178,17780,10372,7408,{"$f":"(VLOOKUP(B164,'SBS File Check'!B:G,6,FALSE)-G164)","v":{"$error":"#N/A"}},null,-0.33333333333212067,"Conversion",{"$f":"VLOOKUP(B164+3300000,'AY 19-20 Sept to Marc'!C:D,2,FALSE)","v":{"$error":"#N/A"}}]
[3303363,3363,"St Dunstan's Catholic Primary School",331,19310,11264,8046,{"$f":"(VLOOKUP(B165,'SBS File Check'!B:G,6,FALSE)-G165)","v":0},null,0.16666666666787933,null,{"$f":"VLOOKUP(B165+3300000,'AY 19-20 Sept to Marc'!C:D,2,FALSE)","v":"St Dunstan's Catholic Primary School"}]
[3303365,3365,"St Teresa's Catholic Primary School",181,17810,10389,7421,{"$f":"(VLOOKUP(B166,'SBS File Check'!B:G,6,FALSE)-G166)","v":0},null,0.16666666666787933,null,{"$f":"VLOOKUP(B166+3300000,'AY 19-20 Sept to Marc'!C:D,2,FALSE)","v":"St Teresa's Catholic Primary School"}]
[3303367,3367,"St Gerard's RC Junior and Infant School",178,17780,10372,7408,{"$f":"(VLOOKUP(B167,'SBS File Check'!B:G,6,FALSE)-G167)","v":0},null,-0.33333333333212067,null,{"$f":"VLOOKUP(B167+3300000,'AY 19-20 Sept to Marc'!C:D,2,FALSE)","v":"St Gerard's RC Junior and Infant School"}]
[3303371,3371,"St Laurence Church Infant School",180,17800,10383,7417,{"$f":"(VLOOKUP(B168,'SBS File Check'!B:G,6,FALSE)-G168)","v":0},null,0.33333333333212067,null,{"$f":"VLOOKUP(B168+3300000,'AY 19-20 Sept to Marc'!C:D,2,FALSE)","v":"St Laurence Church Infant School"}]
[3303372,3372,"St Bernadette's Catholic Primary School",534,21340,12448,8892,{"$f":"(VLOOKUP(B169,'SBS File Check'!B:G,6,FALSE)-G169)","v":0},null,0.33333333333212067,null,{"$f":"VLOOKUP(B169+3300000,'AY 19-20 Sept to Marc'!C:D,2,FALSE)","v":"St Bernadette's Catholic Primary School"}]
[3303375,3375,"St Bernard's Catholic Primary School",358,19580,11422,8158,{"$f":"(VLOOKUP(B170,'SBS File Check'!B:G,6,FALSE)-G170)","v":0},null,-0.33333333333212067,null,{"$f":"VLOOKUP(B170+3300000,'AY 19-20 Sept to Marc'!C:D,2,FALSE)","v":"St Bernard's Catholic Primary School"}]
[3303377,3377,"St Jude's Catholic Primary School",171,17710,10331,7379,{"$f":"(VLOOKUP(B171,'SBS File Check'!B:G,6,FALSE)-G171)","v":0},null,-0.16666666666787933,null,{"$f":"VLOOKUP(B171+3300000,'AY 19-20 Sept to Marc'!C:D,2,FALSE)","v":"St Jude's Catholic Primary School"}]
[3303380,3380,"St Ambrose Barlow Catholic Primary School",178,17780,10372,7408,{"$f":"(VLOOKUP(B172,'SBS File Check'!B:G,6,FALSE)-G172)","v":0},null,-0.33333333333212067,null,{"$f":"VLOOKUP(B172+3300000,'AY 19-20 Sept to Marc'!C:D,2,FALSE)","v":"St Ambrose Barlow Catholic Primary School"}]
[3303381,3381,"St Alban's Catholic Primary School",177,17770,10366,7404,{"$f":"(VLOOKUP(B173,'SBS File Check'!B:G,6,FALSE)-G173)","v":0},null,-0.16666666666787933,null,{"$f":"VLOOKUP(B173+3300000,'AY 19-20 Sept to Marc'!C:D,2,FALSE)","v":"St Alban's Catholic Primary School"}]
[3303382,3382,"St Martin de Porres Catholic Primary School",175,17750,10354,7396,{"$f":"(VLOOKUP(B174,'SBS File Check'!B:G,6,FALSE)-G174)","v":0},null,0.16666666666787933,null,{"$f":"VLOOKUP(B174+3300000,'AY 19-20 Sept to Marc'!C:D,2,FALSE)","v":"St Martin de Porres Catholic Primary School"}]
[3303383,3383,"St Mark's Catholic Primary School",180,17800,10383,7417,{"$f":"(VLOOKUP(B175,'SBS File Check'!B:G,6,FALSE)-G175)","v":0},null,0.33333333333212067,null,{"$f":"VLOOKUP(B175+3300000,'AY 19-20 Sept to Marc'!C:D,2,FALSE)","v":"St Mark's Catholic Primary School"}]
[3303385,3385,"St Peter's Catholic Primary School",180,17800,10383,7417,{"$f":"(VLOOKUP(B176,'SBS File Check'!B:G,6,FALSE)-G176)","v":0},null,0.33333333333212067,null,{"$f":"VLOOKUP(B176+3300000,'AY 19-20 Sept to Marc'!C:D,2,FALSE)","v":"St Peter's Catholic Primary School"}]
[3303386,3386,"St Cuthbert's RC Junior and Infant (NC) School",180,17800,10383,7417,{"$f":"(VLOOKUP(B177,'SBS File Check'!B:G,6,FALSE)-G177)","v":0},null,0.33333333333212067,null,{"$f":"VLOOKUP(B177+3300000,'AY 19-20 Sept to Marc'!C:D,2,FALSE)","v":"St Cuthbert's RC Junior and Infant (NC) School"}]
[3303406,3406,"St Clare's Catholic Primary School",361,19610,11439,8171,{"$f":"(VLOOKUP(B178,'SBS File Check'!B:G,6,FALSE)-G178)","v":0},null,0.16666666666787933,null,{"$f":"VLOOKUP(B178+3300000,'AY 19-20 Sept to Marc'!C:D,2,FALSE)","v":"St Clare's Catholic Primary School"}]
[3303409,3409,"Sacred Heart Catholic School",190,17900,10442,7458,{"$f":"(VLOOKUP(B179,'SBS File Check'!B:G,6,FALSE)-G179)","v":0},null,-0.33333333333212067,null,{"$f":"VLOOKUP(B179+3300000,'AY 19-20 Sept to Marc'!C:D,2,FALSE)","v":{"$error":"#N/A"}}]
[3303410,3410,"St John and Monica Catholic Primary School",181,17810,10389,7421,{"$f":"(VLOOKUP(B180,'SBS File Check'!B:G,6,FALSE)-G180)","v":0},null,0.16666666666787933,null,{"$f":"VLOOKUP(B180+3300000,'AY 19-20 Sept to Marc'!C:D,2,FALSE)","v":"St John and Monica Catholic Primary School"}]
[3303411,3411,"Holly Hill Methodist CofE Infant School",118,17180,10022,7158,{"$f":"(VLOOKUP(B181,'SBS File Check'!B:G,6,FALSE)-G181)","v":0},null,-0.33333333333212067,null,{"$f":"VLOOKUP(B181+3300000,'AY 19-20 Sept to Marc'!C:D,2,FALSE)","v":"Holly Hill Methodist CofE Infant School"}]
[3303413,3413,"Springfield Primary School",510,21100,12308,8792,{"$f":"(VLOOKUP(B182,'SBS File Check'!B:G,6,FALSE)-G182)","v":{"$error":"#N/A"}},null,0.33333333333212067,"Conversion",{"$f":"VLOOKUP(B182+3300000,'AY 19-20 Sept to Marc'!C:D,2,FALSE)","v":{"$error":"#N/A"}}]
[3303421,3421,"Yardley Primary School",719,23190,13528,9662,{"$f":"(VLOOKUP(B183,'SBS File Check'!B:G,6,FALSE)-G183)","v":0},null,-0.5,null,{"$f":"VLOOKUP(B183+3300000,'AY 19-20 Sept to Marc'!C:D,2,FALSE)","v":"Yardley Primary School"}]
[3303428,3428,"St Peters CofE Primary School",361,19610,11439,8171,{"$f":"(VLOOKUP(B184,'SBS File Check'!B:G,6,FALSE)-G184)","v":0},null,0.16666666666787933,null,{"$f":"VLOOKUP(B184+3300000,'AY 19-20 Sept to Marc'!C:D,2,FALSE)","v":"St Peters CofE Primary School"}]
[3303431,3431,"New Oscott Primary School",538,21380,12472,8908,{"$f":"(VLOOKUP(B185,'SBS File Check'!B:G,6,FALSE)-G185)","v":0},null,-0.33333333333212067,null,{"$f":"VLOOKUP(B185+3300000,'AY 19-20 Sept to Marc'!C:D,2,FALSE)","v":"New Oscott Primary School"}]
[3303432,3432,"Clifton Primary School",719,23190,13528,9662,{"$f":"(VLOOKUP(B186,'SBS File Check'!B:G,6,FALSE)-G186)","v":0},null,-0.5,null,{"$f":"VLOOKUP(B186+3300000,'AY 19-20 Sept to Marc'!C:D,2,FALSE)","v":"Clifton Primary School"}]
[3303435,3435,"Four Oaks Primary School",361,19610,11439,8171,{"$f":"(VLOOKUP(B187,'SBS File Check'!B:G,6,FALSE)-G187)","v":0},null,0.16666666666787933,null,{"$f":"VLOOKUP(B187+3300000,'AY 19-20 Sept to Marc'!C:D,2,FALSE)","v":"Four Oaks Primary School"}]
[3303436,3436,"Harper Bell Seventh-day Adventist School",170,17700,10325,7375,{"$f":"(VLOOKUP(B188,'SBS File Check'!B:G,6,FALSE)-G188)","v":0},null,0,null,{"$f":"VLOOKUP(B188+3300000,'AY 19-20 Sept to Marc'!C:D,2,FALSE)","v":"Harper Bell Seventh-day Adventist School"}]
[3304334,4334,"Al-Hijrah School",358,19580,11422,8158,{"$f":"(VLOOKUP(B189,'SBS File Check'!B:G,6,FALSE)-G189)","v":0},null,-0.33333333333212067,null,{"$f":"VLOOKUP(B189+3300000,'AY 19-20 Sept to Marc'!C:D,2,FALSE)","v":{"$error":"#N/A"}}]
[3305202,5202,"Walmley Junior School",361,19610,11439,8171,{"$f":"(VLOOKUP(B190,'SBS File Check'!B:G,6,FALSE)-G190)","v":0},null,0.16666666666787933,null,{"$f":"VLOOKUP(B190+3300000,'AY 19-20 Sept to Marc'!C:D,2,FALSE)","v":"Walmley Junior School"}]
[3305203,5203,"Walmley Infant School",181,17810,10389,7421,{"$f":"(VLOOKUP(B191,'SBS File Check'!B:G,6,FALSE)-G191)","v":0},null,0.16666666666787933,null,{"$f":"VLOOKUP(B191+3300000,'AY 19-20 Sept to Marc'!C:D,2,FALSE)","v":"Walmley Infant School"}]
[3305949,5949,"Al-Furqan Primary School",538,21380,12472,8908,{"$f":"(VLOOKUP(B192,'SBS File Check'!B:G,6,FALSE)-G192)","v":0},null,-0.33333333333212067,null,{"$f":"VLOOKUP(B192+3300000,'AY 19-20 Sept to Marc'!C:D,2,FALSE)","v":"Al-Furqan Primary School"}]
[3307006,7006,"Hamilton School",100,17000,9917,7083,{"$f":"(VLOOKUP(B193,'SBS File Check'!B:G,6,FALSE)-G193)","v":0},null,-0.33333333333212067,null,{"$f":"VLOOKUP(B193+3300000,'AY 19-20 Sept to Marc'!C:D,2,FALSE)","v":"Hamilton School"}]
[3307009,7009,"Victoria School",84,16840,9823,7017,{"$f":"(VLOOKUP(B194,'SBS File Check'!B:G,6,FALSE)-G194)","v":0},null,0.33333333333212067,null,{"$f":"VLOOKUP(B194+3300000,'AY 19-20 Sept to Marc'!C:D,2,FALSE)","v":"Victoria School"}]
[3307012,7012,"Longwill A Primary School for Deaf Children",50,16500,9625,6875,{"$f":"(VLOOKUP(B195,'SBS File Check'!B:G,6,FALSE)-G195)","v":0},null,0,null,{"$f":"VLOOKUP(B195+3300000,'AY 19-20 Sept to Marc'!C:D,2,FALSE)","v":"Longwill A Primary School for Deaf Children"}]
[3307014,7014,"Uffculme School",85,16850,9829,7021,{"$f":"(VLOOKUP(B196,'SBS File Check'!B:G,6,FALSE)-G196)","v":0},null,0.16666666666787933,null,{"$f":"VLOOKUP(B196+3300000,'AY 19-20 Sept to Marc'!C:D,2,FALSE)","v":"Uffculme School"}]
[3307034,7034,"Priestley Smith School",24,16240,9473,6767,{"$f":"(VLOOKUP(B197,'SBS File Check'!B:G,6,FALSE)-G197)","v":0},null,{"$f":"(((16000+(D197*10))/12*7)-F197)","v":0.33333333333212067},null,{"$f":"VLOOKUP(B197+3300000,'AY 19-20 Sept to Marc'!C:D,2,FALSE)","v":"Priestley Smith School"}]
[3307035,7035,"The Dame Ellen Pinsent School",145,17450,10179,7271,{"$f":"(VLOOKUP(B198,'SBS File Check'!B:G,6,FALSE)-G198)","v":0},null,0.16666666666787933,null,{"$f":"VLOOKUP(B198+3300000,'AY 19-20 Sept to Marc'!C:D,2,FALSE)","v":"The Dame Ellen Pinsent School"}]
[3307037,7037,"Skilts School",81,16810,9806,7004,{"$f":"(VLOOKUP(B199,'SBS File Check'!B:G,6,FALSE)-G199)","v":0},null,-0.16666666666787933,null,{"$f":"VLOOKUP(B199+3300000,'AY 19-20 Sept to Marc'!C:D,2,FALSE)","v":"Skilts School"}]
[3307040,7040,"Mayfield School",116,17160,10010,7150,{"$f":"(VLOOKUP(B200,'SBS File Check'!B:G,6,FALSE)-G200)","v":0},null,0,null,{"$f":"VLOOKUP(B200+3300000,'AY 19-20 Sept to Marc'!C:D,2,FALSE)","v":"Mayfield School"}]
[3307045,7045,"The Pines Special School",115,17150,10004,7146,{"$f":"(VLOOKUP(B201,'SBS File Check'!B:G,6,FALSE)-G201)","v":0},null,0.16666666666787933,null,{"$f":"VLOOKUP(B201+3300000,'AY 19-20 Sept to Marc'!C:D,2,FALSE)","v":"The Pines Special School"}]
[3307047,7047,"Springfield House Community Special School",96,16960,9893,7067,{"$f":"(VLOOKUP(B202,'SBS File Check'!B:G,6,FALSE)-G202)","v":0},null,0.33333333333212067,null,{"$f":"VLOOKUP(B202+3300000,'AY 19-20 Sept to Marc'!C:D,2,FALSE)","v":"Springfield House Community Special School"}]
[3307051,7051,"Cherry Oak School",105,17050,9946,7104,{"$f":"(VLOOKUP(B203,'SBS File Check'!B:G,6,FALSE)-G203)","v":0},null,-0.16666666666787933,null,{"$f":"VLOOKUP(B203+3300000,'AY 19-20 Sept to Marc'!C:D,2,FALSE)","v":"Cherry Oak School"}]
[3307052,7052,"Beaufort School",59,16590,9678,6912,{"$f":"(VLOOKUP(B204,'SBS File Check'!B:G,6,FALSE)-G204)","v":0},null,-0.5,null,{"$f":"VLOOKUP(B204+3300000,'AY 19-20 Sept to Marc'!C:D,2,FALSE)","v":"Beaufort School"}]
[3307060,7060,"Langley School",114,17140,9998,7142,{"$f":"(VLOOKUP(B205,'SBS File Check'!B:G,6,FALSE)-G205)","v":0},null,0.33333333333212067,null,{"$f":"VLOOKUP(B205+3300000,'AY 19-20 Sept to Marc'!C:D,2,FALSE)","v":"Langley School"}]
[3307062,7062,"Lindsworth School",10,10000,5833,4167,{"$f":"(VLOOKUP(B206,'SBS File Check'!B:G,6,FALSE)-G206)","v":0},null,3558.6666666666679,"under pupils for allocation",{"$f":"VLOOKUP(B206+3300000,'AY 19-20 Sept to Marc'!C:D,2,FALSE)","v":"Lindsworth School"}]
[]
[]
[null,null,null,{"$f":"SUM(D3:D208)","v":60333},3877230,2261725,1615505,{"$error":"#N/A"},0,-15115.833333333339]

{"sheet":"AY 19-20 Sept to Marc","index":6,"n_rows":195,"n_cols":14,"rows_kept":195,"cut":false,"hidden":true,"merged":[]}
["LA No.","LA Name","LAEstab (at Sept 19)","School Name (at Sept 19)","Eligible Pupils","Total Allocation","October / February payment","April payment",null,null,"Formula check"]
[330,"Birmingham",3301100,"City of Birmingham School",110,17100,9975,7125,null,{"$f":"VLOOKUP(C2-3300000,'[2]School List'!A:D,4,FALSE)","v":"EPA"},{"$f":"(E2*10)+16000-F2","v":0},null,{"$f":"VLOOKUP(C2-3300000,'October figures 18 AY 18-19'!$B$4:$C$206,2,FALSE)","v":"City of Birmingham School"}]
[330,"Birmingham",3302004,"Mapledene Primary School",291,18910,11031,7879,null,{"$f":"VLOOKUP(C3-3300000,'[2]School List'!A:D,4,FALSE)","v":"Non Chq Bk"},{"$f":"(E3*10)+16000-F3","v":0},null,{"$f":"VLOOKUP(C3-3300000,'October figures 18 AY 18-19'!$B$4:$C$206,2,FALSE)","v":"Mapledene Primary School"}]
[330,"Birmingham",3302005,"Kings Heath Primary School",562,21620,12612,9008,null,{"$f":"VLOOKUP(C4-3300000,'[2]School List'!A:D,4,FALSE)","v":"Non Chq Bk"},0,null,{"$f":"VLOOKUP(C4-3300000,'October figures 18 AY 18-19'!$B$4:$C$206,2,FALSE)","v":"Kings Heath Primary School"}]
[330,"Birmingham",3302008,"Shaw Hill Primary School",370,19700,11492,8208,null,{"$f":"VLOOKUP(C5-3300000,'[2]School List'!A:D,4,FALSE)","v":"EPA"},0,null,{"$f":"VLOOKUP(C5-3300000,'October figures 18 AY 18-19'!$B$4:$C$206,2,FALSE)","v":"Shaw Hill Primary School"}]
[330,"Birmingham",3302010,"Adderley Primary School",496,20960,12227,8733,null,{"$f":"VLOOKUP(C6-3300000,'[2]School List'!A:D,4,FALSE)","v":"Chq Bk"},0,null,{"$f":"VLOOKUP(C6-3300000,'October figures 18 AY 18-19'!$B$4:$C$206,2,FALSE)","v":"Adderley Primary School"}]
[330,"Birmingham",3302011,"Wheelers Lane Primary School",540,21400,12483,8917,null,{"$f":"VLOOKUP(C7-3300000,'[2]School List'!A:D,4,FALSE)","v":"Chq Bk"},0,null,{"$f":"VLOOKUP(C7-3300000,'October figures 18 AY 18-19'!$B$4:$C$206,2,FALSE)","v":"Wheelers Lane Primary School"}]
[330,"Birmingham",3302014,"Barford Primary School",359,19590,11428,8162,null,{"$f":"VLOOKUP(C8-3300000,'[2]School List'!A:D,4,FALSE)","v":"Non Chq Bk"},0,null,{"$f":"VLOOKUP(C8-3300000,'October figures 18 AY 18-19'!$B$4:$C$206,2,FALSE)","v":"Barford Primary School"}]
[330,"Birmingham",3302015,"James Watt Primary School",356,19560,11410,8150,null,{"$f":"VLOOKUP(C9-3300000,'[2]School List'!A:D,4,FALSE)","v":"Chq Bk"},0,null,{"$f":"VLOOKUP(C9-3300000,'October figures 18 AY 18-19'!$B$4:$C$206,2,FALSE)","v":"James Watt Primary School"}]
[330,"Birmingham",3302016,"Beeches Junior School",361,19610,11439,8171,null,{"$f":"VLOOKUP(C10-3300000,'[2]School List'!A:D,4,FALSE)","v":"Non Chq Bk"},0,null,{"$f":"VLOOKUP(C10-3300000,'October figures 18 AY 18-19'!$B$4:$C$206,2,FALSE)","v":"Beeches Junior School"}]
[330,"Birmingham",3302017,"Beeches Infant School",180,17800,10383,7417,null,{"$f":"VLOOKUP(C11-3300000,'[2]School List'!A:D,4,FALSE)","v":"Non Chq Bk"},0,null,{"$f":"VLOOKUP(C11-3300000,'October figures 18 AY 18-19'!$B$4:$C$206,2,FALSE)","v":"Beeches Infant School"}]
[330,"Birmingham",3302018,"The Oaks Primary School",329,19290,11253,8037,null,{"$f":"VLOOKUP(C12-3300000,'[2]School List'!A:D,4,FALSE)","v":"Non Chq Bk"},0,null,{"$f":"VLOOKUP(C12-3300000,'October figures 18 AY 18-19'!$B$4:$C$206,2,FALSE)","v":"The Oaks Primary School"}]
[330,"Birmingham",3302019,"West Heath Primary School",348,19480,11363,8117,null,{"$f":"VLOOKUP(C13-3300000,'[2]School List'!A:D,4,FALSE)","v":"Non Chq Bk"},0,null,{"$f":"VLOOKUP(C13-3300000,'October figures 18 AY 18-19'!$B$4:$C$206,2,FALSE)","v":"West Heath Primary School"}]
[330,"Birmingham",3302021,"Paganel Primary School",349,19490,11369,8121,null,{"$f":"VLOOKUP(C14-3300000,'[2]School List'!A:D,4,FALSE)","v":"EPA"},0,null,{"$f":"VLOOKUP(C14-3300000,'October figures 18 AY 18-19'!$B$4:$C$206,2,FALSE)","v":"Paganel Primary School"}]
[330,"Birmingham",3302024,"Birches Green Junior School",230,18300,10675,7625,null,{"$f":"VLOOKUP(C15-3300000,'[2]School List'!A:D,4,FALSE)","v":"Non Chq Bk"},0,null,{"$f":"VLOOKUP(C15-3300000,'October figures 18 AY 18-19'!$B$4:$C$206,2,FALSE)","v":"Birches Green Junior School"}]
[330,"Birmingham",3302025,"Birches Green Infant School",117,17170,10016,7154,null,{"$f":"VLOOKUP(C16-3300000,'[2]School List'!A:D,4,FALSE)","v":"Non Chq Bk"},0,null,{"$f":"VLOOKUP(C16-3300000,'October figures 18 AY 18-19'!$B$4:$C$206,2,FALSE)","v":"Birches Green Infant School"}]
[330,"Birmingham",3302026,"Banners Gate Primary School",317,19170,11183,7987,null,{"$f":"VLOOKUP(C17-3300000,'[2]School List'!A:D,4,FALSE)","v":"EPA"},0,null,{"$f":"VLOOKUP(C17-3300000,'October figures 18 AY 18-19'!$B$4:$C$206,2,FALSE)","v":"Banners Gate Primary School"}]
[330,"Birmingham",3302030,"Bordesley Green Primary School",599,21990,12828,9162,null,{"$f":"VLOOKUP(C18-3300000,'[2]School List'!A:D,4,FALSE)","v":"Chq Bk"},0,null,{"$f":"VLOOKUP(C18-3300000,'October figures 18 AY 18-19'!$B$4:$C$206,2,FALSE)","v":"Bordesley Green Primary School"}]
[330,"Birmingham",3302040,"Cherry Orchard Primary School",378,19780,11538,8242,null,{"$f":"VLOOKUP(C19-3300000,'[2]School List'!A:D,4,FALSE)","v":"EPA"},0,null,{"$f":"VLOOKUP(C19-3300000,'October figures 18 AY 18-19'!$B$4:$C$206,2,FALSE)","v":"Cherry Orchard Primary School"}]
[330,"Birmingham",3302053,"Colmore Junior School",480,20800,12133,8667,null,{"$f":"VLOOKUP(C20-3300000,'[2]School List'!A:D,4,FALSE)","v":"Chq Bk"},0,null,{"$f":"VLOOKUP(C20-3300000,'October figures 18 AY 18-19'!$B$4:$C$206,2,FALSE)","v":"Colmore Junior School"}]
[330,"Birmingham",3302054,"Colmore Infant and Nursery School",237,18370,10716,7654,null,{"$f":"VLOOKUP(C21-3300000,'[2]School List'!A:D,4,FALSE)","v":"Chq Bk"},0,null,{"$f":"VLOOKUP(C21-3300000,'October figures 18 AY 18-19'!$B$4:$C$206,2,FALSE)","v":"Colmore Infant and Nursery School"}]
[330,"Birmingham",3302055,"Cotteridge Primary School",347,19470,11358,8112,null,{"$f":"VLOOKUP(C22-3300000,'[2]School List'!A:D,4,FALSE)","v":"Non Chq Bk"},0,null,{"$f":"VLOOKUP(C22-3300000,'October figures 18 AY 18-19'!$B$4:$C$206,2,FALSE)","v":"Cotteridge Primary School"}]
[330,"Birmingham",3302062,"Anderton Park Primary School",540,21400,12483,8917,null,{"$f":"VLOOKUP(C23-3300000,'[2]School List'!A:D,4,FALSE)","v":"Chq Bk"},0,null,{"$f":"VLOOKUP(C23-3300000,'October figures 18 AY 18-19'!$B$4:$C$206,2,FALSE)","v":"Anderton Park Primary School"}]
[330,"Birmingham",3302063,"Regents Park Community Primary School",510,21100,12308,8792,null,{"$f":"VLOOKUP(C24-3300000,'[2]School List'!A:D,4,FALSE)","v":"EPA"},0,null,{"$f":"VLOOKUP(C24-3300000,'October figures 18 AY 18-19'!$B$4:$C$206,2,FALSE)","v":"Regents Park Community Primary School"}]
[330,"Birmingham",3302067,"Summerfield Junior and Infant School",351,19510,11381,8129,null,{"$f":"VLOOKUP(C25-3300000,'[2]School List'!A:D,4,FALSE)","v":"Non Chq Bk"},0,null,{"$f":"VLOOKUP(C25-3300000,'October figures 18 AY 18-19'!$B$4:$C$206,2,FALSE)","v":"Summerfield Junior and Infant School"}]
[330,"Birmingham",3302079,"George Dixon Primary School",342,19420,11328,8092,null,{"$f":"VLOOKUP(C26-3300000,'[2]School List'!A:D,4,FALSE)","v":"Non Chq Bk"},0,null,{"$f":"VLOOKUP(C26-3300000,'October figures 18 AY 18-19'!$B$4:$C$206,2,FALSE)","v":"George Dixon Primary School"}]
[330,"Birmingham",3302081,"Gilbertstone Primary School",355,19550,11404,8146,null,{"$f":"VLOOKUP(C27-3300000,'[2]School List'!A:D,4,FALSE)","v":"EPA"},0,null,{"$f":"VLOOKUP(C27-3300000,'October figures 18 AY 18-19'!$B$4:$C$206,2,FALSE)","v":"Gilbertstone Primary School"}]
[330,"Birmingham",3302087,"Grendon Junior and Infant School (NC)",300,19000,11083,7917,null,{"$f":"VLOOKUP(C28-3300000,'[2]School List'!A:D,4,FALSE)","v":"Non Chq Bk"},0,null,{"$f":"VLOOKUP(C28-3300000,'October figures 18 AY 18-19'!$B$4:$C$206,2,FALSE)","v":"Grendon Junior and Infant School (NC)"}]
[330,"Birmingham",3302091,"Gunter Primary School",177,17770,10366,7404,null,{"$f":"VLOOKUP(C29-3300000,'[2]School List'!A:D,4,FALSE)","v":"Non Chq Bk"},0,null,{"$f":"VLOOKUP(C29-3300000,'October figures 18 AY 18-19'!$B$4:$C$206,2,FALSE)","v":"Gunter Primary School"}]
[330,"Birmingham",3302092,"Hall Green Junior School",480,20800,12133,8667,null,{"$f":"VLOOKUP(C30-3300000,'[2]School List'!A:D,4,FALSE)","v":"Chq Bk"},0,null,{"$f":"VLOOKUP(C30-3300000,'October figures 18 AY 18-19'!$B$4:$C$206,2,FALSE)","v":"Hall Green Junior School"}]
[330,"Birmingham",3302093,"Hall Green Infant School",239,18390,10728,7662,null,{"$f":"VLOOKUP(C31-3300000,'[2]School List'!A:D,4,FALSE)","v":"EPA"},0,null,{"$f":"VLOOKUP(C31-3300000,'October figures 18 AY 18-19'!$B$4:$C$206,2,FALSE)","v":"Hall Green Infant School"}]
[330,"Birmingham",3302097,"Story Wood School",177,17770,10366,7404,null,{"$f":"VLOOKUP(C32-3300000,'[2]School List'!A:D,4,FALSE)","v":"Chq Bk"},0,null,{"$f":"VLOOKUP(C32-3300000,'October figures 18 AY 18-19'!$B$4:$C$206,2,FALSE)","v":"Story Wood School and Children's Centre"}]
[330,"Birmingham",3302099,"Hawthorn Primary School",177,17770,10366,7404,null,{"$f":"VLOOKUP(C33-3300000,'[2]School List'!A:D,4,FALSE)","v":"EPA"},0,null,{"$f":"VLOOKUP(C33-3300000,'October figures 18 AY 18-19'!$B$4:$C$206,2,FALSE)","v":"Hawthorn Primary School"}]
[330,"Birmingham",3302108,"Ward End Primary School",719,23190,13528,9662,null,{"$f":"VLOOKUP(C34-3300000,'[2]School List'!A:D,4,FALSE)","v":"Non Chq Bk"},0,null,{"$f":"VLOOKUP(C34-3300000,'October figures 18 AY 18-19'!$B$4:$C$206,2,FALSE)","v":"Ward End Primary School"}]
[330,"Birmingham",3302115,"Kingsland Primary School (NC)",249,18490,10786,7704,null,{"$f":"VLOOKUP(C35-3300000,'[2]School List'!A:D,4,FALSE)","v":"Non Chq Bk"},0,null,{"$f":"VLOOKUP(C35-3300000,'October figures 18 AY 18-19'!$B$4:$C$206,2,FALSE)","v":"Kingsland Primary School (NC)"}]
[330,"Birmingham",3302118,"Kings Norton Junior and Infant School",354,19540,11398,8142,null,{"$f":"VLOOKUP(C36-3300000,'[2]School List'!A:D,4,FALSE)","v":"EPA"},0,null,{"$f":"VLOOKUP(C36-3300000,'October figures 18 AY 18-19'!$B$4:$C$206,2,FALSE)","v":"Kings Norton Junior and Infant School"}]
[330,"Birmingham",3302119,"Lakey Lane Junior and Infant School",359,19590,11428,8162,null,{"$f":"VLOOKUP(C37-3300000,'[2]School List'!A:D,4,FALSE)","v":"EPA"},0,null,{"$f":"VLOOKUP(C37-3300000,'October figures 18 AY 18-19'!$B$4:$C$206,2,FALSE)","v":"Lakey Lane Junior and Infant School"}]
[330,"Birmingham",3302127,"Lozells Junior and Infant School and Nursery",360,19600,11433,8167,null,{"$f":"VLOOKUP(C38-3300000,'[2]School List'!A:D,4,FALSE)","v":"Chq Bk"},0,null,{"$f":"VLOOKUP(C38-3300000,'October figures 18 AY 18-19'!$B$4:$C$206,2,FALSE)","v":"Lozells Junior and Infant School and Nursery"}]
[330,"Birmingham",3302128,"Lyndon Green Junior School",369,19690,11486,8204,null,{"$f":"VLOOKUP(C39-3300000,'[2]School List'!A:D,4,FALSE)","v":"Chq Bk"},0,null,{"$f":"VLOOKUP(C39-3300000,'October figures 18 AY 18-19'!$B$4:$C$206,2,FALSE)","v":"Lyndon Green Junior School"}]
[330,"Birmingham",3302129,"Lyndon Green Infant School",187,17870,10424,7446,null,{"$f":"VLOOKUP(C40-3300000,'[2]School List'!A:D,4,FALSE)","v":"Chq Bk"},0,null,{"$f":"VLOOKUP(C40-3300000,'October figures 18 AY 18-19'!$B$4:$C$206,2,FALSE)","v":"Lyndon Green Infant School"}]
[330,"Birmingham",3302133,"Marsh Hill Primary School",358,19580,11422,8158,null,{"$f":"VLOOKUP(C41-3300000,'[2]School List'!A:D,4,FALSE)","v":"Chq Bk"},0,null,{"$f":"VLOOKUP(C41-3300000,'October figures 18 AY 18-19'!$B$4:$C$206,2,FALSE)","v":"Marsh Hill Primary School"}]
[330,"Birmingham",3302142,"Nelson Junior and Infant School",347,19470,11358,8112,null,{"$f":"VLOOKUP(C42-3300000,'[2]School List'!A:D,4,FALSE)","v":"Non Chq Bk"},0,null,{"$f":"VLOOKUP(C42-3300000,'October figures 18 AY 18-19'!$B$4:$C$206,2,FALSE)","v":"Nelson Junior and Infant School"}]
[330,"Birmingham",3302149,"Paget Primary School",351,19510,11381,8129,null,{"$f":"VLOOKUP(C43-3300000,'[2]School List'!A:D,4,FALSE)","v":"Non Chq Bk"},0,null,{"$f":"VLOOKUP(C43-3300000,'October figures 18 AY 18-19'!$B$4:$C$206,2,FALSE)","v":"Paget Primary School"}]
[330,"Birmingham",3302150,"Park Hill Primary School",446,20460,11935,8525,null,{"$f":"VLOOKUP(C44-3300000,'[2]School List'!A:D,4,FALSE)","v":"Non Chq Bk"},0,null,{"$f":"VLOOKUP(C44-3300000,'October figures 18 AY 18-19'!$B$4:$C$206,2,FALSE)","v":"Park Hill Primary School"}]
[330,"Birmingham",3302153,"Allens Croft Primary School",315,19150,11171,7979,null,{"$f":"VLOOKUP(C45-3300000,'[2]School List'!A:D,4,FALSE)","v":"EPA"},0,null,{"$f":"VLOOKUP(C45-3300000,'October figures 18 AY 18-19'!$B$4:$C$206,2,FALSE)","v":"Allens Croft Primary School"}]
[330,"Birmingham",3302157,"Raddlebarn Primary School",328,19280,11247,8033,null,{"$f":"VLOOKUP(C46-3300000,'[2]School List'!A:D,4,FALSE)","v":"Non Chq Bk"},0,null,{"$f":"VLOOKUP(C46-3300000,'October figures 18 AY 18-19'!$B$4:$C$206,2,FALSE)","v":"Raddlebarn Primary School"}]
[330,"Birmingham",3302159,"Redhill Primary School",181,17810,10389,7421,null,{"$f":"VLOOKUP(C47-3300000,'[2]School List'!A:D,4,FALSE)","v":"Non Chq Bk"},0,null,{"$f":"VLOOKUP(C47-3300000,'October figures 18 AY 18-19'!$B$4:$C$206,2,FALSE)","v":"Redhill Junior and Infant School"}]
[330,"Birmingham",3302160,"Rednal Hill Junior School",351,19510,11381,8129,null,{"$f":"VLOOKUP(C48-3300000,'[2]School List'!A:D,4,FALSE)","v":"EPA"},0,null,{"$f":"VLOOKUP(C48-3300000,'October figures 18 AY 18-19'!$B$4:$C$206,2,FALSE)","v":"Rednal Hill Junior School"}]
[330,"Birmingham",3302161,"Rednal Hill Infant School",180,17800,10383,7417,null,{"$f":"VLOOKUP(C49-3300000,'[2]School List'!A:D,4,FALSE)","v":"Non Chq Bk"},0,null,{"$f":"VLOOKUP(C49-3300000,'October figures 18 AY 18-19'!$B$4:$C$206,2,FALSE)","v":"Rednal Hill Infant School"}]
[330,"Birmingham",3302169,"Severne Junior Infant and Nursery School",343,19430,11334,8096,null,{"$f":"VLOOKUP(C50-3300000,'[2]School List'!A:D,4,FALSE)","v":"Non Chq Bk"},0,null,{"$f":"VLOOKUP(C50-3300000,'October figures 18 AY 18-19'!$B$4:$C$206,2,FALSE)","v":"Severne Junior Infant and Nursery School"}]
[330,"Birmingham",3302174,"Sladefield Infant School",240,18400,10733,7667,null,{"$f":"VLOOKUP(C51-3300000,'[2]School List'!A:D,4,FALSE)","v":"Chq Bk"},0,null,{"$f":"VLOOKUP(C51-3300000,'October figures 18 AY 18-19'!$B$4:$C$206,2,FALSE)","v":"Sladefield Infant School"}]
[330,"Birmingham",3302176,"Somerville Primary (NC) School",596,21960,12810,9150,null,{"$f":"VLOOKUP(C52-3300000,'[2]School List'!A:D,4,FALSE)","v":"EPA"},0,null,{"$f":"VLOOKUP(C52-3300000,'October figures 18 AY 18-19'!$B$4:$C$206,2,FALSE)","v":"Somerville Primary (NC) School"}]
[330,"Birmingham",3302178,"Stanville Primary School",209,18090,10553,7537,null,{"$f":"VLOOKUP(C53-3300000,'[2]School List'!A:D,4,FALSE)","v":"EPA"},0,null,{"$f":"VLOOKUP(C53-3300000,'October figures 18 AY 18-19'!$B$4:$C$206,2,FALSE)","v":"Stanville Primary School"}]
[330,"Birmingham",3302179,"Starbank School",1088,26880,15680,11200,null,{"$f":"VLOOKUP(C54-3300000,'[2]School List'!A:D,4,FALSE)","v":"EPA"},0,null,{"$f":"VLOOKUP(C54-3300000,'October figures 18 AY 18-19'!$B$4:$C$206,2,FALSE)","v":"Starbank  School"}]
[330,"Birmingham",3302183,"St Benedict's Primary School",253,18530,10809,7721,null,{"$f":"VLOOKUP(C55-3300000,'[2]School List'!A:D,4,FALSE)","v":"Non Chq Bk"},0,null,{"$f":"VLOOKUP(C55-3300000,'October figures 18 AY 18-19'!$B$4:$C$206,2,FALSE)","v":"St Benedict's Infant School"}]
[330,"Birmingham",3302184,"Stechford Primary School",360,19600,11433,8167,null,{"$f":"VLOOKUP(C56-3300000,'[2]School List'!A:D,4,FALSE)","v":"Non Chq Bk"},0,null,{"$f":"VLOOKUP(C56-3300000,'October figures 18 AY 18-19'!$B$4:$C$206,2,FALSE)","v":"Stechford Primary School"}]
[330,"Birmingham",3302185,"Colebourne Primary School",368,19680,11480,8200,null,{"$f":"VLOOKUP(C57-3300000,'[2]School List'!A:D,4,FALSE)","v":"EPA"},0,null,{"$f":"VLOOKUP(C57-3300000,'October figures 18 AY 18-19'!$B$4:$C$206,2,FALSE)","v":"Colebourne Primary School"}]
[330,"Birmingham",3302189,"Ladypool Primary School",325,19250,11229,8021,null,{"$f":"VLOOKUP(C58-3300000,'[2]School List'!A:D,4,FALSE)","v":"Non Chq Bk"},0,null,{"$f":"VLOOKUP(C58-3300000,'October figures 18 AY 18-19'!$B$4:$C$206,2,FALSE)","v":"Ladypool Primary School"}]
[330,"Birmingham",3302190,"Sundridge Primary School",171,17710,10331,7379,null,{"$f":"VLOOKUP(C59-3300000,'[2]School List'!A:D,4,FALSE)","v":"EPA"},0,null,{"$f":"VLOOKUP(C59-3300000,'October figures 18 AY 18-19'!$B$4:$C$206,2,FALSE)","v":"Sundridge Primary School"}]
[330,"Birmingham",3302191,"Court Farm Primary School",179,17790,10378,7412,null,{"$f":"VLOOKUP(C60-3300000,'[2]School List'!A:D,4,FALSE)","v":"Non Chq Bk"},0,null,{"$f":"VLOOKUP(C60-3300000,'October figures 18 AY 18-19'!$B$4:$C$206,2,FALSE)","v":"Court Farm Primary School"}]
[330,"Birmingham",3302192,"Thornton Primary School",630,22300,13008,9292,null,{"$f":"VLOOKUP(C61-3300000,'[2]School List'!A:D,4,FALSE)","v":"Non Chq Bk"},0,null,{"$f":"VLOOKUP(C61-3300000,'October figures 18 AY 18-19'!$B$4:$C$206,2,FALSE)","v":"Thornton Primary School"}]
[330,"Birmingham",3302225,"World's End Junior School",365,19650,11463,8187,null,{"$f":"VLOOKUP(C62-3300000,'[2]School List'!A:D,4,FALSE)","v":"Chq Bk"},0,null,{"$f":"VLOOKUP(C62-3300000,'October figures 18 AY 18-19'!$B$4:$C$206,2,FALSE)","v":"World's End Junior School"}]
[330,"Birmingham",3302227,"Yardley Wood Community Primary School",314,19140,11165,7975,null,{"$f":"VLOOKUP(C63-3300000,'[2]School List'!A:D,4,FALSE)","v":"Non Chq Bk"},0,null,{"$f":"VLOOKUP(C63-3300000,'October figures 18 AY 18-19'!$B$4:$C$206,2,FALSE)","v":"Yardley Wood Community Primary School"}]
[330,"Birmingham",3302231,"Yorkmead Junior and Infant School",360,19600,11433,8167,null,{"$f":"VLOOKUP(C64-3300000,'[2]School List'!A:D,4,FALSE)","v":"Non Chq Bk"},0,null,{"$f":"VLOOKUP(C64-3300000,'October figures 18 AY 18-19'!$B$4:$C$206,2,FALSE)","v":"Yorkmead Junior and Infant School"}]
[330,"Birmingham",3302236,"Broadmeadow Junior School",232,18320,10687,7633,null,{"$f":"VLOOKUP(C65-3300000,'[2]School List'!A:D,4,FALSE)","v":"Chq Bk"},0,null,{"$f":"VLOOKUP(C65-3300000,'October figures 18 AY 18-19'!$B$4:$C$206,2,FALSE)","v":"Broadmeadow Junior School"}]
[330,"Birmingham",3302238,"Broadmeadow Infant School",116,17160,10010,7150,null,{"$f":"VLOOKUP(C66-3300000,'[2]School List'!A:D,4,FALSE)","v":"Chq Bk"},0,null,{"$f":"VLOOKUP(C66-3300000,'October figures 18 AY 18-19'!$B$4:$C$206,2,FALSE)","v":"Broadmeadow Infant School"}]
[330,"Birmingham",3302239,"Bellfield Infant School (NC)",150,17500,10208,7292,null,{"$f":"VLOOKUP(C67-3300000,'[2]School List'!A:D,4,FALSE)","v":"EPA"},{"$f":"(E67*10)+16000-F67","v":0},null,{"$f":"VLOOKUP(C67-3300000,'October figures 18 AY 18-19'!$B$4:$C$206,2,FALSE)","v":"Bellfield Infant School (NC)"}]
[330,"Birmingham",3302241,"Bellfield Junior School",278,18780,10955,7825,null,{"$f":"VLOOKUP(C68-3300000,'[2]School List'!A:D,4,FALSE)","v":"Non Chq Bk"},0,null,{"$f":"VLOOKUP(C68-3300000,'October figures 18 AY 18-19'!$B$4:$C$206,2,FALSE)","v":"Bellfield Junior School"}]
[330,"Birmingham",3302245,"Welsh House Farm Community School and Special Needs Resources Base",177,17770,10366,7404,null,{"$f":"VLOOKUP(C69-3300000,'[2]School List'!A:D,4,FALSE)","v":"EPA"},0,null,{"$f":"VLOOKUP(C69-3300000,'October figures 18 AY 18-19'!$B$4:$C$206,2,FALSE)","v":"Welsh House Farm Community School and Special Needs Resources Base"}]
[330,"Birmingham",3302246,"The Meadows Primary School",521,21210,12373,8837,null,{"$f":"VLOOKUP(C70-3300000,'[2]School List'!A:D,4,FALSE)","v":"Non Chq Bk"},0,null,{"$f":"VLOOKUP(C70-3300000,'October figures 18 AY 18-19'!$B$4:$C$206,2,FALSE)","v":"The Meadows Primary School"}]
[330,"Birmingham",3302251,"Chilcote Primary School",356,19560,11410,8150,null,{"$f":"VLOOKUP(C71-3300000,'[2]School List'!A:D,4,FALSE)","v":"Chq Bk"},0,null,{"$f":"VLOOKUP(C71-3300000,'October figures 18 AY 18-19'!$B$4:$C$206,2,FALSE)","v":"Chilcote Primary School"}]
[330,"Birmingham",3302254,"Blakesley Hall Primary School",535,21350,12454,8896,null,{"$f":"VLOOKUP(C72-3300000,'[2]School List'!A:D,4,FALSE)","v":"Chq Bk"},0,null,{"$f":"VLOOKUP(C72-3300000,'October figures 18 AY 18-19'!$B$4:$C$206,2,FALSE)","v":"Blakesley Hall Primary School"}]
[330,"Birmingham",3302278,"Woodgate Primary School",333,19330,11276,8054,null,{"$f":"VLOOKUP(C73-3300000,'[2]School List'!A:D,4,FALSE)","v":"EPA"},0,null,{"$f":"VLOOKUP(C73-3300000,'October figures 18 AY 18-19'!$B$4:$C$206,2,FALSE)","v":"Woodgate Primary School"}]
[330,"Birmingham",3302284,"Deykin Avenue Junior and Infant School",181,17810,10389,7421,null,{"$f":"VLOOKUP(C74-3300000,'[2]School List'!A:D,4,FALSE)","v":"Non Chq Bk"},0,null,{"$f":"VLOOKUP(C74-3300000,'October figures 18 AY 18-19'!$B$4:$C$206,2,FALSE)","v":"Deykin Avenue Junior and Infant School"}]
[330,"Birmingham",3302288,"Hollywood Primary School",364,19640,11457,8183,null,{"$f":"VLOOKUP(C75-3300000,'[2]School List'!A:D,4,FALSE)","v":"EPA"},0,null,{"$f":"VLOOKUP(C75-3300000,'October figures 18 AY 18-19'!$B$4:$C$206,2,FALSE)","v":"Hollywood Primary School"}]
[330,"Birmingham",3302289,"Cofton Primary School",297,18970,11066,7904,null,{"$f":"VLOOKUP(C76-3300000,'[2]School List'!A:D,4,FALSE)","v":"Non Chq Bk"},0,null,{"$f":"VLOOKUP(C76-3300000,'October figures 18 AY 18-19'!$B$4:$C$206,2,FALSE)","v":"Cofton Primary School"}]
[330,"Birmingham",3302293,"William Murdoch Primary School",534,21340,12448,8892,null,{"$f":"VLOOKUP(C77-3300000,'[2]School List'!A:D,4,FALSE)","v":"Chq Bk"},0,null,{"$f":"VLOOKUP(C77-3300000,'October figures 18 AY 18-19'!$B$4:$C$206,2,FALSE)","v":"Wilkes Green Junior School"}]
[330,"Birmingham",3302294,"Featherstone Primary School",353,19530,11393,8137,null,{"$f":"VLOOKUP(C78-3300000,'[2]School List'!A:D,4,FALSE)","v":"Non Chq Bk"},0,null,{"$f":"VLOOKUP(C78-3300000,'October figures 18 AY 18-19'!$B$4:$C$206,2,FALSE)","v":"Featherstone Primary School"}]
[330,"Birmingham",3302296,"Glenmead Primary School",343,19430,11334,8096,null,{"$f":"VLOOKUP(C79-3300000,'[2]School List'!A:D,4,FALSE)","v":"Chq bk"},0,null,{"$f":"VLOOKUP(C79-3300000,'October figures 18 AY 18-19'!$B$4:$C$206,2,FALSE)","v":"Glenmead Primary School"}]
[330,"Birmingham",3302300,"Arden Primary School",540,21400,12483,8917,null,{"$f":"VLOOKUP(C80-3300000,'[2]School List'!A:D,4,FALSE)","v":"EPA"},0,null,{"$f":"VLOOKUP(C80-3300000,'October figures 18 AY 18-19'!$B$4:$C$206,2,FALSE)","v":"Arden Primary School"}]
[330,"Birmingham",3302306,"Water Mill Primary School",167,17670,10308,7362,null,{"$f":"VLOOKUP(C81-3300000,'[2]School List'!A:D,4,FALSE)","v":"Non Chq Bk"},0,null,{"$f":"VLOOKUP(C81-3300000,'October figures 18 AY 18-19'!$B$4:$C$206,2,FALSE)","v":"Water Mill Primary School"}]
[330,"Birmingham",3302308,"Welford Primary School",356,19560,11410,8150,null,{"$f":"VLOOKUP(C82-3300000,'[2]School List'!A:D,4,FALSE)","v":"Chq Bk"},0,null,{"$f":"VLOOKUP(C82-3300000,'October figures 18 AY 18-19'!$B$4:$C$206,2,FALSE)","v":"Welford Primary School"}]
[330,"Birmingham",3302312,"Chad Vale Primary School",361,19610,11439,8171,null,{"$f":"VLOOKUP(C83-3300000,'[2]School List'!A:D,4,FALSE)","v":"EPA"},0,null,{"$f":"VLOOKUP(C83-3300000,'October figures 18 AY 18-19'!$B$4:$C$206,2,FALSE)","v":"Chad Vale Primary School"}]
[330,"Birmingham",3302313,"Heath Mount Primary School",328,19280,11247,8033,null,{"$f":"VLOOKUP(C84-3300000,'[2]School List'!A:D,4,FALSE)","v":"EPA"},0,null,{"$f":"VLOOKUP(C84-3300000,'October figures 18 AY 18-19'!$B$4:$C$206,2,FALSE)","v":"Heath Mount Primary School"}]
[330,"Birmingham",3302314,"Woodthorpe Junior and Infant School",181,17810,10389,7421,null,{"$f":"VLOOKUP(C85-3300000,'[2]School List'!A:D,4,FALSE)","v":"Non Chq Bk"},0,null,{"$f":"VLOOKUP(C85-3300000,'October figures 18 AY 18-19'!$B$4:$C$206,2,FALSE)","v":"Woodthorpe Junior and Infant School"}]
[330,"Birmingham",3302317,"World's End Infant and Nursery School",178,17780,10372,7408,null,{"$f":"VLOOKUP(C86-3300000,'[2]School List'!A:D,4,FALSE)","v":"EPA"},0,null,{"$f":"VLOOKUP(C86-3300000,'October figures 18 AY 18-19'!$B$4:$C$206,2,FALSE)","v":"World's End Infant and Nursery School"}]
[330,"Birmingham",3302321,"Kitwell Primary School and Nursery Class",179,17790,10378,7412,null,{"$f":"VLOOKUP(C87-3300000,'[2]School List'!A:D,4,FALSE)","v":"Non Chq Bk"},0,null,{"$f":"VLOOKUP(C87-3300000,'October figures 18 AY 18-19'!$B$4:$C$206,2,FALSE)","v":"Kitwell Primary School and Nursery Class"}]
[330,"Birmingham",3302401,"Boldmere Junior School",362,19620,11445,8175,null,{"$f":"VLOOKUP(C88-3300000,'[2]School List'!A:D,4,FALSE)","v":"Chq Bk"},0,null,{"$f":"VLOOKUP(C88-3300000,'October figures 18 AY 18-19'!$B$4:$C$206,2,FALSE)","v":"Boldmere Junior School"}]
[330,"Birmingham",3302402,"Boldmere Infant School and Nursery",184,17840,10407,7433,null,{"$f":"VLOOKUP(C89-3300000,'[2]School List'!A:D,4,FALSE)","v":"Chq Bk"},0,null,{"$f":"VLOOKUP(C89-3300000,'October figures 18 AY 18-19'!$B$4:$C$206,2,FALSE)","v":"Boldmere Infant School and Nursery"}]
[330,"Birmingham",3302406,"Minworth Junior and Infant School",175,17750,10354,7396,null,{"$f":"VLOOKUP(C90-3300000,'[2]School List'!A:D,4,FALSE)","v":"Non Chq Bk"},0,null,{"$f":"VLOOKUP(C90-3300000,'October figures 18 AY 18-19'!$B$4:$C$206,2,FALSE)","v":"Minworth Junior and Infant School"}]
[330,"Birmingham",3302412,"Wylde Green Primary School",361,19610,11439,8171,null,{"$f":"VLOOKUP(C91-3300000,'[2]School List'!A:D,4,FALSE)","v":"EPA"},0,null,{"$f":"VLOOKUP(C91-3300000,'October figures 18 AY 18-19'!$B$4:$C$206,2,FALSE)","v":"Wylde Green Primary School"}]
[330,"Birmingham",3302416,"Moor Hall Primary School",215,18150,10588,7562,null,{"$f":"VLOOKUP(C92-3300000,'[2]School List'!A:D,4,FALSE)","v":"Non Chq Bk"},0,null,{"$f":"VLOOKUP(C92-3300000,'October figures 18 AY 18-19'!$B$4:$C$206,2,FALSE)","v":"Moor Hall Primary School"}]
[330,"Birmingham",3302420,"Maney Hill Primary School",270,18700,10908,7792,null,{"$f":"VLOOKUP(C93-3300000,'[2]School List'!A:D,4,FALSE)","v":"EPA"},0,null,{"$f":"VLOOKUP(C93-3300000,'October figures 18 AY 18-19'!$B$4:$C$206,2,FALSE)","v":"Maney Hill Primary School"}]
[330,"Birmingham",3302425,"Penns Primary School",181,17810,10389,7421,null,{"$f":"VLOOKUP(C94-3300000,'[2]School List'!A:D,4,FALSE)","v":"Non Chq Bk"},0,null,{"$f":"VLOOKUP(C94-3300000,'October figures 18 AY 18-19'!$B$4:$C$206,2,FALSE)","v":"Penns Primary School"}]
[330,"Birmingham",3302429,"Holland House Infant School and Nursery",117,17170,10016,7154,null,{"$f":"VLOOKUP(C95-3300000,'[2]School List'!A:D,4,FALSE)","v":"EPA"},0,null,{"$f":"VLOOKUP(C95-3300000,'October figures 18 AY 18-19'!$B$4:$C$206,2,FALSE)","v":"Holland House Infant School and Nursery"}]
[330,"Birmingham",3302435,"Benson Community School",437,20370,11883,8487,null,{"$f":"VLOOKUP(C96-3300000,'[2]School List'!A:D,4,FALSE)","v":"EPA"},0,null,{"$f":"VLOOKUP(C96-3300000,'October figures 18 AY 18-19'!$B$4:$C$206,2,FALSE)","v":"Benson Community School"}]
[330,"Birmingham",3302436,"Osborne Primary School",229,18290,10669,7621,null,{"$f":"VLOOKUP(C97-3300000,'[2]School List'!A:D,4,FALSE)","v":"EPA"},0,null,{"$f":"VLOOKUP(C97-3300000,'October figures 18 AY 18-19'!$B$4:$C$206,2,FALSE)","v":"Osborne Primary School"}]
[330,"Birmingham",3302438,"Highters Heath Community School",178,17780,10372,7408,null,{"$f":"VLOOKUP(C98-3300000,'[2]School List'!A:D,4,FALSE)","v":"EPA"},0,null,{"$f":"VLOOKUP(C98-3300000,'October figures 18 AY 18-19'!$B$4:$C$206,2,FALSE)","v":"Highters Heath Community School"}]
[330,"Birmingham",3302441,"Kingsthorne Primary School",355,19550,11404,8146,null,{"$f":"VLOOKUP(C99-3300000,'[2]School List'!A:D,4,FALSE)","v":"Non Chq Bk"},0,null,{"$f":"VLOOKUP(C99-3300000,'October figures 18 AY 18-19'!$B$4:$C$206,2,FALSE)","v":"Kingsthorne Primary School"}]
[330,"Birmingham",3302445,"Woodcock Hill Primary School",177,17770,10366,7404,null,{"$f":"VLOOKUP(C100-3300000,'[2]School List'!A:D,4,FALSE)","v":"EPA"},0,null,{"$f":"VLOOKUP(C100-3300000,'October figures 18 AY 18-19'!$B$4:$C$206,2,FALSE)","v":"Woodcock Hill Primary School"}]
[330,"Birmingham",3302454,"Elms Farm Community Primary School",332,19320,11270,8050,null,{"$f":"VLOOKUP(C101-3300000,'[2]School List'!A:D,4,FALSE)","v":"Non Chq Bk"},0,null,{"$f":"VLOOKUP(C101-3300000,'October figures 18 AY 18-19'!$B$4:$C$206,2,FALSE)","v":"Elms Farm Community Primary School"}]
[330,"Birmingham",3302456,"Bells Farm Primary School",176,17760,10360,7400,null,{"$f":"VLOOKUP(C102-3300000,'[2]School List'!A:D,4,FALSE)","v":"Non Chq Bk"},0,null,{"$f":"VLOOKUP(C102-3300000,'October figures 18 AY 18-19'!$B$4:$C$206,2,FALSE)","v":"Bells Farm Primary School"}]
[330,"Birmingham",3302457,"Nelson Mandela School",362,19620,11445,8175,null,{"$f":"VLOOKUP(C103-3300000,'[2]School List'!A:D,4,FALSE)","v":"Non Chq Bk"},0,null,{"$f":"VLOOKUP(C103-3300000,'October figures 18 AY 18-19'!$B$4:$C$206,2,FALSE)","v":"Nelson Mandela School"}]
[330,"Birmingham",3302462,"Little Sutton Primary School",362,19620,11445,8175,null,{"$f":"VLOOKUP(C104-3300000,'[2]School List'!A:D,4,FALSE)","v":"Chq Bk"},0,null,{"$f":"VLOOKUP(C104-3300000,'October figures 18 AY 18-19'!$B$4:$C$206,2,FALSE)","v":"Little Sutton Primary School"}]
[330,"Birmingham",3302464,"Coppice Primary School",360,19600,11433,8167,null,{"$f":"VLOOKUP(C105-3300000,'[2]School List'!A:D,4,FALSE)","v":"EPA"},0,null,{"$f":"VLOOKUP(C105-3300000,'October figures 18 AY 18-19'!$B$4:$C$206,2,FALSE)","v":"Coppice Primary School"}]
[330,"Birmingham",3302465,"Calshot Primary School",360,19600,11433,8167,null,{"$f":"VLOOKUP(C106-3300000,'[2]School List'!A:D,4,FALSE)","v":"EPA"},0,null,{"$f":"VLOOKUP(C106-3300000,'October figures 18 AY 18-19'!$B$4:$C$206,2,FALSE)","v":"Calshot Primary School"}]
[330,"Birmingham",3302466,"Grove School",538,21380,12472,8908,null,{"$f":"VLOOKUP(C107-3300000,'[2]School List'!A:D,4,FALSE)","v":"Non Chq Bk"},0,null,{"$f":"VLOOKUP(C107-3300000,'October figures 18 AY 18-19'!$B$4:$C$206,2,FALSE)","v":"Grove School"}]
[330,"Birmingham",3302469,"New Hall Primary School",312,19120,11153,7967,null,{"$f":"VLOOKUP(C108-3300000,'[2]School List'!A:D,4,FALSE)","v":"Non Chq Bk"},0,null,{"$f":"VLOOKUP(C108-3300000,'October figures 18 AY 18-19'!$B$4:$C$206,2,FALSE)","v":"New Hall Primary and Children's Centre"}]
[330,"Birmingham",3302474,"Hollyfield Primary School",357,19570,11416,8154,null,{"$f":"VLOOKUP(C109-3300000,'[2]School List'!A:D,4,FALSE)","v":"Non Chq Bk"},0,null,{"$f":"VLOOKUP(C109-3300000,'October figures 18 AY 18-19'!$B$4:$C$206,2,FALSE)","v":"Hollyfield Primary School"}]
[330,"Birmingham",3302477,"Harborne Primary School",536,21360,12460,8900,null,{"$f":"VLOOKUP(C110-3300000,'[2]School List'!A:D,4,FALSE)","v":"Non Chq Bk"},0,null,{"$f":"VLOOKUP(C110-3300000,'October figures 18 AY 18-19'!$B$4:$C$206,2,FALSE)","v":"Harborne Primary School"}]
[330,"Birmingham",3302478,"Whitehouse Common Primary School",392,19920,11620,8300,null,{"$f":"VLOOKUP(C111-3300000,'[2]School List'!A:D,4,FALSE)","v":"EPA"},0,null,{"$f":"VLOOKUP(C111-3300000,'October figures 18 AY 18-19'!$B$4:$C$206,2,FALSE)","v":"Whitehouse Common Primary School"}]
[330,"Birmingham",3302479,"Anglesey Primary School",615,22150,12921,9229,null,{"$f":"VLOOKUP(C112-3300000,'[2]School List'!A:D,4,FALSE)","v":"EPA"},0,null,{"$f":"VLOOKUP(C112-3300000,'October figures 18 AY 18-19'!$B$4:$C$206,2,FALSE)","v":"Anglesey Primary School"}]
[330,"Birmingham",3302482,"Wattville Primary School",412,20120,11737,8383,null,{"$f":"VLOOKUP(C113-3300000,'[2]School List'!A:D,4,FALSE)","v":"EPA"},0,null,{"$f":"VLOOKUP(C113-3300000,'October figures 18 AY 18-19'!$B$4:$C$206,2,FALSE)","v":"Wattville Primary School"}]
[330,"Birmingham",3302486,"Forestdale Primary School",178,17780,10372,7408,null,{"$f":"VLOOKUP(C114-3300000,'[2]School List'!A:D,4,FALSE)","v":"Non Chq Bk"},0,null,{"$f":"VLOOKUP(C114-3300000,'October figures 18 AY 18-19'!$B$4:$C$206,2,FALSE)","v":"Forestdale Primary School"}]
[330,"Birmingham",3303002,"Christ Church CofE Controlled Primary School and Nursery",181,17810,10389,7421,null,{"$f":"VLOOKUP(C115-3300000,'[2]School List'!A:D,4,FALSE)","v":"Chq Bk"},0,null,{"$f":"VLOOKUP(C115-3300000,'October figures 18 AY 18-19'!$B$4:$C$206,2,FALSE)","v":"Christ Church CofE Controlled Primary School and Nursery"}]
[330,"Birmingham",3303003,"Moseley Church of England Primary School",182,17820,10395,7425,null,{"$f":"VLOOKUP(C116-3300000,'[2]School List'!A:D,4,FALSE)","v":"Non Chq Bk"},0,null,{"$f":"VLOOKUP(C116-3300000,'October figures 18 AY 18-19'!$B$4:$C$206,2,FALSE)","v":"Moseley Church of England Primary School"}]
[330,"Birmingham",3303010,"St James Church of England Primary School, Handsworth",361,19610,11439,8171,null,{"$f":"VLOOKUP(C117-3300000,'[2]School List'!A:D,4,FALSE)","v":"Non Chq Bk"},0,null,{"$f":"VLOOKUP(C117-3300000,'October figures 18 AY 18-19'!$B$4:$C$206,2,FALSE)","v":"St James Church of England Primary School, Handsworth"}]
[330,"Birmingham",3303016,"St Matthew's CofE Primary School",180,17800,10383,7417,null,{"$f":"VLOOKUP(C118-3300000,'[2]School List'!A:D,4,FALSE)","v":"Chq Bk"},0,null,{"$f":"VLOOKUP(C118-3300000,'October figures 18 AY 18-19'!$B$4:$C$206,2,FALSE)","v":"St Matthew's CofE Primary School"}]
[330,"Birmingham",3303019,"St Saviour's C of E Primary School",353,19530,11393,8137,null,{"$f":"VLOOKUP(C119-3300000,'[2]School List'!A:D,4,FALSE)","v":"Non Chq Bk"},0,null,{"$f":"VLOOKUP(C119-3300000,'October figures 18 AY 18-19'!$B$4:$C$206,2,FALSE)","v":"St Saviour's C of E Primary School"}]
[330,"Birmingham",3303025,"St Mary's Church of England Primary School",358,19580,11422,8158,null,{"$f":"VLOOKUP(C120-3300000,'[2]School List'!A:D,4,FALSE)","v":"Non Chq Bk"},0,null,{"$f":"VLOOKUP(C120-3300000,'October figures 18 AY 18-19'!$B$4:$C$206,2,FALSE)","v":"St Mary's Church of England Primary School"}]
[330,"Birmingham",3303302,"Saint Barnabas Church of England Primary School",330,19300,{"$f":"11258/7*1","v":1608.2857142857142},null,null,"Academy",0,"Academy","Public","2019-10-01"]
[330,"Birmingham",3303307,"St Laurence Church Junior School",360,19600,11433,8167,null,{"$f":"VLOOKUP(C122-3300000,'[2]School List'!A:D,4,FALSE)","v":"Non Chq Bk"},0,null,{"$f":"VLOOKUP(C122-3300000,'October figures 18 AY 18-19'!$B$4:$C$206,2,FALSE)","v":"St Laurence Church Junior School"}]
[330,"Birmingham",3303310,"St Vincent's Catholic Primary School",175,17750,10354,7396,null,{"$f":"VLOOKUP(C123-3300000,'[2]School List'!A:D,4,FALSE)","v":"Non Chq Bk"},0,null,{"$f":"VLOOKUP(C123-3300000,'October figures 18 AY 18-19'!$B$4:$C$206,2,FALSE)","v":"St Vincent's Catholic Primary School"}]
[330,"Birmingham",3303316,"Guardian Angels Catholic Primary School",207,18070,10541,7529,null,{"$f":"VLOOKUP(C124-3300000,'[2]School List'!A:D,4,FALSE)","v":"Non Chq Bk"},0,null,{"$f":"VLOOKUP(C124-3300000,'October figures 18 AY 18-19'!$B$4:$C$206,2,FALSE)","v":"Guardian Angels Catholic Primary School"}]
[330,"Birmingham",3303317,"Holy Family Catholic Primary School",200,18000,10500,7500,null,{"$f":"VLOOKUP(C125-3300000,'[2]School List'!A:D,4,FALSE)","v":"Non Chq Bk"},0,null,{"$f":"VLOOKUP(C125-3300000,'October figures 18 AY 18-19'!$B$4:$C$206,2,FALSE)","v":"Holy Family Catholic Primary School"}]
[330,"Birmingham",3303318,"Abbey Catholic Primary School",363,19630,11451,8179,null,{"$f":"VLOOKUP(C126-3300000,'[2]School List'!A:D,4,FALSE)","v":"EPA"},0,null,{"$f":"VLOOKUP(C126-3300000,'October figures 18 AY 18-19'!$B$4:$C$206,2,FALSE)","v":"Abbey Catholic Primary School"}]
[330,"Birmingham",3303319,"Christ The King Catholic Primary School",321,19210,11206,8004,null,{"$f":"VLOOKUP(C127-3300000,'[2]School List'!A:D,4,FALSE)","v":"Chq Bk"},0,null,{"$f":"VLOOKUP(C127-3300000,'October figures 18 AY 18-19'!$B$4:$C$206,2,FALSE)","v":"Christ The King Catholic Primary School"}]
[330,"Birmingham",3303320,"Corpus Christi Catholic Primary School",356,19560,11410,8150,null,{"$f":"VLOOKUP(C128-3300000,'[2]School List'!A:D,4,FALSE)","v":"Non Chq Bk"},0,null,{"$f":"VLOOKUP(C128-3300000,'October figures 18 AY 18-19'!$B$4:$C$206,2,FALSE)","v":"Corpus Christi Catholic Primary School"}]
[330,"Birmingham",3303321,"English Martyrs' Catholic Primary School",359,19590,11428,8162,null,{"$f":"VLOOKUP(C129-3300000,'[2]School List'!A:D,4,FALSE)","v":"EPA"},0,null,{"$f":"VLOOKUP(C129-3300000,'October figures 18 AY 18-19'!$B$4:$C$206,2,FALSE)","v":"English Martyrs' Catholic Primary School"}]
[330,"Birmingham",3303322,"Maryvale Catholic Primary School",175,17750,10354,7396,null,{"$f":"VLOOKUP(C130-3300000,'[2]School List'!A:D,4,FALSE)","v":"Chq Bk"},0,null,{"$f":"VLOOKUP(C130-3300000,'October figures 18 AY 18-19'!$B$4:$C$206,2,FALSE)","v":"Maryvale Catholic Primary School"}]
[330,"Birmingham",3303323,"The Oratory Roman Catholic Primary School",180,17800,10383,7417,null,{"$f":"VLOOKUP(C131-3300000,'[2]School List'!A:D,4,FALSE)","v":"EPA"},{"$f":"(E131*10)+16000-F131","v":0},null,{"$f":"VLOOKUP(C131-3300000,'October figures 18 AY 18-19'!$B$4:$C$206,2,FALSE)","v":"The Oratory Roman Catholic Primary School"}]
[330,"Birmingham",3303325,"The Rosary Catholic Primary School",349,19490,11369,8121,null,{"$f":"VLOOKUP(C132-3300000,'[2]School List'!A:D,4,FALSE)","v":"Non Chq Bk"},0,null,{"$f":"VLOOKUP(C132-3300000,'October figures 18 AY 18-19'!$B$4:$C$206,2,FALSE)","v":"The Rosary Catholic Primary School"}]
[330,"Birmingham",3303328,"Our Lady of Lourdes Catholic Primary School (NC)",180,17800,10383,7417,null,{"$f":"VLOOKUP(C133-3300000,'[2]School List'!A:D,4,FALSE)","v":"EPA"},0,null,{"$f":"VLOOKUP(C133-3300000,'October figures 18 AY 18-19'!$B$4:$C$206,2,FALSE)","v":"Our Lady of Lourdes Catholic Primary School (NC)"}]
[330,"Birmingham",3303329,"St Augustine's Catholic Primary School",179,17790,10378,7412,null,{"$f":"VLOOKUP(C134-3300000,'[2]School List'!A:D,4,FALSE)","v":"Non Chq Bk"},0,null,{"$f":"VLOOKUP(C134-3300000,'October figures 18 AY 18-19'!$B$4:$C$206,2,FALSE)","v":"St Augustine's Catholic Primary School"}]
[330,"Birmingham",3303331,"St Catherine of Siena Catholic Primary School",184,17840,10407,7433,null,{"$f":"VLOOKUP(C135-3300000,'[2]School List'!A:D,4,FALSE)","v":"Non Chq Bk"},0,null,{"$f":"VLOOKUP(C135-3300000,'October figures 18 AY 18-19'!$B$4:$C$206,2,FALSE)","v":"St Catherine of Siena Catholic Primary School"}]
[330,"Birmingham",3303335,"St Anne's Catholic Primary School",178,17780,10372,7408,null,{"$f":"VLOOKUP(C136-3300000,'[2]School List'!A:D,4,FALSE)","v":"EPA"},0,null,{"$f":"VLOOKUP(C136-3300000,'October figures 18 AY 18-19'!$B$4:$C$206,2,FALSE)","v":"St Anne's Catholic Primary School"}]
[330,"Birmingham",3303337,"St Chad's Catholic Primary School",181,17810,10389,7421,null,{"$f":"VLOOKUP(C137-3300000,'[2]School List'!A:D,4,FALSE)","v":"Non Chq Bk"},0,null,{"$f":"VLOOKUP(C137-3300000,'October figures 18 AY 18-19'!$B$4:$C$206,2,FALSE)","v":"St Chad's Catholic Primary School"}]
[330,"Birmingham",3303339,"St Joseph's Catholic Primary School",178,17780,10372,7408,null,{"$f":"VLOOKUP(C138-3300000,'[2]School List'!A:D,4,FALSE)","v":"Non Chq Bk"},0,null,{"$f":"VLOOKUP(C138-3300000,'October figures 18 AY 18-19'!$B$4:$C$206,2,FALSE)","v":"St Joseph's Catholic Primary School"}]
[330,"Birmingham",3303342,"St Francis Catholic Primary School",357,19570,11416,8154,null,{"$f":"VLOOKUP(C139-3300000,'[2]School List'!A:D,4,FALSE)","v":"Non Chq Bk"},0,null,{"$f":"VLOOKUP(C139-3300000,'October figures 18 AY 18-19'!$B$4:$C$206,2,FALSE)","v":"St Francis Catholic Primary School"}]
[330,"Birmingham",3303344,"St Mary's Catholic Primary School",359,19590,11428,8162,null,{"$f":"VLOOKUP(C140-3300000,'[2]School List'!A:D,4,FALSE)","v":"EPA"},0,null,{"$f":"VLOOKUP(C140-3300000,'October figures 18 AY 18-19'!$B$4:$C$206,2,FALSE)","v":"St Mary's Catholic Primary School"}]
[330,"Birmingham",3303346,"St Patrick's Catholic Primary School",181,17810,10389,7421,null,{"$f":"VLOOKUP(C141-3300000,'[2]School List'!A:D,4,FALSE)","v":"Non Chq Bk"},0,null,{"$f":"VLOOKUP(C141-3300000,'October figures 18 AY 18-19'!$B$4:$C$206,2,FALSE)","v":"St Patrick's Catholic Primary School"}]
[330,"Birmingham",3303347,"St Edmund's Catholic Primary School",181,17810,10389,7421,null,{"$f":"VLOOKUP(C142-3300000,'[2]School List'!A:D,4,FALSE)","v":"Non Chq Bk"},0,null,{"$f":"VLOOKUP(C142-3300000,'October figures 18 AY 18-19'!$B$4:$C$206,2,FALSE)","v":"St Edmund's Catholic Primary School"}]
[330,"Birmingham",3303351,"Our Lady and St Rose of Lima Catholic Primary School",179,17790,10378,7412,null,{"$f":"VLOOKUP(C143-3300000,'[2]School List'!A:D,4,FALSE)","v":"EPA"},0,null,{"$f":"VLOOKUP(C143-3300000,'October figures 18 AY 18-19'!$B$4:$C$206,2,FALSE)","v":"Our Lady and St Rose of Lima Catholic Primary School"}]
[330,"Birmingham",3303352,"King David Junior and Infant School",177,17770,10366,7404,null,{"$f":"VLOOKUP(C144-3300000,'[2]School List'!A:D,4,FALSE)","v":"Non Chq Bk"},0,null,{"$f":"VLOOKUP(C144-3300000,'October figures 18 AY 18-19'!$B$4:$C$206,2,FALSE)","v":"King David Junior and Infant School"}]
[330,"Birmingham",3303353,"Bournville Village Primary",563,21630,12618,9012,null,{"$f":"VLOOKUP(C145-3300000,'[2]School List'!A:D,4,FALSE)","v":"Non Chq Bk"},0,null,{"$f":"VLOOKUP(C145-3300000,'October figures 18 AY 18-19'!$B$4:$C$206,2,FALSE)","v":"Bournville Junior School"}]
[330,"Birmingham",3303355,"St Edward's Catholic Primary School",341,19410,11323,8087,null,{"$f":"VLOOKUP(C146-3300000,'[2]School List'!A:D,4,FALSE)","v":"Non Chq Bk"},0,null,{"$f":"VLOOKUP(C146-3300000,'October figures 18 AY 18-19'!$B$4:$C$206,2,FALSE)","v":"St Edward's Catholic Primary School"}]
[330,"Birmingham",3303357,"Our Lady's Catholic Primary School",178,17780,10372,7408,null,{"$f":"VLOOKUP(C147-3300000,'[2]School List'!A:D,4,FALSE)","v":"Non Chq Bk"},0,null,{"$f":"VLOOKUP(C147-3300000,'October figures 18 AY 18-19'!$B$4:$C$206,2,FALSE)","v":"Our Lady's Catholic Primary School"}]
[330,"Birmingham",3303359,"St Wilfrid's Catholic Junior and Infant School",339,19390,11311,8079,null,{"$f":"VLOOKUP(C148-3300000,'[2]School List'!A:D,4,FALSE)","v":"CHQ Bk"},0,null,{"$f":"VLOOKUP(C148-3300000,'October figures 18 AY 18-19'!$B$4:$C$206,2,FALSE)","v":"St Wilfrid's Catholic Junior and Infant School"}]
[330,"Birmingham",3303360,"St John Fisher Catholic Primary School",177,17770,10366,7404,null,{"$f":"VLOOKUP(C149-3300000,'[2]School List'!A:D,4,FALSE)","v":"Non Chq Bk"},0,null,{"$f":"VLOOKUP(C149-3300000,'October figures 18 AY 18-19'!$B$4:$C$206,2,FALSE)","v":"St John Fisher Catholic Primary School"}]
[330,"Birmingham",3303361,"St Margaret Mary RC Junior and Infant School",286,18860,11002,7858,null,{"$f":"VLOOKUP(C150-3300000,'[2]School List'!A:D,4,FALSE)","v":"EPA"},0,null,{"$f":"VLOOKUP(C150-3300000,'October figures 18 AY 18-19'!$B$4:$C$206,2,FALSE)","v":"St Margaret Mary RC Junior and Infant School"}]
[330,"Birmingham",3303363,"St Dunstan's Catholic Primary School",340,19400,11317,8083,null,{"$f":"VLOOKUP(C151-3300000,'[2]School List'!A:D,4,FALSE)","v":"Chq Bk"},0,null,{"$f":"VLOOKUP(C151-3300000,'October figures 18 AY 18-19'!$B$4:$C$206,2,FALSE)","v":"St Dunstan's Catholic Primary School"}]
[330,"Birmingham",3303365,"St Teresa's Catholic Primary School",178,17780,10372,7408,null,{"$f":"VLOOKUP(C152-3300000,'[2]School List'!A:D,4,FALSE)","v":"Non Chq Bk"},0,null,{"$f":"VLOOKUP(C152-3300000,'October figures 18 AY 18-19'!$B$4:$C$206,2,FALSE)","v":"St Teresa's Catholic Primary School"}]
[330,"Birmingham",3303367,"St Gerard's RC Junior and Infant School",180,17800,10383,7417,null,{"$f":"VLOOKUP(C153-3300000,'[2]School List'!A:D,4,FALSE)","v":"EPA"},0,null,{"$f":"VLOOKUP(C153-3300000,'October figures 18 AY 18-19'!$B$4:$C$206,2,FALSE)","v":"St Gerard's RC Junior and Infant School"}]
[330,"Birmingham",3303371,"St Laurence Church Infant School",178,17780,10372,7408,null,{"$f":"VLOOKUP(C154-3300000,'[2]School List'!A:D,4,FALSE)","v":"Chq Bk"},0,null,{"$f":"VLOOKUP(C154-3300000,'October figures 18 AY 18-19'!$B$4:$C$206,2,FALSE)","v":"St Laurence Church Infant School"}]
[330,"Birmingham",3303372,"St Bernadette's Catholic Primary School",538,21380,12472,8908,null,{"$f":"VLOOKUP(C155-3300000,'[2]School List'!A:D,4,FALSE)","v":"EPA"},0,null,{"$f":"VLOOKUP(C155-3300000,'October figures 18 AY 18-19'!$B$4:$C$206,2,FALSE)","v":"St Bernadette's Catholic Primary School"}]
[330,"Birmingham",3303375,"St Bernard's Catholic Primary School",357,19570,11416,8154,null,{"$f":"VLOOKUP(C156-3300000,'[2]School List'!A:D,4,FALSE)","v":"Non Chq Bk"},0,null,{"$f":"VLOOKUP(C156-3300000,'October figures 18 AY 18-19'!$B$4:$C$206,2,FALSE)","v":"St Bernard's Catholic Primary School"}]
[330,"Birmingham",3303377,"St Jude's Catholic Primary School",173,17730,10343,7387,null,{"$f":"VLOOKUP(C157-3300000,'[2]School List'!A:D,4,FALSE)","v":"Chq Bk"},0,null,{"$f":"VLOOKUP(C157-3300000,'October figures 18 AY 18-19'!$B$4:$C$206,2,FALSE)","v":"St Jude's Catholic Primary School"}]
[330,"Birmingham",3303380,"St Ambrose Barlow Catholic Primary School",179,17790,10378,7412,null,{"$f":"VLOOKUP(C158-3300000,'[2]School List'!A:D,4,FALSE)","v":"EPA"},0,null,{"$f":"VLOOKUP(C158-3300000,'October figures 18 AY 18-19'!$B$4:$C$206,2,FALSE)","v":"St Ambrose Barlow Catholic Primary School"}]
[330,"Birmingham",3303381,"St Alban's Catholic Primary School",180,17800,10383,7417,null,{"$f":"VLOOKUP(C159-3300000,'[2]School List'!A:D,4,FALSE)","v":"Non Chq Bk"},0,null,{"$f":"VLOOKUP(C159-3300000,'October figures 18 AY 18-19'!$B$4:$C$206,2,FALSE)","v":"St Alban's Catholic Primary School"}]
[330,"Birmingham",3303382,"St Martin de Porres Catholic Primary School",172,17720,10337,7383,null,{"$f":"VLOOKUP(C160-3300000,'[2]School List'!A:D,4,FALSE)","v":"Non Chq Bk"},0,null,{"$f":"VLOOKUP(C160-3300000,'October figures 18 AY 18-19'!$B$4:$C$206,2,FALSE)","v":"St Martin de Porres Catholic Primary School"}]
[330,"Birmingham",3303383,"St Mark's Catholic Primary School",180,17800,10383,7417,null,{"$f":"VLOOKUP(C161-3300000,'[2]School List'!A:D,4,FALSE)","v":"EPA"},0,null,{"$f":"VLOOKUP(C161-3300000,'October figures 18 AY 18-19'!$B$4:$C$206,2,FALSE)","v":"St Mark's Catholic Primary School"}]
[330,"Birmingham",3303385,"St Peter's Catholic Primary School",181,17810,10389,7421,null,{"$f":"VLOOKUP(C162-3300000,'[2]School List'!A:D,4,FALSE)","v":"EPA"},0,null,{"$f":"VLOOKUP(C162-3300000,'October figures 18 AY 18-19'!$B$4:$C$206,2,FALSE)","v":"St Peter's Catholic Primary School"}]
[330,"Birmingham",3303386,"St Cuthbert's RC Junior and Infant (NC) School",182,17820,10395,7425,null,{"$f":"VLOOKUP(C163-3300000,'[2]School List'!A:D,4,FALSE)","v":"Non Chq Bk"},0,null,{"$f":"VLOOKUP(C163-3300000,'October figures 18 AY 18-19'!$B$4:$C$206,2,FALSE)","v":"St Cuthbert's RC Junior and Infant (NC) School"}]
[330,"Birmingham",3303406,"St Clare's Catholic Primary School",366,19660,11468,8192,null,{"$f":"VLOOKUP(C164-3300000,'[2]School List'!A:D,4,FALSE)","v":"Non Chq Bk"},0,null,{"$f":"VLOOKUP(C164-3300000,'October figures 18 AY 18-19'!$B$4:$C$206,2,FALSE)","v":"St Clare's Catholic Primary School"}]
[330,"Birmingham",3303410,"St John and Monica Catholic Primary School",180,17800,10383,7417,null,{"$f":"VLOOKUP(C165-3300000,'[2]School List'!A:D,4,FALSE)","v":"EPA"},0,null,{"$f":"VLOOKUP(C165-3300000,'October figures 18 AY 18-19'!$B$4:$C$206,2,FALSE)","v":"St John and Monica Catholic Primary School"}]
[330,"Birmingham",3303411,"Holly Hill Methodist CofE Infant School",116,17160,10010,7150,null,{"$f":"VLOOKUP(C166-3300000,'[2]School List'!A:D,4,FALSE)","v":"Non Chq Bk"},0,null,{"$f":"VLOOKUP(C166-3300000,'October figures 18 AY 18-19'!$B$4:$C$206,2,FALSE)","v":"Holly Hill Methodist CofE Infant School"}]
[330,"Birmingham",3303421,"Yardley Primary School",719,23190,13528,9662,null,{"$f":"VLOOKUP(C167-3300000,'[2]School List'!A:D,4,FALSE)","v":"EPA"},0,null,{"$f":"VLOOKUP(C167-3300000,'October figures 18 AY 18-19'!$B$4:$C$206,2,FALSE)","v":"Yardley Primary School"}]
[330,"Birmingham",3303428,"St Peters CofE Primary School",358,19580,11422,8158,null,{"$f":"VLOOKUP(C168-3300000,'[2]School List'!A:D,4,FALSE)","v":"Chq Bk"},0,null,{"$f":"VLOOKUP(C168-3300000,'October figures 18 AY 18-19'!$B$4:$C$206,2,FALSE)","v":"St Peters CofE Primary School"}]
[330,"Birmingham",3303431,"New Oscott Primary School",537,21370,12466,8904,null,{"$f":"VLOOKUP(C169-3300000,'[2]School List'!A:D,4,FALSE)","v":"Non Chq Bk"},0,null,{"$f":"VLOOKUP(C169-3300000,'October figures 18 AY 18-19'!$B$4:$C$206,2,FALSE)","v":"New Oscott Primary School"}]
[330,"Birmingham",3303432,"Clifton Primary School",716,23160,13510,9650,null,{"$f":"VLOOKUP(C170-3300000,'[2]School List'!A:D,4,FALSE)","v":"EPA"},0,null,{"$f":"VLOOKUP(C170-3300000,'October figures 18 AY 18-19'!$B$4:$C$206,2,FALSE)","v":"Clifton Primary School"}]
[330,"Birmingham",3303435,"Four Oaks Primary School",362,19620,11445,8175,null,{"$f":"VLOOKUP(C171-3300000,'[2]School List'!A:D,4,FALSE)","v":"EPA"},0,null,{"$f":"VLOOKUP(C171-3300000,'October figures 18 AY 18-19'!$B$4:$C$206,2,FALSE)","v":"Four Oaks Primary School"}]
[330,"Birmingham",3303436,"Harper Bell Seventh-day Adventist School",153,17530,10226,7304,null,{"$f":"VLOOKUP(C172-3300000,'[2]School List'!A:D,4,FALSE)","v":"Non Chq Bk"},0,null,{"$f":"VLOOKUP(C172-3300000,'October figures 18 AY 18-19'!$B$4:$C$206,2,FALSE)","v":"Harper Bell Seventh-day Adventist School"}]
[330,"Birmingham",3305202,"Walmley Junior School",359,19590,11428,8162,null,{"$f":"VLOOKUP(C173-3300000,'[2]School List'!A:D,4,FALSE)","v":"Chq Bk"},0,null,{"$f":"VLOOKUP(C173-3300000,'October figures 18 AY 18-19'!$B$4:$C$206,2,FALSE)","v":"Walmley Junior School"}]
[330,"Birmingham",3305203,"Walmley Infant School",180,17800,10383,7417,null,{"$f":"VLOOKUP(C174-3300000,'[2]School List'!A:D,4,FALSE)","v":"Chq Bk"},0,null,{"$f":"VLOOKUP(C174-3300000,'October figures 18 AY 18-19'!$B$4:$C$206,2,FALSE)","v":"Walmley Infant School"}]
[330,"Birmingham",3305949,"Al-Furqan Primary School",540,21400,12483,8917,null,{"$f":"VLOOKUP(C175-3300000,'[2]School List'!A:D,4,FALSE)","v":"Non Chq Bk"},0,null,{"$f":"VLOOKUP(C175-3300000,'October figures 18 AY 18-19'!$B$4:$C$206,2,FALSE)","v":"Al-Furqan Primary School"}]
[330,"Birmingham",3307006,"Hamilton School",112,17120,9987,7133,null,{"$f":"VLOOKUP(C176-3300000,'[2]School List'!A:D,4,FALSE)","v":"Non Chq Bk"},0,null,{"$f":"VLOOKUP(C176-3300000,'October figures 18 AY 18-19'!$B$4:$C$206,2,FALSE)","v":"Hamilton School"}]
[330,"Birmingham",3307009,"Victoria School",84,16840,9823,7017,null,{"$f":"VLOOKUP(C177-3300000,'[2]School List'!A:D,4,FALSE)","v":"Chq Bk"},0,null,{"$f":"VLOOKUP(C177-3300000,'October figures 18 AY 18-19'!$B$4:$C$206,2,FALSE)","v":"Victoria School"}]
[330,"Birmingham",3307012,"Longwill A Primary School for Deaf Children",50,16500,9625,6875,null,{"$f":"VLOOKUP(C178-3300000,'[2]School List'!A:D,4,FALSE)","v":"EPA"},0,null,{"$f":"VLOOKUP(C178-3300000,'October figures 18 AY 18-19'!$B$4:$C$206,2,FALSE)","v":"Longwill A Primary School for Deaf Children"}]
[330,"Birmingham",3307014,"Uffculme School",84,16840,9823,7017,null,{"$f":"VLOOKUP(C179-3300000,'[2]School List'!A:D,4,FALSE)","v":"Chq Bk"},0,null,{"$f":"VLOOKUP(C179-3300000,'October figures 18 AY 18-19'!$B$4:$C$206,2,FALSE)","v":"Uffculme School"}]
[330,"Birmingham",3307034,"Priestley Smith School",26,16260,9485,6775,null,{"$f":"VLOOKUP(C180-3300000,'[2]School List'!A:D,4,FALSE)","v":"Non Chq Bk"},0,null,{"$f":"VLOOKUP(C180-3300000,'October figures 18 AY 18-19'!$B$4:$C$206,2,FALSE)","v":"Priestley Smith School"}]
[330,"Birmingham",3307035,"The Dame Ellen Pinsent School",144,17440,10173,7267,null,{"$f":"VLOOKUP(C181-3300000,'[2]School List'!A:D,4,FALSE)","v":"Non Chq Bk"},0,null,{"$f":"VLOOKUP(C181-3300000,'October figures 18 AY 18-19'!$B$4:$C$206,2,FALSE)","v":"The Dame Ellen Pinsent School"}]
[330,"Birmingham",3307037,"Skilts School",65,16650,9713,6937,null,{"$f":"VLOOKUP(C182-3300000,'[2]School List'!A:D,4,FALSE)","v":"Non Chq Bk"},0,null,{"$f":"VLOOKUP(C182-3300000,'October figures 18 AY 18-19'!$B$4:$C$206,2,FALSE)","v":"Skilts School"}]
[330,"Birmingham",3307040,"Mayfield School",107,17070,9958,7112,null,{"$f":"VLOOKUP(C183-3300000,'[2]School List'!A:D,4,FALSE)","v":"Non Chq Bk"},0,null,{"$f":"VLOOKUP(C183-3300000,'October figures 18 AY 18-19'!$B$4:$C$206,2,FALSE)","v":"Mayfield School"}]
[330,"Birmingham",3307045,"The Pines Special School",113,17130,9993,7137,null,{"$f":"VLOOKUP(C184-3300000,'[2]School List'!A:D,4,FALSE)","v":"EPA"},0,null,{"$f":"VLOOKUP(C184-3300000,'October figures 18 AY 18-19'!$B$4:$C$206,2,FALSE)","v":"The Pines Special School"}]
[330,"Birmingham",3307047,"Springfield House Community Special School",94,16940,9882,7058,null,{"$f":"VLOOKUP(C185-3300000,'[2]School List'!A:D,4,FALSE)","v":"Non Chq Bk"},0,null,{"$f":"VLOOKUP(C185-3300000,'October figures 18 AY 18-19'!$B$4:$C$206,2,FALSE)","v":"Springfield House Community Special School"}]
[330,"Birmingham",3307051,"Cherry Oak School",103,17030,9934,7096,null,{"$f":"VLOOKUP(C186-3300000,'[2]School List'!A:D,4,FALSE)","v":"Chq Bk"},0,null,{"$f":"VLOOKUP(C186-3300000,'October figures 18 AY 18-19'!$B$4:$C$206,2,FALSE)","v":"Cherry Oak School"}]
[330,"Birmingham",3307052,"Beaufort School",65,16650,9713,6937,null,{"$f":"VLOOKUP(C187-3300000,'[2]School List'!A:D,4,FALSE)","v":"Non Chq Bk"},0,null,{"$f":"VLOOKUP(C187-3300000,'October figures 18 AY 18-19'!$B$4:$C$206,2,FALSE)","v":"Beaufort School"}]
[330,"Birmingham",3307060,"Langley School",109,17090,9969,7121,null,{"$f":"VLOOKUP(C188-3300000,'[2]School List'!A:D,4,FALSE)","v":"EPA"},0,null,{"$f":"VLOOKUP(C188-3300000,'October figures 18 AY 18-19'!$B$4:$C$206,2,FALSE)","v":"Langley School"}]
[330,"Birmingham",3307062,"Lindsworth School",12,12000,7000,5000,null,{"$f":"VLOOKUP(C189-3300000,'[2]School List'!A:D,4,FALSE)","v":"Non Chq Bk"},{"$f":"(E189*1000)-F189","v":0},null,{"$f":"VLOOKUP(C189-3300000,'October figures 18 AY 18-19'!$B$4:$C$206,2,FALSE)","v":"Lindsworth School"}]
[]
[null,null,null,null,null,{"$f":"SUM(F2:F190)","v":3564000},{"$f":"SUM(G2:G190)","v":2069363.2857142857},1476945]
[null,null,"Academy","Saint Barnabas Church of England Primary School",null,null,{"$f":"'[2]LA (maintained only)'!D35-G191","v":9649.714285714319},{"$f":"'[2]LA (maintained only)'!E35-H191","v":8042}]
[]
[null,null,"Full year","Saint Barnabas Church of England Primary School",null,null,11258,8042]
[null,null,null,"Check",null,null,{"$f":"G194-G192-G121","v":-3.3196556614711881E-11},{"$f":"H194-H192-H121","v":0}]